DEPARTMENT,ENTITY,Date of Payment,Expense Type,Project,Expense Area,Supplier,Transaction Number,Amount,
United Kingdom Atomic energy Authority,United Kingdom Atomic energy Authority,31/05/2014,MILEAGE ALLOWANCE,29030,FUSION,EMPLOYEES EXPENSES,100726685,7.2,
United Kingdom Atomic energy Authority,United Kingdom Atomic energy Authority,31/05/2014,TAXIS,21033,SUPPORT SERVICES,EMPLOYEES EXPENSES,100726686,31.81,
United Kingdom Atomic energy Authority,United Kingdom Atomic energy Authority,31/05/2014,SUBSISTENCE,21033,SUPPORT SERVICES,EMPLOYEES EXPENSES,100726686,126.75,
United Kingdom Atomic energy Authority,United Kingdom Atomic energy Authority,31/05/2014,RAIL TRAVEL,21033,SUPPORT SERVICES,EMPLOYEES EXPENSES,100726686,3.91,
United Kingdom Atomic energy Authority,United Kingdom Atomic energy Authority,31/05/2014,OTHER EMPLOYEE EXPENSES,21033,SUPPORT SERVICES,EMPLOYEES EXPENSES,100726686,3,
United Kingdom Atomic energy Authority,United Kingdom Atomic energy Authority,31/05/2014,TAXIS,25501,FUSION,EMPLOYEES EXPENSES,100726687,13,
United Kingdom Atomic energy Authority,United Kingdom Atomic energy Authority,31/05/2014,ROAD TRAVEL,25501,FUSION,EMPLOYEES EXPENSES,100726687,5.42,
United Kingdom Atomic energy Authority,United Kingdom Atomic energy Authority,31/05/2014,SUBSISTENCE,25821,FUSION,EMPLOYEES EXPENSES,100726688,113.65,
United Kingdom Atomic energy Authority,United Kingdom Atomic energy Authority,31/05/2014,OTHER EMPLOYEE EXPENSES,25821,FUSION,EMPLOYEES EXPENSES,100726688,6.35,
United Kingdom Atomic energy Authority,United Kingdom Atomic energy Authority,31/05/2014,SUBSISTENCE,25103,FUSION,EMPLOYEES EXPENSES,100726689,43.5,
United Kingdom Atomic energy Authority,United Kingdom Atomic energy Authority,31/05/2014,TAXIS,21033,SUPPORT SERVICES,EMPLOYEES EXPENSES,100726690,5.8,
United Kingdom Atomic energy Authority,United Kingdom Atomic energy Authority,31/05/2014,ENTERTAINMENT - STAFF,21033,SUPPORT SERVICES,EMPLOYEES EXPENSES,100726690,161.7,
United Kingdom Atomic energy Authority,United Kingdom Atomic energy Authority,31/05/2014,TAXIS,26900,SUPPORT SERVICES,EMPLOYEES EXPENSES,100726690,5.8,
United Kingdom Atomic energy Authority,United Kingdom Atomic energy Authority,31/05/2014,ENTERTAINMENT - STAFF,26900,SUPPORT SERVICES,EMPLOYEES EXPENSES,100726690,161.7,
United Kingdom Atomic energy Authority,United Kingdom Atomic energy Authority,31/05/2014,MILEAGE ALLOWANCE,23123,FUSION,EMPLOYEES EXPENSES,100726691,63.9,
United Kingdom Atomic energy Authority,United Kingdom Atomic energy Authority,31/05/2014,MILEAGE ALLOWANCE,23119,FUSION,EMPLOYEES EXPENSES,100726692,66.6,
United Kingdom Atomic energy Authority,United Kingdom Atomic energy Authority,31/05/2014,MILEAGE ALLOWANCE,23119,FUSION,EMPLOYEES EXPENSES,100726693,66.6,
United Kingdom Atomic energy Authority,United Kingdom Atomic energy Authority,31/05/2014,SUBSISTENCE,25821,FUSION,EMPLOYEES EXPENSES,100726694,5,
United Kingdom Atomic energy Authority,United Kingdom Atomic energy Authority,31/05/2014,SUBSISTENCE,25821,FUSION,EMPLOYEES EXPENSES,100726694,20.87,
United Kingdom Atomic energy Authority,United Kingdom Atomic energy Authority,31/05/2014,MILEAGE ALLOWANCE,23127,FUSION,EMPLOYEES EXPENSES,100726695,69.75,
United Kingdom Atomic energy Authority,United Kingdom Atomic energy Authority,31/05/2014,ROAD TRAVEL,23127,FUSION,EMPLOYEES EXPENSES,100726695,3,
United Kingdom Atomic energy Authority,United Kingdom Atomic energy Authority,31/05/2014,SUBSISTENCE,29001,FUSION,EMPLOYEES EXPENSES,100726696,15,
United Kingdom Atomic energy Authority,United Kingdom Atomic energy Authority,31/05/2014,SUBSISTENCE,29001,FUSION,EMPLOYEES EXPENSES,100726696,281.45,
United Kingdom Atomic energy Authority,United Kingdom Atomic energy Authority,31/05/2014,ROAD TRAVEL,29001,FUSION,EMPLOYEES EXPENSES,100726696,42.58,
United Kingdom Atomic energy Authority,United Kingdom Atomic energy Authority,31/05/2014,MILEAGE ALLOWANCE,23164,FUSION,EMPLOYEES EXPENSES,100726697,17.1,
United Kingdom Atomic energy Authority,United Kingdom Atomic energy Authority,31/05/2014,MILEAGE ALLOWANCE,21033,SUPPORT SERVICES,EMPLOYEES EXPENSES,100726698,51.3,
United Kingdom Atomic energy Authority,United Kingdom Atomic energy Authority,31/05/2014,RAIL TRAVEL,21032,SUPPORT SERVICES,EMPLOYEES EXPENSES,100726699,44.6,
United Kingdom Atomic energy Authority,United Kingdom Atomic energy Authority,31/05/2014,SUBSISTENCE,25821,FUSION,EMPLOYEES EXPENSES,100726700,191.13,
United Kingdom Atomic energy Authority,United Kingdom Atomic energy Authority,05/06/2014,MILEAGE ALLOWANCE,29030,FUSION,EMPLOYEES EXPENSES,100726749,7.2,
United Kingdom Atomic energy Authority,United Kingdom Atomic energy Authority,05/06/2014,CAR HIRE,25403,FUSION,EMPLOYEES EXPENSES,100726750,1048.52,
United Kingdom Atomic energy Authority,United Kingdom Atomic energy Authority,05/06/2014,SUBSISTENCE,25403,FUSION,EMPLOYEES EXPENSES,100726750,2954.56,
United Kingdom Atomic energy Authority,United Kingdom Atomic energy Authority,05/06/2014,SUBSISTENCE,25403,FUSION,EMPLOYEES EXPENSES,100726750,12.71,
United Kingdom Atomic energy Authority,United Kingdom Atomic energy Authority,05/06/2014,MILEAGE ALLOWANCE,25403,FUSION,EMPLOYEES EXPENSES,100726750,54,
United Kingdom Atomic energy Authority,United Kingdom Atomic energy Authority,05/06/2014,AIR TRAVEL,25403,FUSION,EMPLOYEES EXPENSES,100726750,1105.15,
United Kingdom Atomic energy Authority,United Kingdom Atomic energy Authority,05/06/2014,ROAD TRAVEL,25403,FUSION,EMPLOYEES EXPENSES,100726750,112.99,
United Kingdom Atomic energy Authority,United Kingdom Atomic energy Authority,05/06/2014,OTHER EMPLOYEE EXPENSES,25403,FUSION,EMPLOYEES EXPENSES,100726750,206.77,
United Kingdom Atomic energy Authority,United Kingdom Atomic energy Authority,05/06/2014,SUBSISTENCE,63608,SUPPORT SERVICES,EMPLOYEES EXPENSES,100726751,5,
United Kingdom Atomic energy Authority,United Kingdom Atomic energy Authority,05/06/2014,SUBSISTENCE,63608,SUPPORT SERVICES,EMPLOYEES EXPENSES,100726751,86.67,
United Kingdom Atomic energy Authority,United Kingdom Atomic energy Authority,05/06/2014,SUBSISTENCE,63608,SUPPORT SERVICES,EMPLOYEES EXPENSES,100726752,5,
United Kingdom Atomic energy Authority,United Kingdom Atomic energy Authority,05/06/2014,SUBSISTENCE,63608,SUPPORT SERVICES,EMPLOYEES EXPENSES,100726752,92.58,
United Kingdom Atomic energy Authority,United Kingdom Atomic energy Authority,05/06/2014,MILEAGE ALLOWANCE,63608,SUPPORT SERVICES,EMPLOYEES EXPENSES,100726752,13.05,
United Kingdom Atomic energy Authority,United Kingdom Atomic energy Authority,05/06/2014,ROAD TRAVEL,63608,SUPPORT SERVICES,EMPLOYEES EXPENSES,100726752,10.83,
United Kingdom Atomic energy Authority,United Kingdom Atomic energy Authority,05/06/2014,SUBSISTENCE,63602,SUPPORT SERVICES,EMPLOYEES EXPENSES,100726753,6.05,
United Kingdom Atomic energy Authority,United Kingdom Atomic energy Authority,05/06/2014,MILEAGE ALLOWANCE,63602,SUPPORT SERVICES,EMPLOYEES EXPENSES,100726753,7.2,
United Kingdom Atomic energy Authority,United Kingdom Atomic energy Authority,05/06/2014,ROAD TRAVEL,63602,SUPPORT SERVICES,EMPLOYEES EXPENSES,100726753,5.42,
United Kingdom Atomic energy Authority,United Kingdom Atomic energy Authority,05/06/2014,SUBSISTENCE,25700,FUSION,EMPLOYEES EXPENSES,100726754,393.81,
United Kingdom Atomic energy Authority,United Kingdom Atomic energy Authority,05/06/2014,RAIL TRAVEL,25700,FUSION,EMPLOYEES EXPENSES,100726754,5.41,
United Kingdom Atomic energy Authority,United Kingdom Atomic energy Authority,05/06/2014,ROAD TRAVEL,25700,FUSION,EMPLOYEES EXPENSES,100726754,12.43,
United Kingdom Atomic energy Authority,United Kingdom Atomic energy Authority,05/06/2014,SUBSISTENCE,25700,FUSION,EMPLOYEES EXPENSES,100726755,276.05,
United Kingdom Atomic energy Authority,United Kingdom Atomic energy Authority,05/06/2014,SUBSISTENCE,25700,FUSION,EMPLOYEES EXPENSES,100726755,6.45,
United Kingdom Atomic energy Authority,United Kingdom Atomic energy Authority,05/06/2014,ROAD TRAVEL,25700,FUSION,EMPLOYEES EXPENSES,100726755,26.1,
United Kingdom Atomic energy Authority,United Kingdom Atomic energy Authority,05/06/2014,ROAD TRAVEL,25700,FUSION,EMPLOYEES EXPENSES,100726755,11.84,
United Kingdom Atomic energy Authority,United Kingdom Atomic energy Authority,05/06/2014,SUBSISTENCE,23136,FUSION,EMPLOYEES EXPENSES,100726756,8.29,
United Kingdom Atomic energy Authority,United Kingdom Atomic energy Authority,05/06/2014,ROAD TRAVEL,23136,FUSION,EMPLOYEES EXPENSES,100726756,3.83,
United Kingdom Atomic energy Authority,United Kingdom Atomic energy Authority,05/06/2014,SUBSISTENCE,23136,FUSION,EMPLOYEES EXPENSES,100726757,72.98,
United Kingdom Atomic energy Authority,United Kingdom Atomic energy Authority,05/06/2014,ROAD TRAVEL,23136,FUSION,EMPLOYEES EXPENSES,100726757,43.3,
United Kingdom Atomic energy Authority,United Kingdom Atomic energy Authority,05/06/2014,SUBSISTENCE,23136,FUSION,EMPLOYEES EXPENSES,100726758,4.79,
United Kingdom Atomic energy Authority,United Kingdom Atomic energy Authority,05/06/2014,ROAD TRAVEL,23136,FUSION,EMPLOYEES EXPENSES,100726758,3.83,
United Kingdom Atomic energy Authority,United Kingdom Atomic energy Authority,05/06/2014,RAIL TRAVEL,28000,PROPERTY,EMPLOYEES EXPENSES,100726759,64.5,
United Kingdom Atomic energy Authority,United Kingdom Atomic energy Authority,05/06/2014,SUBSISTENCE,25838,FUSION,EMPLOYEES EXPENSES,100726760,7.8,
United Kingdom Atomic energy Authority,United Kingdom Atomic energy Authority,05/06/2014,ROAD TRAVEL,25838,FUSION,EMPLOYEES EXPENSES,100726760,5.33,
United Kingdom Atomic energy Authority,United Kingdom Atomic energy Authority,05/06/2014,ROAD TRAVEL,25838,FUSION,EMPLOYEES EXPENSES,100726761,17.23,
United Kingdom Atomic energy Authority,United Kingdom Atomic energy Authority,05/06/2014,SUBSISTENCE,25838,FUSION,EMPLOYEES EXPENSES,100726762,5,
United Kingdom Atomic energy Authority,United Kingdom Atomic energy Authority,05/06/2014,RAIL TRAVEL,25838,FUSION,EMPLOYEES EXPENSES,100726762,63.3,
United Kingdom Atomic energy Authority,United Kingdom Atomic energy Authority,05/06/2014,ROAD TRAVEL,25838,FUSION,EMPLOYEES EXPENSES,100726762,3.2,
United Kingdom Atomic energy Authority,United Kingdom Atomic energy Authority,05/06/2014,RAIL TRAVEL,25204,FUSION,EMPLOYEES EXPENSES,100726763,64.5,
United Kingdom Atomic energy Authority,United Kingdom Atomic energy Authority,05/06/2014,ROAD TRAVEL,25204,FUSION,EMPLOYEES EXPENSES,100726763,4.7,
United Kingdom Atomic energy Authority,United Kingdom Atomic energy Authority,05/06/2014,PROFESSIONAL SUBSCRIPTION,25821,FUSION,EMPLOYEES EXPENSES,100726764,233,
United Kingdom Atomic energy Authority,United Kingdom Atomic energy Authority,05/06/2014,SUBSISTENCE,26000,,EMPLOYEES EXPENSES,100726765,81.74,
United Kingdom Atomic energy Authority,United Kingdom Atomic energy Authority,05/06/2014,RAIL TRAVEL,26000,,EMPLOYEES EXPENSES,100726765,73.84,
United Kingdom Atomic energy Authority,United Kingdom Atomic energy Authority,05/06/2014,OTHER EMPLOYEE EXPENSES,26000,,EMPLOYEES EXPENSES,100726765,6.99,
United Kingdom Atomic energy Authority,United Kingdom Atomic energy Authority,05/06/2014,SUBSISTENCE,26000,,EMPLOYEES EXPENSES,100726766,126.3,
United Kingdom Atomic energy Authority,United Kingdom Atomic energy Authority,05/06/2014,SUBSISTENCE,26000,,EMPLOYEES EXPENSES,100726766,1.62,
United Kingdom Atomic energy Authority,United Kingdom Atomic energy Authority,05/06/2014,RAIL TRAVEL,26000,,EMPLOYEES EXPENSES,100726766,14.19,
United Kingdom Atomic energy Authority,United Kingdom Atomic energy Authority,05/06/2014,OTHER EMPLOYEE EXPENSES,26000,,EMPLOYEES EXPENSES,100726766,21.64,
United Kingdom Atomic energy Authority,United Kingdom Atomic energy Authority,05/06/2014,RAIL TRAVEL,21033,SUPPORT SERVICES,EMPLOYEES EXPENSES,100726767,33,
United Kingdom Atomic energy Authority,United Kingdom Atomic energy Authority,05/06/2014,ROAD TRAVEL,21033,SUPPORT SERVICES,EMPLOYEES EXPENSES,100726767,8.4,
United Kingdom Atomic energy Authority,United Kingdom Atomic energy Authority,05/06/2014,SUBSISTENCE,25501,FUSION,EMPLOYEES EXPENSES,100726768,304.85,
United Kingdom Atomic energy Authority,United Kingdom Atomic energy Authority,05/06/2014,SUBSISTENCE,25501,FUSION,EMPLOYEES EXPENSES,100726768,23.42,
United Kingdom Atomic energy Authority,United Kingdom Atomic energy Authority,05/06/2014,RAIL TRAVEL,25501,FUSION,EMPLOYEES EXPENSES,100726768,69.2,
United Kingdom Atomic energy Authority,United Kingdom Atomic energy Authority,07/06/2014,SUBSISTENCE,26000,,EMPLOYEES EXPENSES,100726777,187.44,
United Kingdom Atomic energy Authority,United Kingdom Atomic energy Authority,07/06/2014,ROAD TRAVEL,26000,,EMPLOYEES EXPENSES,100726777,9.1,
United Kingdom Atomic energy Authority,United Kingdom Atomic energy Authority,07/06/2014,SUBSISTENCE,29060,FUSION,EMPLOYEES EXPENSES,100726778,144.02,
United Kingdom Atomic energy Authority,United Kingdom Atomic energy Authority,07/06/2014,RAIL TRAVEL,29060,FUSION,EMPLOYEES EXPENSES,100726778,5.19,
United Kingdom Atomic energy Authority,United Kingdom Atomic energy Authority,07/06/2014,TAXIS,29060,FUSION,EMPLOYEES EXPENSES,100726779,67.26,
United Kingdom Atomic energy Authority,United Kingdom Atomic energy Authority,07/06/2014,SUBSISTENCE,29060,FUSION,EMPLOYEES EXPENSES,100726779,95.3,
United Kingdom Atomic energy Authority,United Kingdom Atomic energy Authority,07/06/2014,SUBSISTENCE,29060,FUSION,EMPLOYEES EXPENSES,100726779,130.37,
United Kingdom Atomic energy Authority,United Kingdom Atomic energy Authority,07/06/2014,OTHER EMPLOYEE EXPENSES,29060,FUSION,EMPLOYEES EXPENSES,100726779,3,
United Kingdom Atomic energy Authority,United Kingdom Atomic energy Authority,07/06/2014,SUBSISTENCE,26000,,EMPLOYEES EXPENSES,100726780,640.71,
United Kingdom Atomic energy Authority,United Kingdom Atomic energy Authority,07/06/2014,RAIL TRAVEL,26000,,EMPLOYEES EXPENSES,100726780,38.52,
United Kingdom Atomic energy Authority,United Kingdom Atomic energy Authority,07/06/2014,TAXIS,25700,FUSION,EMPLOYEES EXPENSES,100726781,42,
United Kingdom Atomic energy Authority,United Kingdom Atomic energy Authority,07/06/2014,SUBSISTENCE,25700,FUSION,EMPLOYEES EXPENSES,100726781,30,
United Kingdom Atomic energy Authority,United Kingdom Atomic energy Authority,07/06/2014,SUBSISTENCE,25700,FUSION,EMPLOYEES EXPENSES,100726781,8.46,
United Kingdom Atomic energy Authority,United Kingdom Atomic energy Authority,07/06/2014,ROAD TRAVEL,25700,FUSION,EMPLOYEES EXPENSES,100726781,29,
United Kingdom Atomic energy Authority,United Kingdom Atomic energy Authority,07/06/2014,SUBSISTENCE,21032,SUPPORT SERVICES,EMPLOYEES EXPENSES,100726782,3.33,
United Kingdom Atomic energy Authority,United Kingdom Atomic energy Authority,07/06/2014,ROAD TRAVEL,21032,SUPPORT SERVICES,EMPLOYEES EXPENSES,100726782,2.33,
United Kingdom Atomic energy Authority,United Kingdom Atomic energy Authority,07/06/2014,EFDA TRAVEL EXPENSES,26900,,EMPLOYEES EXPENSES,100726783,436.5,
United Kingdom Atomic energy Authority,United Kingdom Atomic energy Authority,07/06/2014,EFDA TRAVEL EXPENSES,26900,,EMPLOYEES EXPENSES,100726784,129,
United Kingdom Atomic energy Authority,United Kingdom Atomic energy Authority,07/06/2014,SUBSISTENCE,25838,FUSION,EMPLOYEES EXPENSES,100726785,183.54,
United Kingdom Atomic energy Authority,United Kingdom Atomic energy Authority,07/06/2014,ROAD TRAVEL,25838,FUSION,EMPLOYEES EXPENSES,100726785,26,
United Kingdom Atomic energy Authority,United Kingdom Atomic energy Authority,07/06/2014,ROAD TRAVEL,25838,FUSION,EMPLOYEES EXPENSES,100726785,20.71,
United Kingdom Atomic energy Authority,United Kingdom Atomic energy Authority,07/06/2014,MILEAGE ALLOWANCE,23119,FUSION,EMPLOYEES EXPENSES,100726786,66.6,
United Kingdom Atomic energy Authority,United Kingdom Atomic energy Authority,07/06/2014,RAIL TRAVEL,63523,SUPPORT SERVICES,EMPLOYEES EXPENSES,100726787,26.7,
United Kingdom Atomic energy Authority,United Kingdom Atomic energy Authority,07/06/2014,SUBSISTENCE,25103,FUSION,EMPLOYEES EXPENSES,100726788,2,
United Kingdom Atomic energy Authority,United Kingdom Atomic energy Authority,07/06/2014,SUBSISTENCE,25103,FUSION,EMPLOYEES EXPENSES,100726788,0.83,
United Kingdom Atomic energy Authority,United Kingdom Atomic energy Authority,07/06/2014,ROAD TRAVEL,25103,FUSION,EMPLOYEES EXPENSES,100726788,25.28,
United Kingdom Atomic energy Authority,United Kingdom Atomic energy Authority,07/06/2014,PROFESSIONAL SUBSCRIPTION,23127,FUSION,EMPLOYEES EXPENSES,100726789,166.3,
United Kingdom Atomic energy Authority,United Kingdom Atomic energy Authority,07/06/2014,TAXIS,63602,SUPPORT SERVICES,EMPLOYEES EXPENSES,100726790,9,
United Kingdom Atomic energy Authority,United Kingdom Atomic energy Authority,07/06/2014,SUBSISTENCE,63602,SUPPORT SERVICES,EMPLOYEES EXPENSES,100726790,1.42,
United Kingdom Atomic energy Authority,United Kingdom Atomic energy Authority,07/06/2014,RAIL TRAVEL,63602,SUPPORT SERVICES,EMPLOYEES EXPENSES,100726790,38.5,
United Kingdom Atomic energy Authority,United Kingdom Atomic energy Authority,07/06/2014,TAXIS,29200,FUSION,EMPLOYEES EXPENSES,100726791,7.1,
United Kingdom Atomic energy Authority,United Kingdom Atomic energy Authority,07/06/2014,SUBSISTENCE,29200,FUSION,EMPLOYEES EXPENSES,100726791,6.98,
United Kingdom Atomic energy Authority,United Kingdom Atomic energy Authority,07/06/2014,RAIL TRAVEL,29200,FUSION,EMPLOYEES EXPENSES,100726791,150.5,
United Kingdom Atomic energy Authority,United Kingdom Atomic energy Authority,07/06/2014,ROAD TRAVEL,29200,FUSION,EMPLOYEES EXPENSES,100726791,6.6,
United Kingdom Atomic energy Authority,United Kingdom Atomic energy Authority,07/06/2014,SUBSISTENCE,29200,FUSION,EMPLOYEES EXPENSES,100726792,22.15,
United Kingdom Atomic energy Authority,United Kingdom Atomic energy Authority,07/06/2014,SUBSISTENCE,29200,FUSION,EMPLOYEES EXPENSES,100726792,100.95,
United Kingdom Atomic energy Authority,United Kingdom Atomic energy Authority,07/06/2014,MILEAGE ALLOWANCE,29200,FUSION,EMPLOYEES EXPENSES,100726792,238.95,
United Kingdom Atomic energy Authority,United Kingdom Atomic energy Authority,07/06/2014,OTHER EMPLOYEE EXPENSES,29200,FUSION,EMPLOYEES EXPENSES,100726792,3,
United Kingdom Atomic energy Authority,United Kingdom Atomic energy Authority,07/06/2014,SUBSISTENCE,29200,FUSION,EMPLOYEES EXPENSES,100726793,28.25,
United Kingdom Atomic energy Authority,United Kingdom Atomic energy Authority,07/06/2014,SUBSISTENCE,29200,FUSION,EMPLOYEES EXPENSES,100726793,81.37,
United Kingdom Atomic energy Authority,United Kingdom Atomic energy Authority,07/06/2014,MILEAGE ALLOWANCE,29200,FUSION,EMPLOYEES EXPENSES,100726793,234,
United Kingdom Atomic energy Authority,United Kingdom Atomic energy Authority,07/06/2014,OTHER EMPLOYEE EXPENSES,29200,FUSION,EMPLOYEES EXPENSES,100726793,2.5,
United Kingdom Atomic energy Authority,United Kingdom Atomic energy Authority,07/06/2014,SUBSISTENCE,23150,FUSION,EMPLOYEES EXPENSES,100726794,10,
United Kingdom Atomic energy Authority,United Kingdom Atomic energy Authority,07/06/2014,SUBSISTENCE,23150,FUSION,EMPLOYEES EXPENSES,100726794,153.33,
United Kingdom Atomic energy Authority,United Kingdom Atomic energy Authority,07/06/2014,SUBSISTENCE,26000,,EMPLOYEES EXPENSES,100726795,817.27,
United Kingdom Atomic energy Authority,United Kingdom Atomic energy Authority,07/06/2014,MILEAGE ALLOWANCE,26000,,EMPLOYEES EXPENSES,100726795,46.8,
United Kingdom Atomic energy Authority,United Kingdom Atomic energy Authority,07/06/2014,RAIL TRAVEL,26000,,EMPLOYEES EXPENSES,100726795,150.98,
United Kingdom Atomic energy Authority,United Kingdom Atomic energy Authority,07/06/2014,ROAD TRAVEL,26000,,EMPLOYEES EXPENSES,100726795,20.54,
United Kingdom Atomic energy Authority,United Kingdom Atomic energy Authority,07/06/2014,SUBSISTENCE,23150,FUSION,EMPLOYEES EXPENSES,100726796,10,
United Kingdom Atomic energy Authority,United Kingdom Atomic energy Authority,07/06/2014,SUBSISTENCE,23150,FUSION,EMPLOYEES EXPENSES,100726796,159.67,
United Kingdom Atomic energy Authority,United Kingdom Atomic energy Authority,14/06/2014,MILEAGE ALLOWANCE,29030,FUSION,EMPLOYEES EXPENSES,100726834,7.2,
United Kingdom Atomic energy Authority,United Kingdom Atomic energy Authority,14/06/2014,SUBSISTENCE,26000,,EMPLOYEES EXPENSES,100726835,3.95,
United Kingdom Atomic energy Authority,United Kingdom Atomic energy Authority,14/06/2014,SUBSISTENCE,26000,,EMPLOYEES EXPENSES,100726835,5.33,
United Kingdom Atomic energy Authority,United Kingdom Atomic energy Authority,14/06/2014,MILEAGE ALLOWANCE,26000,,EMPLOYEES EXPENSES,100726835,54,
United Kingdom Atomic energy Authority,United Kingdom Atomic energy Authority,14/06/2014,SUBSISTENCE,26000,,EMPLOYEES EXPENSES,100726836,2,
United Kingdom Atomic energy Authority,United Kingdom Atomic energy Authority,14/06/2014,SUBSISTENCE,26000,,EMPLOYEES EXPENSES,100726836,6.92,
United Kingdom Atomic energy Authority,United Kingdom Atomic energy Authority,14/06/2014,MILEAGE ALLOWANCE,26000,,EMPLOYEES EXPENSES,100726836,54,
United Kingdom Atomic energy Authority,United Kingdom Atomic energy Authority,14/06/2014,PROFESSIONAL SUBSCRIPTION,21033,SUPPORT SERVICES,EMPLOYEES EXPENSES,100726837,97,
United Kingdom Atomic energy Authority,United Kingdom Atomic energy Authority,14/06/2014,RAIL TRAVEL,63605,SUPPORT SERVICES,EMPLOYEES EXPENSES,100726838,4.2,
United Kingdom Atomic energy Authority,United Kingdom Atomic energy Authority,14/06/2014,ROAD TRAVEL,63605,SUPPORT SERVICES,EMPLOYEES EXPENSES,100726838,2,
United Kingdom Atomic energy Authority,United Kingdom Atomic energy Authority,14/06/2014,MILEAGE ALLOWANCE,63602,SUPPORT SERVICES,EMPLOYEES EXPENSES,100726839,27.9,
United Kingdom Atomic energy Authority,United Kingdom Atomic energy Authority,14/06/2014,ROAD TRAVEL,63602,SUPPORT SERVICES,EMPLOYEES EXPENSES,100726839,2.5,
United Kingdom Atomic energy Authority,United Kingdom Atomic energy Authority,14/06/2014,SUBSISTENCE,25103,FUSION,EMPLOYEES EXPENSES,100726840,11.28,
United Kingdom Atomic energy Authority,United Kingdom Atomic energy Authority,14/06/2014,ROAD TRAVEL,25103,FUSION,EMPLOYEES EXPENSES,100726840,55.03,
United Kingdom Atomic energy Authority,United Kingdom Atomic energy Authority,14/06/2014,SUBSISTENCE,25501,FUSION,EMPLOYEES EXPENSES,100726841,10,
United Kingdom Atomic energy Authority,United Kingdom Atomic energy Authority,14/06/2014,SUBSISTENCE,25501,FUSION,EMPLOYEES EXPENSES,100726841,188.42,
United Kingdom Atomic energy Authority,United Kingdom Atomic energy Authority,14/06/2014,RAIL TRAVEL,25501,FUSION,EMPLOYEES EXPENSES,100726841,47.2,
United Kingdom Atomic energy Authority,United Kingdom Atomic energy Authority,14/06/2014,SUBSISTENCE,25502,FUSION,EMPLOYEES EXPENSES,100726842,5,
United Kingdom Atomic energy Authority,United Kingdom Atomic energy Authority,14/06/2014,SUBSISTENCE,25502,FUSION,EMPLOYEES EXPENSES,100726842,99.16,
United Kingdom Atomic energy Authority,United Kingdom Atomic energy Authority,14/06/2014,MILEAGE ALLOWANCE,25502,FUSION,EMPLOYEES EXPENSES,100726842,114.75,
United Kingdom Atomic energy Authority,United Kingdom Atomic energy Authority,14/06/2014,TAXIS,25502,FUSION,EMPLOYEES EXPENSES,100726843,100.2,
United Kingdom Atomic energy Authority,United Kingdom Atomic energy Authority,14/06/2014,SUBSISTENCE,25502,FUSION,EMPLOYEES EXPENSES,100726843,238.31,
United Kingdom Atomic energy Authority,United Kingdom Atomic energy Authority,14/06/2014,SUBSISTENCE,25502,FUSION,EMPLOYEES EXPENSES,100726843,3.16,
United Kingdom Atomic energy Authority,United Kingdom Atomic energy Authority,14/06/2014,MILEAGE ALLOWANCE,25502,FUSION,EMPLOYEES EXPENSES,100726843,18,
United Kingdom Atomic energy Authority,United Kingdom Atomic energy Authority,14/06/2014,ROAD TRAVEL,25502,FUSION,EMPLOYEES EXPENSES,100726843,29,
United Kingdom Atomic energy Authority,United Kingdom Atomic energy Authority,14/06/2014,SUBSISTENCE,23151,FUSION,EMPLOYEES EXPENSES,100726844,10,
United Kingdom Atomic energy Authority,United Kingdom Atomic energy Authority,14/06/2014,SUBSISTENCE,23151,FUSION,EMPLOYEES EXPENSES,100726844,186.86,
United Kingdom Atomic energy Authority,United Kingdom Atomic energy Authority,14/06/2014,ROAD TRAVEL,23151,FUSION,EMPLOYEES EXPENSES,100726844,4.58,
United Kingdom Atomic energy Authority,United Kingdom Atomic energy Authority,14/06/2014,TAXIS,25205,FUSION,EMPLOYEES EXPENSES,100726845,36.73,
United Kingdom Atomic energy Authority,United Kingdom Atomic energy Authority,14/06/2014,SUBSISTENCE,25205,FUSION,EMPLOYEES EXPENSES,100726845,206.96,
United Kingdom Atomic energy Authority,United Kingdom Atomic energy Authority,14/06/2014,SUBSISTENCE,25205,FUSION,EMPLOYEES EXPENSES,100726845,11.92,
United Kingdom Atomic energy Authority,United Kingdom Atomic energy Authority,14/06/2014,RAIL TRAVEL,25205,FUSION,EMPLOYEES EXPENSES,100726845,4.24,
United Kingdom Atomic energy Authority,United Kingdom Atomic energy Authority,14/06/2014,SUBSISTENCE,25700,FUSION,EMPLOYEES EXPENSES,100726846,5.96,
United Kingdom Atomic energy Authority,United Kingdom Atomic energy Authority,14/06/2014,MILEAGE ALLOWANCE,25700,FUSION,EMPLOYEES EXPENSES,100726846,9,
United Kingdom Atomic energy Authority,United Kingdom Atomic energy Authority,14/06/2014,ROAD TRAVEL,25700,FUSION,EMPLOYEES EXPENSES,100726846,4.8,
United Kingdom Atomic energy Authority,United Kingdom Atomic energy Authority,14/06/2014,ROAD TRAVEL,25700,FUSION,EMPLOYEES EXPENSES,100726846,3.33,
United Kingdom Atomic energy Authority,United Kingdom Atomic energy Authority,14/06/2014,SUBSISTENCE,25402,FUSION,EMPLOYEES EXPENSES,100726847,180,
United Kingdom Atomic energy Authority,United Kingdom Atomic energy Authority,14/06/2014,CAR HIRE,26000,,EMPLOYEES EXPENSES,100726847,312,
United Kingdom Atomic energy Authority,United Kingdom Atomic energy Authority,14/06/2014,SUBSISTENCE,26000,,EMPLOYEES EXPENSES,100726847,2079.5,
United Kingdom Atomic energy Authority,United Kingdom Atomic energy Authority,14/06/2014,SUBSISTENCE,26000,,EMPLOYEES EXPENSES,100726847,13.96,
United Kingdom Atomic energy Authority,United Kingdom Atomic energy Authority,14/06/2014,ROAD TRAVEL,26000,,EMPLOYEES EXPENSES,100726847,43.81,
United Kingdom Atomic energy Authority,United Kingdom Atomic energy Authority,14/06/2014,OTHER EMPLOYEE EXPENSES,26000,,EMPLOYEES EXPENSES,100726847,64.36,
United Kingdom Atomic energy Authority,United Kingdom Atomic energy Authority,14/06/2014,EFDA TRAVEL EXPENSES,23700,FUSION,EMPLOYEES EXPENSES,100726848,168.64,
United Kingdom Atomic energy Authority,United Kingdom Atomic energy Authority,14/06/2014,SUBSISTENCE,23166,FUSION,EMPLOYEES EXPENSES,100726849,10,
United Kingdom Atomic energy Authority,United Kingdom Atomic energy Authority,14/06/2014,SUBSISTENCE,23166,FUSION,EMPLOYEES EXPENSES,100726849,166.67,
United Kingdom Atomic energy Authority,United Kingdom Atomic energy Authority,14/06/2014,ROAD TRAVEL,23166,FUSION,EMPLOYEES EXPENSES,100726849,5.5,
United Kingdom Atomic energy Authority,United Kingdom Atomic energy Authority,14/06/2014,ROAD TRAVEL,23166,FUSION,EMPLOYEES EXPENSES,100726849,39.95,
United Kingdom Atomic energy Authority,United Kingdom Atomic energy Authority,14/06/2014,SUBSISTENCE,25103,FUSION,EMPLOYEES EXPENSES,100726850,5.08,
United Kingdom Atomic energy Authority,United Kingdom Atomic energy Authority,14/06/2014,SUBSISTENCE,25103,FUSION,EMPLOYEES EXPENSES,100726850,5.42,
United Kingdom Atomic energy Authority,United Kingdom Atomic energy Authority,14/06/2014,ROAD TRAVEL,25103,FUSION,EMPLOYEES EXPENSES,100726850,34.69,
United Kingdom Atomic energy Authority,United Kingdom Atomic energy Authority,14/06/2014,SUBSISTENCE,24501,FUSION,EMPLOYEES EXPENSES,100726851,2.7,
United Kingdom Atomic energy Authority,United Kingdom Atomic energy Authority,14/06/2014,SUBSISTENCE,24501,FUSION,EMPLOYEES EXPENSES,100726851,2.79,
United Kingdom Atomic energy Authority,United Kingdom Atomic energy Authority,14/06/2014,MILEAGE ALLOWANCE,24501,FUSION,EMPLOYEES EXPENSES,100726851,58.5,
United Kingdom Atomic energy Authority,United Kingdom Atomic energy Authority,14/06/2014,TAXIS,25404,FUSION,EMPLOYEES EXPENSES,100726852,19.99,
United Kingdom Atomic energy Authority,United Kingdom Atomic energy Authority,14/06/2014,SUBSISTENCE,25404,FUSION,EMPLOYEES EXPENSES,100726852,763.89,
United Kingdom Atomic energy Authority,United Kingdom Atomic energy Authority,14/06/2014,RAIL TRAVEL,25404,FUSION,EMPLOYEES EXPENSES,100726852,205.17,
United Kingdom Atomic energy Authority,United Kingdom Atomic energy Authority,14/06/2014,OTHER EMPLOYEE EXPENSES,25404,FUSION,EMPLOYEES EXPENSES,100726852,121.96,
United Kingdom Atomic energy Authority,United Kingdom Atomic energy Authority,14/06/2014,PROFESSIONAL SUBSCRIPTION,23127,FUSION,EMPLOYEES EXPENSES,100726853,137,
United Kingdom Atomic energy Authority,United Kingdom Atomic energy Authority,14/06/2014,PROFESSIONAL SUBSCRIPTION,25402,FUSION,EMPLOYEES EXPENSES,100726854,68,
United Kingdom Atomic energy Authority,United Kingdom Atomic energy Authority,14/06/2014,SUBSISTENCE,21032,SUPPORT SERVICES,EMPLOYEES EXPENSES,100726855,3.83,
United Kingdom Atomic energy Authority,United Kingdom Atomic energy Authority,14/06/2014,MILEAGE ALLOWANCE,21032,SUPPORT SERVICES,EMPLOYEES EXPENSES,100726855,46.8,
United Kingdom Atomic energy Authority,United Kingdom Atomic energy Authority,14/06/2014,ROAD TRAVEL,21032,SUPPORT SERVICES,EMPLOYEES EXPENSES,100726855,7.7,
United Kingdom Atomic energy Authority,United Kingdom Atomic energy Authority,14/06/2014,RAIL TRAVEL,25839,FUSION,EMPLOYEES EXPENSES,100726856,64.5,
United Kingdom Atomic energy Authority,United Kingdom Atomic energy Authority,14/06/2014,MILEAGE ALLOWANCE,63523,SUPPORT SERVICES,EMPLOYEES EXPENSES,100726857,36,
United Kingdom Atomic energy Authority,United Kingdom Atomic energy Authority,14/06/2014,SUBSISTENCE,25700,FUSION,EMPLOYEES EXPENSES,100726858,549.27,
United Kingdom Atomic energy Authority,United Kingdom Atomic energy Authority,14/06/2014,SUBSISTENCE,25700,FUSION,EMPLOYEES EXPENSES,100726858,2.83,
United Kingdom Atomic energy Authority,United Kingdom Atomic energy Authority,14/06/2014,ROAD TRAVEL,25700,FUSION,EMPLOYEES EXPENSES,100726858,14.54,
United Kingdom Atomic energy Authority,United Kingdom Atomic energy Authority,14/06/2014,OTHER EMPLOYEE EXPENSES,25700,FUSION,EMPLOYEES EXPENSES,100726858,10.23,
United Kingdom Atomic energy Authority,United Kingdom Atomic energy Authority,14/06/2014,PROFESSIONAL SUBSCRIPTION,25821,FUSION,EMPLOYEES EXPENSES,100726859,93,
United Kingdom Atomic energy Authority,United Kingdom Atomic energy Authority,14/06/2014,SUBSISTENCE,29001,FUSION,EMPLOYEES EXPENSES,100726860,12.62,
United Kingdom Atomic energy Authority,United Kingdom Atomic energy Authority,14/06/2014,ROAD TRAVEL,29001,FUSION,EMPLOYEES EXPENSES,100726860,9.17,
United Kingdom Atomic energy Authority,United Kingdom Atomic energy Authority,14/06/2014,TAXIS,29001,FUSION,EMPLOYEES EXPENSES,100726861,30.33,
United Kingdom Atomic energy Authority,United Kingdom Atomic energy Authority,14/06/2014,SUBSISTENCE,29001,FUSION,EMPLOYEES EXPENSES,100726861,141.53,
United Kingdom Atomic energy Authority,United Kingdom Atomic energy Authority,14/06/2014,OTHER EMPLOYEE EXPENSES,29001,FUSION,EMPLOYEES EXPENSES,100726861,3,
United Kingdom Atomic energy Authority,United Kingdom Atomic energy Authority,14/06/2014,SUBSISTENCE,29001,FUSION,EMPLOYEES EXPENSES,100726862,6.47,
United Kingdom Atomic energy Authority,United Kingdom Atomic energy Authority,14/06/2014,PROFESSIONAL SUBSCRIPTION,25501,FUSION,EMPLOYEES EXPENSES,100726863,93,
United Kingdom Atomic energy Authority,United Kingdom Atomic energy Authority,14/06/2014,PROFESSIONAL SUBSCRIPTION,25501,FUSION,EMPLOYEES EXPENSES,100726864,44.5,
United Kingdom Atomic energy Authority,United Kingdom Atomic energy Authority,14/06/2014,SUBSISTENCE,25205,FUSION,EMPLOYEES EXPENSES,100726865,96.38,
United Kingdom Atomic energy Authority,United Kingdom Atomic energy Authority,14/06/2014,RAIL TRAVEL,25205,FUSION,EMPLOYEES EXPENSES,100726865,15.42,
United Kingdom Atomic energy Authority,United Kingdom Atomic energy Authority,14/06/2014,ROAD TRAVEL,25205,FUSION,EMPLOYEES EXPENSES,100726865,26,
United Kingdom Atomic energy Authority,United Kingdom Atomic energy Authority,14/06/2014,SUBSISTENCE,25700,FUSION,EMPLOYEES EXPENSES,100726866,560.15,
United Kingdom Atomic energy Authority,United Kingdom Atomic energy Authority,14/06/2014,ROAD TRAVEL,25700,FUSION,EMPLOYEES EXPENSES,100726866,14.06,
United Kingdom Atomic energy Authority,United Kingdom Atomic energy Authority,14/06/2014,SUBSISTENCE,23150,FUSION,EMPLOYEES EXPENSES,100726867,10,
United Kingdom Atomic energy Authority,United Kingdom Atomic energy Authority,14/06/2014,SUBSISTENCE,23150,FUSION,EMPLOYEES EXPENSES,100726867,153.33,
United Kingdom Atomic energy Authority,United Kingdom Atomic energy Authority,14/06/2014,PROFESSIONAL SUBSCRIPTION,25821,FUSION,EMPLOYEES EXPENSES,100726868,202.5,
United Kingdom Atomic energy Authority,United Kingdom Atomic energy Authority,14/06/2014,PROFESSIONAL SUBSCRIPTION,25821,FUSION,EMPLOYEES EXPENSES,100726869,137,
United Kingdom Atomic energy Authority,United Kingdom Atomic energy Authority,18/06/2014,TRAINING COURSE FEES,25501,FUSION,PURCHASE CARDS,100726872,1550,
United Kingdom Atomic energy Authority,United Kingdom Atomic energy Authority,18/06/2014,BOOKS & PUBLICATIONS,25821,FUSION,PURCHASE CARDS,100726877,1354.92,
United Kingdom Atomic energy Authority,United Kingdom Atomic energy Authority,18/06/2014,OTHER EXTERNAL COSTS,23102,FUSION,PURCHASE CARDS,100726879,749.85,
United Kingdom Atomic energy Authority,United Kingdom Atomic energy Authority,18/06/2014,OTHER EXTERNAL COSTS,23102,FUSION,PURCHASE CARDS,100726879,780,
United Kingdom Atomic energy Authority,United Kingdom Atomic energy Authority,18/06/2014,OTHER EXTERNAL COSTS,23103,FUSION,PURCHASE CARDS,100726879,504,
United Kingdom Atomic energy Authority,United Kingdom Atomic energy Authority,18/06/2014,OTHER EXTERNAL COSTS,23105,FUSION,PURCHASE CARDS,100726879,564.74,
United Kingdom Atomic energy Authority,United Kingdom Atomic energy Authority,18/06/2014,OTHER EXTERNAL COSTS,23617,FUSION,PURCHASE CARDS,100726879,864.85,
United Kingdom Atomic energy Authority,United Kingdom Atomic energy Authority,18/06/2014,IT EQUIPMENT: NON CAPITAL,21034,FUSION,PURCHASE CARDS,100726885,3017.9,
United Kingdom Atomic energy Authority,United Kingdom Atomic energy Authority,18/06/2014,IT EQUIPMENT: NON CAPITAL,23134,FUSION,PURCHASE CARDS,100726885,1125.01,
United Kingdom Atomic energy Authority,United Kingdom Atomic energy Authority,18/06/2014,IT EQUIPMENT: NON CAPITAL,23137,FUSION,PURCHASE CARDS,100726885,1019.9,
United Kingdom Atomic energy Authority,United Kingdom Atomic energy Authority,18/06/2014,PLANT & EQUIPMENT,25103,FUSION,PURCHASE CARDS,100726888,4404.4,
United Kingdom Atomic energy Authority,United Kingdom Atomic energy Authority,18/06/2014,PLANT & EQUIPMENT,25103,FUSION,PURCHASE CARDS,100726888,501.21,
United Kingdom Atomic energy Authority,United Kingdom Atomic energy Authority,18/06/2014,PLANT & EQUIPMENT,23123,FUSION,PURCHASE CARDS,100726895,576.53,
United Kingdom Atomic energy Authority,United Kingdom Atomic energy Authority,18/06/2014,PLANT & EQUIPMENT,25103,FUSION,PURCHASE CARDS,100726895,2350,
United Kingdom Atomic energy Authority,United Kingdom Atomic energy Authority,18/06/2014,OTHER EXTERNAL COSTS,21032,SUPPORT SERVICES,PURCHASE CARDS,100726896,500,
United Kingdom Atomic energy Authority,United Kingdom Atomic energy Authority,18/06/2014,EXHIBITIONS,29001,FUSION,PURCHASE CARDS,100726897,848.41,
United Kingdom Atomic energy Authority,United Kingdom Atomic energy Authority,22/06/2014,MILEAGE ALLOWANCE,29030,FUSION,EMPLOYEES EXPENSES,100729228,19.8,
United Kingdom Atomic energy Authority,United Kingdom Atomic energy Authority,22/06/2014,TAXIS,25821,FUSION,EMPLOYEES EXPENSES,100729229,32.96,
United Kingdom Atomic energy Authority,United Kingdom Atomic energy Authority,22/06/2014,SUBSISTENCE,25821,FUSION,EMPLOYEES EXPENSES,100729229,173.82,
United Kingdom Atomic energy Authority,United Kingdom Atomic energy Authority,22/06/2014,SUBSISTENCE,25821,FUSION,EMPLOYEES EXPENSES,100729229,11.83,
United Kingdom Atomic energy Authority,United Kingdom Atomic energy Authority,22/06/2014,OTHER EMPLOYEE EXPENSES,25821,FUSION,EMPLOYEES EXPENSES,100729229,3.99,
United Kingdom Atomic energy Authority,United Kingdom Atomic energy Authority,22/06/2014,TAXIS,25501,FUSION,EMPLOYEES EXPENSES,100729230,8,
United Kingdom Atomic energy Authority,United Kingdom Atomic energy Authority,22/06/2014,RAIL TRAVEL,25501,FUSION,EMPLOYEES EXPENSES,100729230,27.1,
United Kingdom Atomic energy Authority,United Kingdom Atomic energy Authority,22/06/2014,SUBSISTENCE,25403,FUSION,EMPLOYEES EXPENSES,100729231,640.35,
United Kingdom Atomic energy Authority,United Kingdom Atomic energy Authority,22/06/2014,SUBSISTENCE,25403,FUSION,EMPLOYEES EXPENSES,100729231,11.67,
United Kingdom Atomic energy Authority,United Kingdom Atomic energy Authority,22/06/2014,MILEAGE ALLOWANCE,25403,FUSION,EMPLOYEES EXPENSES,100729231,54,
United Kingdom Atomic energy Authority,United Kingdom Atomic energy Authority,22/06/2014,ROAD TRAVEL,25403,FUSION,EMPLOYEES EXPENSES,100729231,37.75,
United Kingdom Atomic energy Authority,United Kingdom Atomic energy Authority,22/06/2014,ROAD TRAVEL,25403,FUSION,EMPLOYEES EXPENSES,100729231,72.17,
United Kingdom Atomic energy Authority,United Kingdom Atomic energy Authority,22/06/2014,BUSINESS ENTERTAINMENT,25403,FUSION,EMPLOYEES EXPENSES,100729231,109.5,
United Kingdom Atomic energy Authority,United Kingdom Atomic energy Authority,22/06/2014,SUBSISTENCE,63602,SUPPORT SERVICES,EMPLOYEES EXPENSES,100729232,98.75,
United Kingdom Atomic energy Authority,United Kingdom Atomic energy Authority,22/06/2014,AIR TRAVEL,63602,SUPPORT SERVICES,EMPLOYEES EXPENSES,100729232,416.5,
United Kingdom Atomic energy Authority,United Kingdom Atomic energy Authority,22/06/2014,SUBSISTENCE,25103,FUSION,EMPLOYEES EXPENSES,100729233,7.37,
United Kingdom Atomic energy Authority,United Kingdom Atomic energy Authority,22/06/2014,ROAD TRAVEL,25103,FUSION,EMPLOYEES EXPENSES,100729233,56.92,
United Kingdom Atomic energy Authority,United Kingdom Atomic energy Authority,22/06/2014,SUBSISTENCE,24501,FUSION,EMPLOYEES EXPENSES,100729234,47.85,
United Kingdom Atomic energy Authority,United Kingdom Atomic energy Authority,22/06/2014,SUBSISTENCE,24501,FUSION,EMPLOYEES EXPENSES,100729234,72.33,
United Kingdom Atomic energy Authority,United Kingdom Atomic energy Authority,22/06/2014,MILEAGE ALLOWANCE,25835,FUSION,EMPLOYEES EXPENSES,100729235,13.5,
United Kingdom Atomic energy Authority,United Kingdom Atomic energy Authority,22/06/2014,ROAD TRAVEL,25835,FUSION,EMPLOYEES EXPENSES,100729235,3.5,
United Kingdom Atomic energy Authority,United Kingdom Atomic energy Authority,22/06/2014,BUSINESS ENTERTAINMENT,25835,FUSION,EMPLOYEES EXPENSES,100729235,60.8,
United Kingdom Atomic energy Authority,United Kingdom Atomic energy Authority,22/06/2014,TAXIS,23109,FUSION,EMPLOYEES EXPENSES,100729236,21.2,
United Kingdom Atomic energy Authority,United Kingdom Atomic energy Authority,22/06/2014,SUBSISTENCE,23109,FUSION,EMPLOYEES EXPENSES,100729236,372.14,
United Kingdom Atomic energy Authority,United Kingdom Atomic energy Authority,22/06/2014,SUBSISTENCE,23109,FUSION,EMPLOYEES EXPENSES,100729236,9.96,
United Kingdom Atomic energy Authority,United Kingdom Atomic energy Authority,22/06/2014,RAIL TRAVEL,23109,FUSION,EMPLOYEES EXPENSES,100729236,11.8,
United Kingdom Atomic energy Authority,United Kingdom Atomic energy Authority,22/06/2014,RAIL TRAVEL,23109,FUSION,EMPLOYEES EXPENSES,100729236,38.58,
United Kingdom Atomic energy Authority,United Kingdom Atomic energy Authority,22/06/2014,ROAD TRAVEL,23109,FUSION,EMPLOYEES EXPENSES,100729236,26,
United Kingdom Atomic energy Authority,United Kingdom Atomic energy Authority,22/06/2014,TAXIS,25205,FUSION,EMPLOYEES EXPENSES,100729237,34.1,
United Kingdom Atomic energy Authority,United Kingdom Atomic energy Authority,22/06/2014,SUBSISTENCE,25205,FUSION,EMPLOYEES EXPENSES,100729237,356.72,
United Kingdom Atomic energy Authority,United Kingdom Atomic energy Authority,22/06/2014,ROAD TRAVEL,25205,FUSION,EMPLOYEES EXPENSES,100729237,26.1,
United Kingdom Atomic energy Authority,United Kingdom Atomic energy Authority,22/06/2014,ROAD TRAVEL,25205,FUSION,EMPLOYEES EXPENSES,100729237,4.84,
United Kingdom Atomic energy Authority,United Kingdom Atomic energy Authority,22/06/2014,OTHER EMPLOYEE EXPENSES,25205,FUSION,EMPLOYEES EXPENSES,100729237,4.06,
United Kingdom Atomic energy Authority,United Kingdom Atomic energy Authority,22/06/2014,EFDA TRAVEL EXPENSES,26900,,EMPLOYEES EXPENSES,100729238,479.05,
United Kingdom Atomic energy Authority,United Kingdom Atomic energy Authority,22/06/2014,SUBSISTENCE,23151,FUSION,EMPLOYEES EXPENSES,100729239,31.6,
United Kingdom Atomic energy Authority,United Kingdom Atomic energy Authority,22/06/2014,SUBSISTENCE,23151,FUSION,EMPLOYEES EXPENSES,100729239,174.27,
United Kingdom Atomic energy Authority,United Kingdom Atomic energy Authority,22/06/2014,SUBSISTENCE,26000,,EMPLOYEES EXPENSES,100729240,448.86,
United Kingdom Atomic energy Authority,United Kingdom Atomic energy Authority,22/06/2014,SUBSISTENCE,26000,,EMPLOYEES EXPENSES,100729240,3.16,
United Kingdom Atomic energy Authority,United Kingdom Atomic energy Authority,22/06/2014,RAIL TRAVEL,26000,,EMPLOYEES EXPENSES,100729240,20.91,
United Kingdom Atomic energy Authority,United Kingdom Atomic energy Authority,22/06/2014,ROAD TRAVEL,26000,,EMPLOYEES EXPENSES,100729240,35.2,
United Kingdom Atomic energy Authority,United Kingdom Atomic energy Authority,22/06/2014,SUBSISTENCE,23109,FUSION,EMPLOYEES EXPENSES,100729241,15,
United Kingdom Atomic energy Authority,United Kingdom Atomic energy Authority,22/06/2014,SUBSISTENCE,23109,FUSION,EMPLOYEES EXPENSES,100729241,203.91,
United Kingdom Atomic energy Authority,United Kingdom Atomic energy Authority,22/06/2014,RAIL TRAVEL,23109,FUSION,EMPLOYEES EXPENSES,100729241,31.4,
United Kingdom Atomic energy Authority,United Kingdom Atomic energy Authority,22/06/2014,ROAD TRAVEL,23109,FUSION,EMPLOYEES EXPENSES,100729241,3.1,
United Kingdom Atomic energy Authority,United Kingdom Atomic energy Authority,22/06/2014,SUBSISTENCE,24501,FUSION,EMPLOYEES EXPENSES,100729242,5,
United Kingdom Atomic energy Authority,United Kingdom Atomic energy Authority,22/06/2014,SUBSISTENCE,24501,FUSION,EMPLOYEES EXPENSES,100729242,60.37,
United Kingdom Atomic energy Authority,United Kingdom Atomic energy Authority,22/06/2014,RAIL TRAVEL,24501,FUSION,EMPLOYEES EXPENSES,100729243,20.4,
United Kingdom Atomic energy Authority,United Kingdom Atomic energy Authority,22/06/2014,OTHER EMPLOYEE EXPENSES,24501,FUSION,EMPLOYEES EXPENSES,100729243,100,
United Kingdom Atomic energy Authority,United Kingdom Atomic energy Authority,22/06/2014,MILEAGE ALLOWANCE,29060,FUSION,EMPLOYEES EXPENSES,100729244,45.9,
United Kingdom Atomic energy Authority,United Kingdom Atomic energy Authority,22/06/2014,SUBSISTENCE,25403,FUSION,EMPLOYEES EXPENSES,100729245,94.71,
United Kingdom Atomic energy Authority,United Kingdom Atomic energy Authority,22/06/2014,RAIL TRAVEL,25403,FUSION,EMPLOYEES EXPENSES,100729245,10.6,
United Kingdom Atomic energy Authority,United Kingdom Atomic energy Authority,22/06/2014,RAIL TRAVEL,25403,FUSION,EMPLOYEES EXPENSES,100729245,8.58,
United Kingdom Atomic energy Authority,United Kingdom Atomic energy Authority,22/06/2014,ROAD TRAVEL,25403,FUSION,EMPLOYEES EXPENSES,100729245,26,
United Kingdom Atomic energy Authority,United Kingdom Atomic energy Authority,22/06/2014,ROAD TRAVEL,25403,FUSION,EMPLOYEES EXPENSES,100729245,13.4,
United Kingdom Atomic energy Authority,United Kingdom Atomic energy Authority,22/06/2014,TAXIS,23124,FUSION,EMPLOYEES EXPENSES,100729246,24,
United Kingdom Atomic energy Authority,United Kingdom Atomic energy Authority,22/06/2014,SUBSISTENCE,23617,FUSION,EMPLOYEES EXPENSES,100729247,85.62,
United Kingdom Atomic energy Authority,United Kingdom Atomic energy Authority,22/06/2014,SUBSISTENCE,23151,FUSION,EMPLOYEES EXPENSES,100729248,10,
United Kingdom Atomic energy Authority,United Kingdom Atomic energy Authority,22/06/2014,SUBSISTENCE,23151,FUSION,EMPLOYEES EXPENSES,100729248,180.4,
United Kingdom Atomic energy Authority,United Kingdom Atomic energy Authority,22/06/2014,TAXIS,29001,FUSION,EMPLOYEES EXPENSES,100729249,27.45,
United Kingdom Atomic energy Authority,United Kingdom Atomic energy Authority,22/06/2014,SUBSISTENCE,29001,FUSION,EMPLOYEES EXPENSES,100729249,124.97,
United Kingdom Atomic energy Authority,United Kingdom Atomic energy Authority,22/06/2014,SUBSISTENCE,29001,FUSION,EMPLOYEES EXPENSES,100729249,5.28,
United Kingdom Atomic energy Authority,United Kingdom Atomic energy Authority,22/06/2014,RAIL TRAVEL,29001,FUSION,EMPLOYEES EXPENSES,100729249,2.51,
United Kingdom Atomic energy Authority,United Kingdom Atomic energy Authority,22/06/2014,ROAD TRAVEL,29001,FUSION,EMPLOYEES EXPENSES,100729249,4.77,
United Kingdom Atomic energy Authority,United Kingdom Atomic energy Authority,22/06/2014,SUBSISTENCE,25821,FUSION,EMPLOYEES EXPENSES,100729250,10,
United Kingdom Atomic energy Authority,United Kingdom Atomic energy Authority,22/06/2014,SUBSISTENCE,25821,FUSION,EMPLOYEES EXPENSES,100729250,142.46,
United Kingdom Atomic energy Authority,United Kingdom Atomic energy Authority,22/06/2014,RAIL TRAVEL,25821,FUSION,EMPLOYEES EXPENSES,100729250,51.66,
United Kingdom Atomic energy Authority,United Kingdom Atomic energy Authority,22/06/2014,PROFESSIONAL SUBSCRIPTION,23105,FUSION,EMPLOYEES EXPENSES,100729251,202.5,
United Kingdom Atomic energy Authority,United Kingdom Atomic energy Authority,22/06/2014,EFDA TRAVEL EXPENSES,26900,,EMPLOYEES EXPENSES,100729252,241.82,
United Kingdom Atomic energy Authority,United Kingdom Atomic energy Authority,22/06/2014,SUBSISTENCE,63602,SUPPORT SERVICES,EMPLOYEES EXPENSES,100729253,6.7,
United Kingdom Atomic energy Authority,United Kingdom Atomic energy Authority,22/06/2014,SUBSISTENCE,63602,SUPPORT SERVICES,EMPLOYEES EXPENSES,100729253,18.85,
United Kingdom Atomic energy Authority,United Kingdom Atomic energy Authority,22/06/2014,MILEAGE ALLOWANCE,63602,SUPPORT SERVICES,EMPLOYEES EXPENSES,100729253,24.27,
United Kingdom Atomic energy Authority,United Kingdom Atomic energy Authority,22/06/2014,RAIL TRAVEL,63602,SUPPORT SERVICES,EMPLOYEES EXPENSES,100729253,8.9,
United Kingdom Atomic energy Authority,United Kingdom Atomic energy Authority,22/06/2014,ROAD TRAVEL,63602,SUPPORT SERVICES,EMPLOYEES EXPENSES,100729253,6,
United Kingdom Atomic energy Authority,United Kingdom Atomic energy Authority,22/06/2014,ROAD TRAVEL,63602,SUPPORT SERVICES,EMPLOYEES EXPENSES,100729253,15.5,
United Kingdom Atomic energy Authority,United Kingdom Atomic energy Authority,22/06/2014,SUBSISTENCE,24501,FUSION,EMPLOYEES EXPENSES,100729254,37.6,
United Kingdom Atomic energy Authority,United Kingdom Atomic energy Authority,22/06/2014,SUBSISTENCE,24501,FUSION,EMPLOYEES EXPENSES,100729254,174.17,
United Kingdom Atomic energy Authority,United Kingdom Atomic energy Authority,22/06/2014,ROAD TRAVEL,24501,FUSION,EMPLOYEES EXPENSES,100729254,4.58,
United Kingdom Atomic energy Authority,United Kingdom Atomic energy Authority,22/06/2014,RAIL TRAVEL,21033,SUPPORT SERVICES,EMPLOYEES EXPENSES,100729264,19.4,
United Kingdom Atomic energy Authority,United Kingdom Atomic energy Authority,22/06/2014,ROAD TRAVEL,21033,SUPPORT SERVICES,EMPLOYEES EXPENSES,100729264,10.33,
United Kingdom Atomic energy Authority,United Kingdom Atomic energy Authority,22/06/2014,SUBSISTENCE,25500,FUSION,EMPLOYEES EXPENSES,100729265,20,
United Kingdom Atomic energy Authority,United Kingdom Atomic energy Authority,22/06/2014,ROAD TRAVEL,25500,FUSION,EMPLOYEES EXPENSES,100729265,25.1,
United Kingdom Atomic energy Authority,United Kingdom Atomic energy Authority,22/06/2014,SUBSISTENCE,26000,,EMPLOYEES EXPENSES,100729266,493.83,
United Kingdom Atomic energy Authority,United Kingdom Atomic energy Authority,22/06/2014,RAIL TRAVEL,26000,,EMPLOYEES EXPENSES,100729266,35.51,
United Kingdom Atomic energy Authority,United Kingdom Atomic energy Authority,22/06/2014,MILEAGE ALLOWANCE,63602,SUPPORT SERVICES,EMPLOYEES EXPENSES,100729267,8.64,
United Kingdom Atomic energy Authority,United Kingdom Atomic energy Authority,22/06/2014,ROAD TRAVEL,63602,SUPPORT SERVICES,EMPLOYEES EXPENSES,100729267,4.75,
United Kingdom Atomic energy Authority,United Kingdom Atomic energy Authority,22/06/2014,MILEAGE ALLOWANCE,25103,FUSION,EMPLOYEES EXPENSES,100729268,4.5,
United Kingdom Atomic energy Authority,United Kingdom Atomic energy Authority,22/06/2014,SUBSISTENCE,29001,FUSION,EMPLOYEES EXPENSES,100729269,5,
United Kingdom Atomic energy Authority,United Kingdom Atomic energy Authority,22/06/2014,SUBSISTENCE,29001,FUSION,EMPLOYEES EXPENSES,100729269,64.17,
United Kingdom Atomic energy Authority,United Kingdom Atomic energy Authority,22/06/2014,MILEAGE ALLOWANCE,29030,FUSION,EMPLOYEES EXPENSES,100729270,6.3,
United Kingdom Atomic energy Authority,United Kingdom Atomic energy Authority,22/06/2014,TAXIS,21033,SUPPORT SERVICES,EMPLOYEES EXPENSES,100729271,35,
United Kingdom Atomic energy Authority,United Kingdom Atomic energy Authority,22/06/2014,SUBSISTENCE,21033,SUPPORT SERVICES,EMPLOYEES EXPENSES,100729271,5,
United Kingdom Atomic energy Authority,United Kingdom Atomic energy Authority,22/06/2014,SUBSISTENCE,21033,SUPPORT SERVICES,EMPLOYEES EXPENSES,100729271,6.37,
United Kingdom Atomic energy Authority,United Kingdom Atomic energy Authority,22/06/2014,SUBSISTENCE,25103,FUSION,EMPLOYEES EXPENSES,100729272,6.8,
United Kingdom Atomic energy Authority,United Kingdom Atomic energy Authority,22/06/2014,SUBSISTENCE,25103,FUSION,EMPLOYEES EXPENSES,100729272,5.19,
United Kingdom Atomic energy Authority,United Kingdom Atomic energy Authority,22/06/2014,ROAD TRAVEL,25103,FUSION,EMPLOYEES EXPENSES,100729272,45.33,
United Kingdom Atomic energy Authority,United Kingdom Atomic energy Authority,22/06/2014,SUBSISTENCE,26000,,EMPLOYEES EXPENSES,100729273,773.45,
United Kingdom Atomic energy Authority,United Kingdom Atomic energy Authority,22/06/2014,RAIL TRAVEL,26000,,EMPLOYEES EXPENSES,100729273,94.06,
United Kingdom Atomic energy Authority,United Kingdom Atomic energy Authority,22/06/2014,ROAD TRAVEL,26000,,EMPLOYEES EXPENSES,100729273,23,
United Kingdom Atomic energy Authority,United Kingdom Atomic energy Authority,22/06/2014,ROAD TRAVEL,26000,,EMPLOYEES EXPENSES,100729273,4.37,
United Kingdom Atomic energy Authority,United Kingdom Atomic energy Authority,22/06/2014,PROFESSIONAL SUBSCRIPTION,21033,SUPPORT SERVICES,EMPLOYEES EXPENSES,100729274,125,
United Kingdom Atomic energy Authority,United Kingdom Atomic energy Authority,22/06/2014,PROFESSIONAL SUBSCRIPTION,25403,FUSION,EMPLOYEES EXPENSES,100729275,118,
United Kingdom Atomic energy Authority,United Kingdom Atomic energy Authority,22/06/2014,SUBSISTENCE,63523,SUPPORT SERVICES,EMPLOYEES EXPENSES,100729276,5.5,
United Kingdom Atomic energy Authority,United Kingdom Atomic energy Authority,22/06/2014,RAIL TRAVEL,63523,SUPPORT SERVICES,EMPLOYEES EXPENSES,100729276,28.7,
United Kingdom Atomic energy Authority,United Kingdom Atomic energy Authority,22/06/2014,RAIL TRAVEL,21032,SUPPORT SERVICES,EMPLOYEES EXPENSES,100729277,19.4,
United Kingdom Atomic energy Authority,United Kingdom Atomic energy Authority,22/06/2014,SUBSISTENCE,25103,FUSION,EMPLOYEES EXPENSES,100729278,7.9,
United Kingdom Atomic energy Authority,United Kingdom Atomic energy Authority,22/06/2014,SUBSISTENCE,25103,FUSION,EMPLOYEES EXPENSES,100729279,8.08,
United Kingdom Atomic energy Authority,United Kingdom Atomic energy Authority,22/06/2014,ROAD TRAVEL,21033,SUPPORT SERVICES,EMPLOYEES EXPENSES,100729280,7,
United Kingdom Atomic energy Authority,United Kingdom Atomic energy Authority,22/06/2014,ROAD TRAVEL,25501,FUSION,EMPLOYEES EXPENSES,100729281,25,
United Kingdom Atomic energy Authority,United Kingdom Atomic energy Authority,26/06/2014,MILEAGE ALLOWANCE,29030,FUSION,EMPLOYEES EXPENSES,100729318,32.4,
United Kingdom Atomic energy Authority,United Kingdom Atomic energy Authority,26/06/2014,SUBSISTENCE,26000,,EMPLOYEES EXPENSES,100729319,2,
United Kingdom Atomic energy Authority,United Kingdom Atomic energy Authority,26/06/2014,SUBSISTENCE,26000,,EMPLOYEES EXPENSES,100729319,6.75,
United Kingdom Atomic energy Authority,United Kingdom Atomic energy Authority,26/06/2014,MILEAGE ALLOWANCE,26000,,EMPLOYEES EXPENSES,100729319,54,
United Kingdom Atomic energy Authority,United Kingdom Atomic energy Authority,26/06/2014,SUBSISTENCE,63602,SUPPORT SERVICES,EMPLOYEES EXPENSES,100729320,10,
United Kingdom Atomic energy Authority,United Kingdom Atomic energy Authority,26/06/2014,TAXIS,63602,SUPPORT SERVICES,EMPLOYEES EXPENSES,100729321,31.2,
United Kingdom Atomic energy Authority,United Kingdom Atomic energy Authority,26/06/2014,RAIL TRAVEL,63602,SUPPORT SERVICES,EMPLOYEES EXPENSES,100729321,26.1,
United Kingdom Atomic energy Authority,United Kingdom Atomic energy Authority,26/06/2014,ROAD TRAVEL,63602,SUPPORT SERVICES,EMPLOYEES EXPENSES,100729321,12.33,
United Kingdom Atomic energy Authority,United Kingdom Atomic energy Authority,26/06/2014,PROFESSIONAL SUBSCRIPTION,21032,SUPPORT SERVICES,EMPLOYEES EXPENSES,100729322,162.18,
United Kingdom Atomic energy Authority,United Kingdom Atomic energy Authority,26/06/2014,SUBSISTENCE,25500,FUSION,EMPLOYEES EXPENSES,100729323,2.2,
United Kingdom Atomic energy Authority,United Kingdom Atomic energy Authority,26/06/2014,SUBSISTENCE,25500,FUSION,EMPLOYEES EXPENSES,100729323,4.04,
United Kingdom Atomic energy Authority,United Kingdom Atomic energy Authority,26/06/2014,MILEAGE ALLOWANCE,25500,FUSION,EMPLOYEES EXPENSES,100729323,13.05,
United Kingdom Atomic energy Authority,United Kingdom Atomic energy Authority,26/06/2014,ROAD TRAVEL,25500,FUSION,EMPLOYEES EXPENSES,100729323,4,
United Kingdom Atomic energy Authority,United Kingdom Atomic energy Authority,26/06/2014,ROAD TRAVEL,25500,FUSION,EMPLOYEES EXPENSES,100729324,22.7,
United Kingdom Atomic energy Authority,United Kingdom Atomic energy Authority,26/06/2014,SUBSISTENCE,26900,,EMPLOYEES EXPENSES,100729325,319.93,
United Kingdom Atomic energy Authority,United Kingdom Atomic energy Authority,26/06/2014,RAIL TRAVEL,26900,,EMPLOYEES EXPENSES,100729325,20.06,
United Kingdom Atomic energy Authority,United Kingdom Atomic energy Authority,26/06/2014,ROAD TRAVEL,26900,,EMPLOYEES EXPENSES,100729325,32.1,
United Kingdom Atomic energy Authority,United Kingdom Atomic energy Authority,26/06/2014,PROFESSIONAL SUBSCRIPTION,25702,FUSION,EMPLOYEES EXPENSES,100729326,137,
United Kingdom Atomic energy Authority,United Kingdom Atomic energy Authority,26/06/2014,TAXIS,25701,FUSION,EMPLOYEES EXPENSES,100729327,11.96,
United Kingdom Atomic energy Authority,United Kingdom Atomic energy Authority,26/06/2014,SUBSISTENCE,25701,FUSION,EMPLOYEES EXPENSES,100729327,587.7,
United Kingdom Atomic energy Authority,United Kingdom Atomic energy Authority,26/06/2014,SUBSISTENCE,25701,FUSION,EMPLOYEES EXPENSES,100729327,3.16,
United Kingdom Atomic energy Authority,United Kingdom Atomic energy Authority,26/06/2014,ROAD TRAVEL,25701,FUSION,EMPLOYEES EXPENSES,100729327,29,
United Kingdom Atomic energy Authority,United Kingdom Atomic energy Authority,26/06/2014,PROFESSIONAL SUBSCRIPTION,21033,SUPPORT SERVICES,EMPLOYEES EXPENSES,100729328,140,
United Kingdom Atomic energy Authority,United Kingdom Atomic energy Authority,26/06/2014,CAR HIRE,23120,FUSION,EMPLOYEES EXPENSES,100729329,174.12,
United Kingdom Atomic energy Authority,United Kingdom Atomic energy Authority,26/06/2014,SUBSISTENCE,23120,FUSION,EMPLOYEES EXPENSES,100729329,137.5,
United Kingdom Atomic energy Authority,United Kingdom Atomic energy Authority,26/06/2014,SUBSISTENCE,23120,FUSION,EMPLOYEES EXPENSES,100729329,9.28,
United Kingdom Atomic energy Authority,United Kingdom Atomic energy Authority,26/06/2014,ROAD TRAVEL,23120,FUSION,EMPLOYEES EXPENSES,100729329,13.39,
United Kingdom Atomic energy Authority,United Kingdom Atomic energy Authority,26/06/2014,SUBSISTENCE,25700,FUSION,EMPLOYEES EXPENSES,100729330,358.71,
United Kingdom Atomic energy Authority,United Kingdom Atomic energy Authority,26/06/2014,RAIL TRAVEL,25700,FUSION,EMPLOYEES EXPENSES,100729330,78.9,
United Kingdom Atomic energy Authority,United Kingdom Atomic energy Authority,26/06/2014,ROAD TRAVEL,25700,FUSION,EMPLOYEES EXPENSES,100729330,33.78,
United Kingdom Atomic energy Authority,United Kingdom Atomic energy Authority,26/06/2014,TAXIS,25821,FUSION,EMPLOYEES EXPENSES,100729331,21.59,
United Kingdom Atomic energy Authority,United Kingdom Atomic energy Authority,26/06/2014,SUBSISTENCE,25821,FUSION,EMPLOYEES EXPENSES,100729331,79.69,
United Kingdom Atomic energy Authority,United Kingdom Atomic energy Authority,26/06/2014,RAIL TRAVEL,25821,FUSION,EMPLOYEES EXPENSES,100729331,8.33,
United Kingdom Atomic energy Authority,United Kingdom Atomic energy Authority,26/06/2014,TAXIS,26000,,EMPLOYEES EXPENSES,100729332,12,
United Kingdom Atomic energy Authority,United Kingdom Atomic energy Authority,26/06/2014,SUBSISTENCE,26000,,EMPLOYEES EXPENSES,100729332,1748.09,
United Kingdom Atomic energy Authority,United Kingdom Atomic energy Authority,26/06/2014,SUBSISTENCE,26000,,EMPLOYEES EXPENSES,100729332,18,
United Kingdom Atomic energy Authority,United Kingdom Atomic energy Authority,26/06/2014,ROAD TRAVEL,26000,,EMPLOYEES EXPENSES,100729332,29,
United Kingdom Atomic energy Authority,United Kingdom Atomic energy Authority,26/06/2014,ROAD TRAVEL,26000,,EMPLOYEES EXPENSES,100729332,3.08,
United Kingdom Atomic energy Authority,United Kingdom Atomic energy Authority,26/06/2014,OTHER EMPLOYEE EXPENSES,26000,,EMPLOYEES EXPENSES,100729332,42.17,
United Kingdom Atomic energy Authority,United Kingdom Atomic energy Authority,26/06/2014,SUBSISTENCE,29200,FUSION,EMPLOYEES EXPENSES,100729333,5.89,
United Kingdom Atomic energy Authority,United Kingdom Atomic energy Authority,26/06/2014,SUBSISTENCE,29200,FUSION,EMPLOYEES EXPENSES,100729333,1.92,
United Kingdom Atomic energy Authority,United Kingdom Atomic energy Authority,26/06/2014,MILEAGE ALLOWANCE,29200,FUSION,EMPLOYEES EXPENSES,100729333,71.1,
United Kingdom Atomic energy Authority,United Kingdom Atomic energy Authority,26/06/2014,SUBSISTENCE,29200,FUSION,EMPLOYEES EXPENSES,100729334,5,
United Kingdom Atomic energy Authority,United Kingdom Atomic energy Authority,26/06/2014,MILEAGE ALLOWANCE,29200,FUSION,EMPLOYEES EXPENSES,100729334,88.65,
United Kingdom Atomic energy Authority,United Kingdom Atomic energy Authority,26/06/2014,SUBSISTENCE,25701,FUSION,EMPLOYEES EXPENSES,100729335,536.94,
United Kingdom Atomic energy Authority,United Kingdom Atomic energy Authority,26/06/2014,RAIL TRAVEL,25701,FUSION,EMPLOYEES EXPENSES,100729335,2.99,
United Kingdom Atomic energy Authority,United Kingdom Atomic energy Authority,26/06/2014,ROAD TRAVEL,25701,FUSION,EMPLOYEES EXPENSES,100729335,29,
United Kingdom Atomic energy Authority,United Kingdom Atomic energy Authority,28/06/2014,SUBSISTENCE,26000,,EMPLOYEES EXPENSES,100729355,960.52,
United Kingdom Atomic energy Authority,United Kingdom Atomic energy Authority,28/06/2014,RAIL TRAVEL,26000,,EMPLOYEES EXPENSES,100729355,9.76,
United Kingdom Atomic energy Authority,United Kingdom Atomic energy Authority,28/06/2014,RAIL TRAVEL,25501,FUSION,EMPLOYEES EXPENSES,100729356,64.5,
United Kingdom Atomic energy Authority,United Kingdom Atomic energy Authority,28/06/2014,TAXIS,63602,SUPPORT SERVICES,EMPLOYEES EXPENSES,100729357,142.6,
United Kingdom Atomic energy Authority,United Kingdom Atomic energy Authority,28/06/2014,SUBSISTENCE,63602,SUPPORT SERVICES,EMPLOYEES EXPENSES,100729357,40.73,
United Kingdom Atomic energy Authority,United Kingdom Atomic energy Authority,28/06/2014,RAIL TRAVEL,63602,SUPPORT SERVICES,EMPLOYEES EXPENSES,100729357,189.4,
United Kingdom Atomic energy Authority,United Kingdom Atomic energy Authority,28/06/2014,ROAD TRAVEL,63602,SUPPORT SERVICES,EMPLOYEES EXPENSES,100729357,17.8,
United Kingdom Atomic energy Authority,United Kingdom Atomic energy Authority,28/06/2014,ROAD TRAVEL,63602,SUPPORT SERVICES,EMPLOYEES EXPENSES,100729357,66.67,
United Kingdom Atomic energy Authority,United Kingdom Atomic energy Authority,28/06/2014,MILEAGE ALLOWANCE,63602,SUPPORT SERVICES,EMPLOYEES EXPENSES,100729358,12.6,
United Kingdom Atomic energy Authority,United Kingdom Atomic energy Authority,28/06/2014,ROAD TRAVEL,63602,SUPPORT SERVICES,EMPLOYEES EXPENSES,100729358,4.75,
United Kingdom Atomic energy Authority,United Kingdom Atomic energy Authority,28/06/2014,SUBSISTENCE,21033,SUPPORT SERVICES,EMPLOYEES EXPENSES,100729359,43.4,
United Kingdom Atomic energy Authority,United Kingdom Atomic energy Authority,28/06/2014,TAXIS,26000,,EMPLOYEES EXPENSES,100729360,10,
United Kingdom Atomic energy Authority,United Kingdom Atomic energy Authority,28/06/2014,RAIL TRAVEL,26000,,EMPLOYEES EXPENSES,100729360,61.1,
United Kingdom Atomic energy Authority,United Kingdom Atomic energy Authority,28/06/2014,TAXIS,25402,FUSION,EMPLOYEES EXPENSES,100729361,10,
United Kingdom Atomic energy Authority,United Kingdom Atomic energy Authority,28/06/2014,SUBSISTENCE,25402,FUSION,EMPLOYEES EXPENSES,100729361,332.57,
United Kingdom Atomic energy Authority,United Kingdom Atomic energy Authority,28/06/2014,SUBSISTENCE,25402,FUSION,EMPLOYEES EXPENSES,100729361,3.67,
United Kingdom Atomic energy Authority,United Kingdom Atomic energy Authority,28/06/2014,RAIL TRAVEL,25402,FUSION,EMPLOYEES EXPENSES,100729361,12.94,
United Kingdom Atomic energy Authority,United Kingdom Atomic energy Authority,28/06/2014,ROAD TRAVEL,25402,FUSION,EMPLOYEES EXPENSES,100729361,28,
United Kingdom Atomic energy Authority,United Kingdom Atomic energy Authority,28/06/2014,TAXIS,26000,,EMPLOYEES EXPENSES,100729362,14,
United Kingdom Atomic energy Authority,United Kingdom Atomic energy Authority,28/06/2014,SUBSISTENCE,26000,,EMPLOYEES EXPENSES,100729362,166.1,
United Kingdom Atomic energy Authority,United Kingdom Atomic energy Authority,28/06/2014,ROAD TRAVEL,26000,,EMPLOYEES EXPENSES,100729362,31.1,
United Kingdom Atomic energy Authority,United Kingdom Atomic energy Authority,28/06/2014,OTHER EMPLOYEE EXPENSES,26000,,EMPLOYEES EXPENSES,100729362,7.74,
United Kingdom Atomic energy Authority,United Kingdom Atomic energy Authority,28/06/2014,TAXIS,21033,SUPPORT SERVICES,EMPLOYEES EXPENSES,100729363,29,
United Kingdom Atomic energy Authority,United Kingdom Atomic energy Authority,28/06/2014,SUBSISTENCE,21033,SUPPORT SERVICES,EMPLOYEES EXPENSES,100729363,5,
United Kingdom Atomic energy Authority,United Kingdom Atomic energy Authority,28/06/2014,SUBSISTENCE,21033,SUPPORT SERVICES,EMPLOYEES EXPENSES,100729363,90,
United Kingdom Atomic energy Authority,United Kingdom Atomic energy Authority,28/06/2014,OTHER EMPLOYEE EXPENSES,21033,SUPPORT SERVICES,EMPLOYEES EXPENSES,100729363,1,
United Kingdom Atomic energy Authority,United Kingdom Atomic energy Authority,28/06/2014,SUBSISTENCE,25704,FUSION,EMPLOYEES EXPENSES,100729364,56.86,
United Kingdom Atomic energy Authority,United Kingdom Atomic energy Authority,28/06/2014,SUBSISTENCE,25704,FUSION,EMPLOYEES EXPENSES,100729364,69.08,
United Kingdom Atomic energy Authority,United Kingdom Atomic energy Authority,28/06/2014,ROAD TRAVEL,25704,FUSION,EMPLOYEES EXPENSES,100729364,38,
United Kingdom Atomic energy Authority,United Kingdom Atomic energy Authority,28/06/2014,ROAD TRAVEL,25704,FUSION,EMPLOYEES EXPENSES,100729364,29.4,
United Kingdom Atomic energy Authority,United Kingdom Atomic energy Authority,28/06/2014,SUBSISTENCE,25700,FUSION,EMPLOYEES EXPENSES,100729365,2487.49,
United Kingdom Atomic energy Authority,United Kingdom Atomic energy Authority,28/06/2014,ROAD TRAVEL,25700,FUSION,EMPLOYEES EXPENSES,100729365,545.7,
United Kingdom Atomic energy Authority,United Kingdom Atomic energy Authority,28/06/2014,OTHER EMPLOYEE EXPENSES,25700,FUSION,EMPLOYEES EXPENSES,100729365,393.85,
United Kingdom Atomic energy Authority,United Kingdom Atomic energy Authority,28/06/2014,TAXIS,25603,FUSION,EMPLOYEES EXPENSES,100729366,42,
United Kingdom Atomic energy Authority,United Kingdom Atomic energy Authority,28/06/2014,SUBSISTENCE,25603,FUSION,EMPLOYEES EXPENSES,100729366,34.5,
United Kingdom Atomic energy Authority,United Kingdom Atomic energy Authority,28/06/2014,SUBSISTENCE,25603,FUSION,EMPLOYEES EXPENSES,100729366,6.5,
United Kingdom Atomic energy Authority,United Kingdom Atomic energy Authority,28/06/2014,ROAD TRAVEL,25603,FUSION,EMPLOYEES EXPENSES,100729366,29,
United Kingdom Atomic energy Authority,United Kingdom Atomic energy Authority,28/06/2014,SUBSISTENCE,25103,FUSION,EMPLOYEES EXPENSES,100729367,6.2,
United Kingdom Atomic energy Authority,United Kingdom Atomic energy Authority,28/06/2014,SUBSISTENCE,25103,FUSION,EMPLOYEES EXPENSES,100729367,4.92,
United Kingdom Atomic energy Authority,United Kingdom Atomic energy Authority,28/06/2014,ROAD TRAVEL,25103,FUSION,EMPLOYEES EXPENSES,100729367,65.17,
United Kingdom Atomic energy Authority,United Kingdom Atomic energy Authority,28/06/2014,EFDA TRAVEL EXPENSES,26900,,EMPLOYEES EXPENSES,100729368,92.69,
United Kingdom Atomic energy Authority,United Kingdom Atomic energy Authority,28/06/2014,TAXIS,25700,FUSION,EMPLOYEES EXPENSES,100729369,67.88,
United Kingdom Atomic energy Authority,United Kingdom Atomic energy Authority,28/06/2014,SUBSISTENCE,25700,FUSION,EMPLOYEES EXPENSES,100729369,403.82,
United Kingdom Atomic energy Authority,United Kingdom Atomic energy Authority,28/06/2014,SUBSISTENCE,25700,FUSION,EMPLOYEES EXPENSES,100729369,11.45,
United Kingdom Atomic energy Authority,United Kingdom Atomic energy Authority,28/06/2014,ROAD TRAVEL,25700,FUSION,EMPLOYEES EXPENSES,100729369,28,
United Kingdom Atomic energy Authority,United Kingdom Atomic energy Authority,28/06/2014,OTHER EMPLOYEE EXPENSES,25700,FUSION,EMPLOYEES EXPENSES,100729369,23.34,
United Kingdom Atomic energy Authority,United Kingdom Atomic energy Authority,28/06/2014,TAXIS,25700,FUSION,EMPLOYEES EXPENSES,100729370,34.02,
United Kingdom Atomic energy Authority,United Kingdom Atomic energy Authority,28/06/2014,SUBSISTENCE,25700,FUSION,EMPLOYEES EXPENSES,100729370,800.49,
United Kingdom Atomic energy Authority,United Kingdom Atomic energy Authority,28/06/2014,SUBSISTENCE,25700,FUSION,EMPLOYEES EXPENSES,100729370,3.16,
United Kingdom Atomic energy Authority,United Kingdom Atomic energy Authority,28/06/2014,RAIL TRAVEL,25700,FUSION,EMPLOYEES EXPENSES,100729370,28.89,
United Kingdom Atomic energy Authority,United Kingdom Atomic energy Authority,28/06/2014,EFDA TRAVEL EXPENSES,26900,,EMPLOYEES EXPENSES,100729371,182.5,
United Kingdom Atomic energy Authority,United Kingdom Atomic energy Authority,28/06/2014,EFDA TRAVEL EXPENSES,26900,,EMPLOYEES EXPENSES,100729372,23.72,
United Kingdom Atomic energy Authority,United Kingdom Atomic energy Authority,28/06/2014,OTHER EMPLOYEE EXPENSES,29001,FUSION,EMPLOYEES EXPENSES,100729373,8.39,
United Kingdom Atomic energy Authority,United Kingdom Atomic energy Authority,28/06/2014,EFDA TRAVEL EXPENSES,26900,,EMPLOYEES EXPENSES,100729374,792.37,
United Kingdom Atomic energy Authority,United Kingdom Atomic energy Authority,28/06/2014,SUBSISTENCE,21033,SUPPORT SERVICES,EMPLOYEES EXPENSES,100729375,59.65,
United Kingdom Atomic energy Authority,United Kingdom Atomic energy Authority,28/06/2014,MILEAGE ALLOWANCE,21033,SUPPORT SERVICES,EMPLOYEES EXPENSES,100729375,5.4,
United Kingdom Atomic energy Authority,United Kingdom Atomic energy Authority,28/06/2014,ROAD TRAVEL,21033,SUPPORT SERVICES,EMPLOYEES EXPENSES,100729375,5.33,
United Kingdom Atomic energy Authority,United Kingdom Atomic energy Authority,28/06/2014,SUBSISTENCE,29001,FUSION,EMPLOYEES EXPENSES,100729376,486.87,
United Kingdom Atomic energy Authority,United Kingdom Atomic energy Authority,28/06/2014,RAIL TRAVEL,29001,FUSION,EMPLOYEES EXPENSES,100729376,52.17,
United Kingdom Atomic energy Authority,United Kingdom Atomic energy Authority,28/06/2014,SUBSISTENCE,25821,FUSION,EMPLOYEES EXPENSES,100729377,201,
United Kingdom Atomic energy Authority,United Kingdom Atomic energy Authority,28/06/2014,OTHER EMPLOYEE EXPENSES,25821,FUSION,EMPLOYEES EXPENSES,100729377,40,
United Kingdom Atomic energy Authority,United Kingdom Atomic energy Authority,28/06/2014,SUBSISTENCE,25701,FUSION,EMPLOYEES EXPENSES,100729378,161.08,
United Kingdom Atomic energy Authority,United Kingdom Atomic energy Authority,28/06/2014,SUBSISTENCE,25701,FUSION,EMPLOYEES EXPENSES,100729378,6.33,
United Kingdom Atomic energy Authority,United Kingdom Atomic energy Authority,28/06/2014,RAIL TRAVEL,25701,FUSION,EMPLOYEES EXPENSES,100729378,3.3,
United Kingdom Atomic energy Authority,United Kingdom Atomic energy Authority,28/06/2014,ROAD TRAVEL,25701,FUSION,EMPLOYEES EXPENSES,100729378,2,
United Kingdom Atomic energy Authority,United Kingdom Atomic energy Authority,28/06/2014,ROAD TRAVEL,25701,FUSION,EMPLOYEES EXPENSES,100729378,60.06,
United Kingdom Atomic energy Authority,United Kingdom Atomic energy Authority,28/06/2014,PROFESSIONAL SUBSCRIPTION,25821,FUSION,EMPLOYEES EXPENSES,100729379,93,
United Kingdom Atomic energy Authority,United Kingdom Atomic energy Authority,28/06/2014,TAXIS,63602,SUPPORT SERVICES,EMPLOYEES EXPENSES,100729380,7,
United Kingdom Atomic energy Authority,United Kingdom Atomic energy Authority,28/06/2014,RAIL TRAVEL,63602,SUPPORT SERVICES,EMPLOYEES EXPENSES,100729380,17.9,
United Kingdom Atomic energy Authority,United Kingdom Atomic energy Authority,28/06/2014,TAXIS,63602,SUPPORT SERVICES,EMPLOYEES EXPENSES,100729381,7.5,
United Kingdom Atomic energy Authority,United Kingdom Atomic energy Authority,28/06/2014,SUBSISTENCE,63602,SUPPORT SERVICES,EMPLOYEES EXPENSES,100729382,10.33,
United Kingdom Atomic energy Authority,United Kingdom Atomic energy Authority,28/06/2014,MILEAGE ALLOWANCE,63602,SUPPORT SERVICES,EMPLOYEES EXPENSES,100729382,87.3,
United Kingdom Atomic energy Authority,United Kingdom Atomic energy Authority,28/06/2014,EFDA TRAVEL EXPENSES,26900,,EMPLOYEES EXPENSES,100729383,625.04,
United Kingdom Atomic energy Authority,United Kingdom Atomic energy Authority,28/06/2014,SUBSISTENCE,26000,,EMPLOYEES EXPENSES,100729384,700.86,
United Kingdom Atomic energy Authority,United Kingdom Atomic energy Authority,28/06/2014,RAIL TRAVEL,26000,,EMPLOYEES EXPENSES,100729384,36.6,
United Kingdom Atomic energy Authority,United Kingdom Atomic energy Authority,28/06/2014,RAIL TRAVEL,26000,,EMPLOYEES EXPENSES,100729384,149.66,
United Kingdom Atomic energy Authority,United Kingdom Atomic energy Authority,28/06/2014,OTHER EMPLOYEE EXPENSES,26000,,EMPLOYEES EXPENSES,100729384,432.37,
United Kingdom Atomic energy Authority,United Kingdom Atomic energy Authority,28/06/2014,SUBSISTENCE,25700,FUSION,EMPLOYEES EXPENSES,100729385,117.32,
United Kingdom Atomic energy Authority,United Kingdom Atomic energy Authority,28/06/2014,RAIL TRAVEL,25700,FUSION,EMPLOYEES EXPENSES,100729385,32.9,
United Kingdom Atomic energy Authority,United Kingdom Atomic energy Authority,28/06/2014,ROAD TRAVEL,25700,FUSION,EMPLOYEES EXPENSES,100729385,29,
United Kingdom Atomic energy Authority,United Kingdom Atomic energy Authority,28/06/2014,PROFESSIONAL SUBSCRIPTION,25501,FUSION,EMPLOYEES EXPENSES,100729386,34.5,
United Kingdom Atomic energy Authority,United Kingdom Atomic energy Authority,28/06/2014,TAXIS,23105,FUSION,EMPLOYEES EXPENSES,100729387,25,
United Kingdom Atomic energy Authority,United Kingdom Atomic energy Authority,28/06/2014,SUBSISTENCE,23105,FUSION,EMPLOYEES EXPENSES,100729387,289,
United Kingdom Atomic energy Authority,United Kingdom Atomic energy Authority,28/06/2014,SUBSISTENCE,23105,FUSION,EMPLOYEES EXPENSES,100729387,23.12,
United Kingdom Atomic energy Authority,United Kingdom Atomic energy Authority,28/06/2014,RAIL TRAVEL,23105,FUSION,EMPLOYEES EXPENSES,100729387,4.6,
United Kingdom Atomic energy Authority,United Kingdom Atomic energy Authority,29/05/2014,PRINTING & GRAPHICS,21034,FUSION,Cineworks,1900059737,774,CUL13126
United Kingdom Atomic energy Authority,United Kingdom Atomic energy Authority,29/05/2014,SUBSISTENCE,25835,FUSION,VISITOR EXPENSES,1900059738,700,CUL13125
United Kingdom Atomic energy Authority,United Kingdom Atomic energy Authority,29/05/2014,SUBSISTENCE,25835,FUSION,VISITOR EXPENSES,1900059739,700,CUL13124
United Kingdom Atomic energy Authority,United Kingdom Atomic energy Authority,29/05/2014,CONFERENCES/MEETINGS,25835,FUSION,SFP Congres,1900059743,1459.85,CUL13121
United Kingdom Atomic energy Authority,United Kingdom Atomic energy Authority,30/05/2014,OTHER EXTERNAL COSTS,23129,FUSION,Power Electronic Measurement Ltd,1900059744,420,CUL13131
United Kingdom Atomic energy Authority,United Kingdom Atomic energy Authority,30/05/2014,PLANT & EQUIPMENT,26000,,Carbern,1900059745,2412,CUL13130
United Kingdom Atomic energy Authority,United Kingdom Atomic energy Authority,30/05/2014,PROFESSIONAL SUBSCRIPTION,63605,SUPPORT SERVICES,Chartered Institute of Internal Auditors,1900059747,173,CUL13128
United Kingdom Atomic energy Authority,United Kingdom Atomic energy Authority,02/06/2014,CONFERENCES/MEETINGS,25500,FUSION,Holiday Inn Express,1900059748,208,CUL13132
United Kingdom Atomic energy Authority,United Kingdom Atomic energy Authority,04/06/2014,OTHER EXTERNAL COSTS,25836,FUSION,Environment Agency,1900059749,1910,CUL13153
United Kingdom Atomic energy Authority,United Kingdom Atomic energy Authority,04/06/2014,OTHER EXTERNAL COSTS,25501,FUSION,Imperial College London,1900059752,200,CUL13150
United Kingdom Atomic energy Authority,United Kingdom Atomic energy Authority,04/06/2014,OTHER EFDA COST,23900,FUSION,VISITOR EXPENSES,1900059753,3294.68,CUL13149
United Kingdom Atomic energy Authority,United Kingdom Atomic energy Authority,04/06/2014,OTHER EFDA COST,23900,FUSION,VISITOR EXPENSES,1900059754,3294.68,CUL13148
United Kingdom Atomic energy Authority,United Kingdom Atomic energy Authority,04/06/2014,OTHER EFDA COST,23900,FUSION,VISITOR EXPENSES,1900059755,2959.91,CUL13147
United Kingdom Atomic energy Authority,United Kingdom Atomic energy Authority,04/06/2014,OTHER EFDA COST,23900,FUSION,VISITOR EXPENSES,1900059756,3193.55,CUL13146
United Kingdom Atomic energy Authority,United Kingdom Atomic energy Authority,04/06/2014,OTHER EFDA COST,23900,FUSION,VISITOR EXPENSES,1900059757,3126.58,CUL13145
United Kingdom Atomic energy Authority,United Kingdom Atomic energy Authority,04/06/2014,OTHER EFDA COST,23900,FUSION,VISITOR EXPENSES,1900059758,3461.35,CUL13144
United Kingdom Atomic energy Authority,United Kingdom Atomic energy Authority,04/06/2014,OTHER EFDA COST,23900,FUSION,VISITOR EXPENSES,1900059759,3131.87,CUL13143
United Kingdom Atomic energy Authority,United Kingdom Atomic energy Authority,04/06/2014,OTHER EFDA COST,23900,FUSION,VISITOR EXPENSES,1900059760,3126.58,CUL13142
United Kingdom Atomic energy Authority,United Kingdom Atomic energy Authority,04/06/2014,OTHER EFDA COST,23900,FUSION,VISITOR EXPENSES,1900059761,3300.67,CUL13141
United Kingdom Atomic energy Authority,United Kingdom Atomic energy Authority,04/06/2014,OTHER EFDA COST,23900,FUSION,VISITOR EXPENSES,1900059762,3300.67,CUL13140
United Kingdom Atomic energy Authority,United Kingdom Atomic energy Authority,04/06/2014,OTHER EFDA COST,23900,FUSION,VISITOR EXPENSES,1900059763,3300.67,CUL13139
United Kingdom Atomic energy Authority,United Kingdom Atomic energy Authority,04/06/2014,OTHER EFDA COST,23900,FUSION,VISITOR EXPENSES,1900059764,3461.35,CUL13138
United Kingdom Atomic energy Authority,United Kingdom Atomic energy Authority,04/06/2014,PLANT & EQUIPMENT,25704,FUSION,T-Man Ltd,1900059766,10800,CUL13136
United Kingdom Atomic energy Authority,United Kingdom Atomic energy Authority,04/06/2014,OTHER EXTERNAL COSTS,25704,FUSION,Ground Investigation Services Ltd,1900059768,840,CUL13135
United Kingdom Atomic energy Authority,United Kingdom Atomic energy Authority,04/06/2014,OTHER EXTERNAL COSTS,23621,FUSION,Gear Cutting Co Ltd,1900059769,8192.88,CUL13133
United Kingdom Atomic energy Authority,United Kingdom Atomic energy Authority,06/06/2014,PLANT & EQUIPMENT,25702,FUSION,iCenta Controls,1900059770,1843.8,CUL13156
United Kingdom Atomic energy Authority,United Kingdom Atomic energy Authority,06/06/2014,OTHER EXTERNAL COSTS,23123,FUSION,Zenith International Freight Ltd,1900059771,260.17,CUL13155
United Kingdom Atomic energy Authority,United Kingdom Atomic energy Authority,06/06/2014,CONFERENCES/MEETINGS,25501,FUSION,GovNet Comminications,1900059772,354,CUL13154
United Kingdom Atomic energy Authority,United Kingdom Atomic energy Authority,09/06/2014,OTHER EXTERNAL COSTS,23161,FUSION,RDL (Meters) Ltd,1900059773,142,CUL13157
United Kingdom Atomic energy Authority,United Kingdom Atomic energy Authority,11/06/2014,,,,Larcomes Solicitors,1900059775,2200,CUL13159
United Kingdom Atomic energy Authority,United Kingdom Atomic energy Authority,12/06/2014,OTHER EXTERNAL COSTS,25834,FUSION,Department of Energy and Climate Change,1900059776,440481.6,CUL13174
United Kingdom Atomic energy Authority,United Kingdom Atomic energy Authority,12/06/2014,INTERVIEW EXPENSES,23166,FUSION,INTERVIEW EXPENSES,1900059781,330.33,CUL13172
United Kingdom Atomic energy Authority,United Kingdom Atomic energy Authority,12/06/2014,INTERVIEW EXPENSES,23166,FUSION,INTERVIEW EXPENSES,1900059782,146.65,CUL13171
United Kingdom Atomic energy Authority,United Kingdom Atomic energy Authority,12/06/2014,INTERVIEW EXPENSES,23166,FUSION,INTERVIEW EXPENSES,1900059783,141.3,CUL13170
United Kingdom Atomic energy Authority,United Kingdom Atomic energy Authority,12/06/2014,OTHER EXTERNAL COSTS,23151,FUSION,Dwyer Instruments Ltd,1900059790,372.6,CUL13163
United Kingdom Atomic energy Authority,United Kingdom Atomic energy Authority,12/06/2014,INTERVIEW EXPENSES,23166,FUSION,INTERVIEW EXPENSES,1900059791,76.04,CUL13173
United Kingdom Atomic energy Authority,United Kingdom Atomic energy Authority,12/06/2014,OTHER EXTERNAL COSTS,63511,SUPPORT SERVICES,Glaisyers,1900059792,20000,CUL13176
United Kingdom Atomic energy Authority,United Kingdom Atomic energy Authority,18/06/2014,OTHER EXTERNAL COSTS,23131,FUSION,Light Scope Services Ltd,1900059794,289,CUL13177
United Kingdom Atomic energy Authority,United Kingdom Atomic energy Authority,18/06/2014,OTHER EXTERNAL COSTS,23122,FUSION,Dataman Programmers Ltd,1900059804,180,CUL13193
United Kingdom Atomic energy Authority,United Kingdom Atomic energy Authority,18/06/2014,OTHER EXTERNAL COSTS,23621,FUSION,Teer Coatings Ltd,1900059805,1970.4,CUL13192
United Kingdom Atomic energy Authority,United Kingdom Atomic energy Authority,18/06/2014,OTHER EXTERNAL COSTS,25500,FUSION,Holiday Inn Express,1900059806,208,CUL13191
United Kingdom Atomic energy Authority,United Kingdom Atomic energy Authority,18/06/2014,OTHER EXTERNAL COSTS,29200,FUSION,SLR Consulting Ltd,1900059807,4139.15,CUL13190
United Kingdom Atomic energy Authority,United Kingdom Atomic energy Authority,18/06/2014,CONFERENCES/MEETINGS,25821,FUSION,Barcelo Turismo Y Congresos SL,1900059817,337.33,CUL13180
United Kingdom Atomic energy Authority,United Kingdom Atomic energy Authority,18/06/2014,CONFERENCES/MEETINGS,25103,FUSION,Barcelo Turismo Y Congresos SL,1900059818,9862.67,CUL13179
United Kingdom Atomic energy Authority,United Kingdom Atomic energy Authority,20/06/2014,INTERVIEW EXPENSES,23150,FUSION,INTERVIEW EXPENSES,1900059841,401.29,CUL13232
United Kingdom Atomic energy Authority,United Kingdom Atomic energy Authority,20/06/2014,INTERVIEW EXPENSES,23150,FUSION,INTERVIEW EXPENSES,1900059842,51.04,CUL13217
United Kingdom Atomic energy Authority,United Kingdom Atomic energy Authority,20/06/2014,INTERVIEW EXPENSES,23150,FUSION,INTERVIEW EXPENSES,1900059843,368.24,CUL13218
United Kingdom Atomic energy Authority,United Kingdom Atomic energy Authority,20/06/2014,INTERVIEW EXPENSES,23150,FUSION,INTERVIEW EXPENSES,1900059844,563.86,CUL13219
United Kingdom Atomic energy Authority,United Kingdom Atomic energy Authority,20/06/2014,INTERVIEW EXPENSES,23150,FUSION,INTERVIEW EXPENSES,1900059845,201.99,CUL13220
United Kingdom Atomic energy Authority,United Kingdom Atomic energy Authority,20/06/2014,INTERVIEW EXPENSES,23150,FUSION,INTERVIEW EXPENSES,1900059846,110.1,CUL13221
United Kingdom Atomic energy Authority,United Kingdom Atomic energy Authority,20/06/2014,SUBSISTENCE,23131,FUSION,VISITOR EXPENSES,1900059847,284.89,CUL13208
United Kingdom Atomic energy Authority,United Kingdom Atomic energy Authority,20/06/2014,OTHER EXTERNAL COSTS,25103,FUSION,DHL International Ltd,1900059848,132.61,CUL13238
United Kingdom Atomic energy Authority,United Kingdom Atomic energy Authority,20/06/2014,OTHER EXTERNAL COSTS,28900,PROPERTY,South Oxfordshire District Council,1900059849,97,CUL13235
United Kingdom Atomic energy Authority,United Kingdom Atomic energy Authority,20/06/2014,OTHER EXTERNAL COSTS,25501,FUSION,Salters Steamers Ltd,1900059850,580,CUL13237
United Kingdom Atomic energy Authority,United Kingdom Atomic energy Authority,20/06/2014,SUBSISTENCE,25701,FUSION,J B Taylor,1900059851,327.7,CUL13236
United Kingdom Atomic energy Authority,United Kingdom Atomic energy Authority,20/06/2014,INTERVIEW EXPENSES,23150,FUSION,INTERVIEW EXPENSES,1900059852,249.57,CUL13222
United Kingdom Atomic energy Authority,United Kingdom Atomic energy Authority,23/06/2014,PROFESSIONAL SERVICES,29200,FUSION,South Oxfordshire District Council,1900059857,17325,CUL13244
United Kingdom Atomic energy Authority,United Kingdom Atomic energy Authority,23/06/2014,PLANT & EQUIPMENT,23621,FUSION,PK Engineering Ltd,1900059859,15954.84,CUL13242
United Kingdom Atomic energy Authority,United Kingdom Atomic energy Authority,23/06/2014,ADVERTISING STAFF,25501,FUSION,Mediaplanet Ltd,1900059860,4500,CUL13241
United Kingdom Atomic energy Authority,United Kingdom Atomic energy Authority,23/06/2014,PLANT & EQUIPMENT,23621,FUSION,Richmond Industries,1900059861,1043.7,CUL13240
United Kingdom Atomic energy Authority,United Kingdom Atomic energy Authority,23/06/2014,ADVERTISING STAFF,23124,FUSION,Pro-Mil Engineering ,1900059862,5270,CUL13239
United Kingdom Atomic energy Authority,United Kingdom Atomic energy Authority,25/06/2014,OTHER EXTERNAL COSTS,23151,FUSION,Safety Systems Ltd,1900059864,1020,CUL13258
United Kingdom Atomic energy Authority,United Kingdom Atomic energy Authority,25/06/2014,CONFERENCES/MEETINGS,63602,SUPPORT SERVICES,Barcelo Turismo Y Congresos SL,1900059869,519.17,CUL13253
United Kingdom Atomic energy Authority,United Kingdom Atomic energy Authority,25/06/2014,OTHER EXTERNAL COSTS,23106,FUSION,Ringflex Drive Systems Ltd,1900059872,74.28,CUL13250
United Kingdom Atomic energy Authority,United Kingdom Atomic energy Authority,25/06/2014,,,,Novum Law,1900059873,17000,CUL13249
United Kingdom Atomic energy Authority,United Kingdom Atomic energy Authority,25/06/2014,SUBSISTENCE,25835,FUSION,VISITOR EXPENSES,1900059874,898.53,CUL13248
United Kingdom Atomic energy Authority,United Kingdom Atomic energy Authority,25/06/2014,SUBSISTENCE,25835,FUSION,VISITOR EXPENSES,1900059875,884.48,CUL13247
United Kingdom Atomic energy Authority,United Kingdom Atomic energy Authority,27/06/2014,PLANT & EQUIPMENT,23151,FUSION,AVK UK Ltd,1900059881,2862.66,CUL13274
United Kingdom Atomic energy Authority,United Kingdom Atomic energy Authority,27/06/2014,MATERIALS & SPARES,23121,FUSION,Sole Trader,1900059882,632.4,CUL13273
United Kingdom Atomic energy Authority,United Kingdom Atomic energy Authority,27/06/2014,PLANT & EQUIPMENT,25103,FUSION,Trelleborg Engineering Products,1900059883,1768.46,CUL13272
United Kingdom Atomic energy Authority,United Kingdom Atomic energy Authority,28/05/2014,MATERIALS & SPARES,25103,FUSION,OXFORD BOLTS & BEARINGS,5100302311,74.33,
United Kingdom Atomic energy Authority,United Kingdom Atomic energy Authority,28/05/2014,BUILDING REPAIRS,28200,PROPERTY,KNOWLES & SONS (OXFORD) LTD,5100302339,47012.69,
United Kingdom Atomic energy Authority,United Kingdom Atomic energy Authority,02/06/2014,BUILDING REPAIRS,28200,PROPERTY,KNOWLES & SONS (OXFORD) LTD,5100302341,61523.52,
United Kingdom Atomic energy Authority,United Kingdom Atomic energy Authority,09/06/2014,PROFESSIONAL SERVICES,23126,FUSION,HONEYWELL ANALYTICS (SALES &SERVICE,5100302345,4739.76,
United Kingdom Atomic energy Authority,United Kingdom Atomic energy Authority,04/06/2014,PROFESSIONAL SERVICES,23126,FUSION,HONEYWELL ANALYTICS (SALES &SERVICE,5100302370,4393.5,
United Kingdom Atomic energy Authority,United Kingdom Atomic energy Authority,25/06/2014,PLANT & EQUIPMENT,23151,FUSION,Modulek,5100302400,183112.12,
United Kingdom Atomic energy Authority,United Kingdom Atomic energy Authority,18/06/2014,PROFESSIONAL SERVICES,25103,FUSION,EDM PRECISION TECHNOLOGIES,5100302443,695.5,
United Kingdom Atomic energy Authority,United Kingdom Atomic energy Authority,02/06/2014,MATERIALS & SPARES,23150,FUSION,LABORATORY IMPEX SYSTEMS LTD,5100302606,1810,
United Kingdom Atomic energy Authority,United Kingdom Atomic energy Authority,18/06/2014,PROFESSIONAL SERVICES,25103,FUSION,HUTTON ENGINEERING (PRECISION) LTD,5100302608,2369,
United Kingdom Atomic energy Authority,United Kingdom Atomic energy Authority,23/06/2014,MATERIALS & SPARES,23106,FUSION,RS COMPONENTS LTD,5100302633,20.34,
United Kingdom Atomic energy Authority,United Kingdom Atomic energy Authority,09/06/2014,SECURITY & EMERGENCY,28030,PROPERTY,SHRED-IT,5100302993,76.95,
United Kingdom Atomic energy Authority,United Kingdom Atomic energy Authority,11/06/2014,MATERIALS & SPARES,23164,FUSION,CANBERRA UK LTD,5100303240,2465,
United Kingdom Atomic energy Authority,United Kingdom Atomic energy Authority,28/05/2014,STATIONERY,23161,FUSION,LYRECO UK LIMITED,5100303424,330.64,
United Kingdom Atomic energy Authority,United Kingdom Atomic energy Authority,28/05/2014,MATERIALS & SPARES,23123,FUSION,OERLIKON LEYBOLD VACUUM UK LTD,5100303425,658,
United Kingdom Atomic energy Authority,United Kingdom Atomic energy Authority,02/06/2014,MATERIALS & SPARES,23122,FUSION,RS COMPONENTS LTD,5100303449,17.88,
United Kingdom Atomic energy Authority,United Kingdom Atomic energy Authority,28/05/2014,MATERIALS & SPARES,23131,FUSION,RS COMPONENTS LTD,5100303457,244.85,
United Kingdom Atomic energy Authority,United Kingdom Atomic energy Authority,09/06/2014,MATERIALS & SPARES,23129,FUSION,RS COMPONENTS LTD,5100303459,436.03,
United Kingdom Atomic energy Authority,United Kingdom Atomic energy Authority,02/06/2014,MATERIALS & SPARES,23161,FUSION,RS COMPONENTS LTD,5100303516,40.77,
United Kingdom Atomic energy Authority,United Kingdom Atomic energy Authority,02/06/2014,MATERIALS & SPARES,23161,FUSION,RS COMPONENTS LTD,5100303527,387.32,
United Kingdom Atomic energy Authority,United Kingdom Atomic energy Authority,28/05/2014,MATERIALS & SPARES,25103,FUSION,Helander Precision Engineering Limited,5100303593,2936.76,
United Kingdom Atomic energy Authority,United Kingdom Atomic energy Authority,28/05/2014,MATERIALS & SPARES,25103,FUSION,Helander Precision Engineering Limited,5100303594,2936.76,
United Kingdom Atomic energy Authority,United Kingdom Atomic energy Authority,11/06/2014,MATERIALS & SPARES,25103,FUSION,Metal Improvement Company LLC,5100303602,1135,
United Kingdom Atomic energy Authority,United Kingdom Atomic energy Authority,28/05/2014,BUILDING REPAIRS,28000,PROPERTY,KNOWLES & SONS (OXFORD) LTD,5100303649,8962.88,
United Kingdom Atomic energy Authority,United Kingdom Atomic energy Authority,28/05/2014,BUILDING REPAIRS,28000,PROPERTY,KNOWLES & SONS (OXFORD) LTD,5100303650,21426.99,
United Kingdom Atomic energy Authority,United Kingdom Atomic energy Authority,04/06/2014,PLANT & EQUIPMENT,25103,FUSION,EDMUNDSON ELECTRICALS LTD,5100303654,6448.49,
United Kingdom Atomic energy Authority,United Kingdom Atomic energy Authority,28/05/2014,MEDICAL EXPENSES,23162,FUSION,IMASS LTD,5100303665,-216.13,
United Kingdom Atomic energy Authority,United Kingdom Atomic energy Authority,28/05/2014,MATERIALS & SPARES,25103,FUSION,Helander Precision Engineering Limited,5100303675,35387,
United Kingdom Atomic energy Authority,United Kingdom Atomic energy Authority,28/05/2014,MATERIALS & SPARES,23122,FUSION,RS COMPONENTS LTD,5100303721,228.33,
United Kingdom Atomic energy Authority,United Kingdom Atomic energy Authority,02/06/2014,BOOKS & PUBLICATIONS,21033,SUPPORT SERVICES,THE BRITISH LIBRARY,5100303735,37.45,
United Kingdom Atomic energy Authority,United Kingdom Atomic energy Authority,02/06/2014,PROFESSIONAL SERVICES,21032,SUPPORT SERVICES,BDO LLP,5100303745,3600,
United Kingdom Atomic energy Authority,United Kingdom Atomic energy Authority,09/06/2014,SAFETY STORES,23119,FUSION,NETWORK SIGNS,5100303779,723.25,
United Kingdom Atomic energy Authority,United Kingdom Atomic energy Authority,28/05/2014,GASES,23123,FUSION,BOC LTD,5100303795,255.6,
United Kingdom Atomic energy Authority,United Kingdom Atomic energy Authority,28/05/2014,MATERIALS & SPARES,23164,FUSION,AIHA - PROFICIENCY TESTING PROGRAMMES,5100303814,483.19,
United Kingdom Atomic energy Authority,United Kingdom Atomic energy Authority,29/05/2014,PLANT & EQUIPMENT,23131,FUSION,MELLES GRIOT BV,5100303818,1318,
United Kingdom Atomic energy Authority,United Kingdom Atomic energy Authority,28/05/2014,PLANT & EQUIPMENT,25103,FUSION,JEMA,5100303824,22035.76,
United Kingdom Atomic energy Authority,United Kingdom Atomic energy Authority,28/05/2014,PLANT & EQUIPMENT,25103,FUSION,JEMA,5100303825,132214.59,
United Kingdom Atomic energy Authority,United Kingdom Atomic energy Authority,28/05/2014,REPAIRS & MAINTENANCE,23135,FUSION,CHUBB ELECTRONIC SECURITY LTD,5100303830,265,
United Kingdom Atomic energy Authority,United Kingdom Atomic energy Authority,28/05/2014,MATERIALS & SPARES,23121,FUSION,FARNELL ELECTRONIC,5100303911,409.07,
United Kingdom Atomic energy Authority,United Kingdom Atomic energy Authority,11/06/2014,PLANT & EQUIPMENT,23103,FUSION,HEWDEN,5100303920,600,
United Kingdom Atomic energy Authority,United Kingdom Atomic energy Authority,28/05/2014,MATERIALS & SPARES,23129,FUSION,CPC PLC,5100303999,87.24,
United Kingdom Atomic energy Authority,United Kingdom Atomic energy Authority,28/05/2014,MATERIALS & SPARES,25103,FUSION,TR FASTENINGS LTD,5100304041,33,
United Kingdom Atomic energy Authority,United Kingdom Atomic energy Authority,28/05/2014,MATERIALS & SPARES,23128,FUSION,MASSEY COLDBECK ENGINEERING LTD,5100304043,1698,
United Kingdom Atomic energy Authority,United Kingdom Atomic energy Authority,28/05/2014,CLEANING,28025,PROPERTY,OCS CLEANING & SUPPORT SERVICES,5100304069,27343.33,
United Kingdom Atomic energy Authority,United Kingdom Atomic energy Authority,02/06/2014,PROFESSIONAL SERVICES,21033,SUPPORT SERVICES,THE COPYRIGHT LICENSING AGENCY LIMI,5100304079,11492.18,
United Kingdom Atomic energy Authority,United Kingdom Atomic energy Authority,18/06/2014,PLANT & EQUIPMENT,23131,FUSION,ISOTHERMAL TECHNOLOGY LIMITED,5100304087,303,
United Kingdom Atomic energy Authority,United Kingdom Atomic energy Authority,04/06/2014,MATERIALS & SPARES,23121,FUSION,TVH,5100304089,210.2,
United Kingdom Atomic energy Authority,United Kingdom Atomic energy Authority,04/06/2014,PLANT & EQUIPMENT,23106,FUSION,AALCO LIMITED,5100304103,185,
United Kingdom Atomic energy Authority,United Kingdom Atomic energy Authority,04/06/2014,MATERIALS & SPARES,25103,FUSION,DSM,5100304111,31297.8,
United Kingdom Atomic energy Authority,United Kingdom Atomic energy Authority,02/06/2014,MATERIALS & SPARES,29030,FUSION,PI-KEM LTD,5100304139,2520,
United Kingdom Atomic energy Authority,United Kingdom Atomic energy Authority,28/05/2014,BUILDING REPAIRS,28000,PROPERTY,LORNE STEWART PLC,5100304140,13301.58,
United Kingdom Atomic energy Authority,United Kingdom Atomic energy Authority,28/05/2014,BUILDING REPAIRS,28020,PROPERTY,LORNE STEWART PLC,5100304141,3748.52,
United Kingdom Atomic energy Authority,United Kingdom Atomic energy Authority,28/05/2014,BUILDING REPAIRS,23161,FUSION,LORNE STEWART PLC,5100304142,19606.1,
United Kingdom Atomic energy Authority,United Kingdom Atomic energy Authority,28/05/2014,BUILDING REPAIRS,23161,FUSION,LORNE STEWART PLC,5100304143,2416.73,
United Kingdom Atomic energy Authority,United Kingdom Atomic energy Authority,28/05/2014,BUILDING REPAIRS,28000,PROPERTY,LORNE STEWART PLC,5100304144,690.49,
United Kingdom Atomic energy Authority,United Kingdom Atomic energy Authority,28/05/2014,BUILDING REPAIRS,28020,PROPERTY,LORNE STEWART PLC,5100304145,345.24,
United Kingdom Atomic energy Authority,United Kingdom Atomic energy Authority,28/05/2014,BUILDING REPAIRS,23151,FUSION,LORNE STEWART PLC,5100304146,2466.2,
United Kingdom Atomic energy Authority,United Kingdom Atomic energy Authority,28/05/2014,BUILDING REPAIRS,28020,PROPERTY,LORNE STEWART PLC,5100304147,13303.13,
United Kingdom Atomic energy Authority,United Kingdom Atomic energy Authority,28/05/2014,BUILDING REPAIRS,25103,FUSION,LORNE STEWART PLC,5100304148,576.84,
United Kingdom Atomic energy Authority,United Kingdom Atomic energy Authority,28/05/2014,BUILDING REPAIRS,25836,FUSION,LORNE STEWART PLC,5100304149,241.51,
United Kingdom Atomic energy Authority,United Kingdom Atomic energy Authority,28/05/2014,BUILDING REPAIRS,25103,FUSION,LORNE STEWART PLC,5100304150,805.48,
United Kingdom Atomic energy Authority,United Kingdom Atomic energy Authority,28/05/2014,BUILDING REPAIRS,28200,PROPERTY,LORNE STEWART PLC,5100304151,216.69,
United Kingdom Atomic energy Authority,United Kingdom Atomic energy Authority,28/05/2014,BUILDING REPAIRS,28200,PROPERTY,LORNE STEWART PLC,5100304152,38.84,
United Kingdom Atomic energy Authority,United Kingdom Atomic energy Authority,28/05/2014,BUILDING REPAIRS,28020,PROPERTY,LORNE STEWART PLC,5100304153,337.77,
United Kingdom Atomic energy Authority,United Kingdom Atomic energy Authority,28/05/2014,BUILDING REPAIRS,25103,FUSION,LORNE STEWART PLC,5100304154,520.78,
United Kingdom Atomic energy Authority,United Kingdom Atomic energy Authority,28/05/2014,BUILDING REPAIRS,28030,PROPERTY,LORNE STEWART PLC,5100304155,155.34,
United Kingdom Atomic energy Authority,United Kingdom Atomic energy Authority,28/05/2014,BUILDING REPAIRS,23131,FUSION,LORNE STEWART PLC,5100304156,131.5,
United Kingdom Atomic energy Authority,United Kingdom Atomic energy Authority,28/05/2014,BUILDING REPAIRS,28020,PROPERTY,LORNE STEWART PLC,5100304157,2835.35,
United Kingdom Atomic energy Authority,United Kingdom Atomic energy Authority,28/05/2014,BUILDING REPAIRS,28020,PROPERTY,LORNE STEWART PLC,5100304159,2302.03,
United Kingdom Atomic energy Authority,United Kingdom Atomic energy Authority,28/05/2014,BUILDING REPAIRS,28000,PROPERTY,LORNE STEWART PLC,5100304169,20946.76,
United Kingdom Atomic energy Authority,United Kingdom Atomic energy Authority,02/06/2014,BUILDING REPAIRS,28000,PROPERTY,LORNE STEWART PLC,5100304170,23580.66,
United Kingdom Atomic energy Authority,United Kingdom Atomic energy Authority,28/05/2014,BUILDING REPAIRS,23161,FUSION,LORNE STEWART PLC,5100304171,19344.24,
United Kingdom Atomic energy Authority,United Kingdom Atomic energy Authority,28/05/2014,MATERIALS & SPARES,23161,FUSION,CHANNEL SAFETY SERVICES LTD,5100304172,450,
United Kingdom Atomic energy Authority,United Kingdom Atomic energy Authority,28/05/2014,BUILDING REPAIRS,23161,FUSION,LORNE STEWART PLC,5100304173,1424.96,
United Kingdom Atomic energy Authority,United Kingdom Atomic energy Authority,18/06/2014,PLANT SPARES,29030,FUSION,CUTWEL LTD,5100304175,-0.54,
United Kingdom Atomic energy Authority,United Kingdom Atomic energy Authority,18/06/2014,PROFESSIONAL SERVICES,23134,FUSION,CSC COMPUTER SERVICES,5100304176,5635,
United Kingdom Atomic energy Authority,United Kingdom Atomic energy Authority,28/05/2014,PLANT & EQUIPMENT,23161,FUSION,EDMUNDSON ELECTRICALS LTD,5100304183,33.67,
United Kingdom Atomic energy Authority,United Kingdom Atomic energy Authority,28/05/2014,PLANT & EQUIPMENT,23161,FUSION,EDMUNDSON ELECTRICALS LTD,5100304184,75.68,
United Kingdom Atomic energy Authority,United Kingdom Atomic energy Authority,18/06/2014,PROFESSIONAL SERVICES,21033,SUPPORT SERVICES,ALLEN ASSOCIATES,5100304186,929.63,
United Kingdom Atomic energy Authority,United Kingdom Atomic energy Authority,28/05/2014,GASES,23123,FUSION,BOC LTD,5100304191,4422.36,
United Kingdom Atomic energy Authority,United Kingdom Atomic energy Authority,11/06/2014,MATERIALS & SPARES,23131,FUSION,ACAL TECHNOLOGY LTD,5100304193,3364,
United Kingdom Atomic energy Authority,United Kingdom Atomic energy Authority,11/06/2014,GASES,23123,FUSION,BOC LTD,5100304215,15298.5,
United Kingdom Atomic energy Authority,United Kingdom Atomic energy Authority,28/05/2014,MATERIALS & SPARES,23161,FUSION,RS COMPONENTS LTD,5100304226,33.25,
United Kingdom Atomic energy Authority,United Kingdom Atomic energy Authority,28/05/2014,MATERIALS & SPARES,23151,FUSION,RS COMPONENTS LTD,5100304239,253.59,
United Kingdom Atomic energy Authority,United Kingdom Atomic energy Authority,11/06/2014,PROFESSIONAL SERVICES,25103,FUSION,HUTTON ENGINEERING (PRECISION) LTD,5100304247,4882.8,
United Kingdom Atomic energy Authority,United Kingdom Atomic energy Authority,28/05/2014,CLEANING,25103,FUSION,HYDROBLAST,5100304260,1420,
United Kingdom Atomic energy Authority,United Kingdom Atomic energy Authority,28/05/2014,CLEANING,23103,FUSION,HYDROBLAST,5100304261,405,
United Kingdom Atomic energy Authority,United Kingdom Atomic energy Authority,28/05/2014,CLEANING,25103,FUSION,HYDROBLAST,5100304263,920,
United Kingdom Atomic energy Authority,United Kingdom Atomic energy Authority,23/06/2014,PLANT SPARES,25836,FUSION,Aquila Nuclear Engineering Ltd,5100304264,3762,
United Kingdom Atomic energy Authority,United Kingdom Atomic energy Authority,18/06/2014,PROFESSIONAL SERVICES,25103,FUSION,EDM PRECISION TECHNOLOGIES,5100304272,2330,
United Kingdom Atomic energy Authority,United Kingdom Atomic energy Authority,28/05/2014,MATERIALS & SPARES,23151,FUSION,BSS OXFORD,5100304281,306.88,
United Kingdom Atomic energy Authority,United Kingdom Atomic energy Authority,09/06/2014,TRAINING COURSE FEES,25501,FUSION,OXFORD UNIVERSITY,5100304284,2094.05,
United Kingdom Atomic energy Authority,United Kingdom Atomic energy Authority,11/06/2014,MATERIALS & SPARES,25103,FUSION,Metal Improvement Company LLC,5100304293,-360,
United Kingdom Atomic energy Authority,United Kingdom Atomic energy Authority,28/05/2014,OPERATING LEASE,21034,FUSION,ANNODATA BUSINESS COMMUNICATIONS,5100304294,2876.96,
United Kingdom Atomic energy Authority,United Kingdom Atomic energy Authority,28/05/2014,OPERATING LEASE,21034,FUSION,ANNODATA BUSINESS COMMUNICATIONS,5100304295,11432.71,
United Kingdom Atomic energy Authority,United Kingdom Atomic energy Authority,28/05/2014,MATERIALS & SPARES,23152,FUSION,RITTAL,5100304298,788.2,
United Kingdom Atomic energy Authority,United Kingdom Atomic energy Authority,28/05/2014,PRINTING & GRAPHICS,21034,FUSION,AWARDFRAMERS INTERNATIONAL,5100304299,67.75,
United Kingdom Atomic energy Authority,United Kingdom Atomic energy Authority,09/06/2014,MATERIALS & SPARES,25103,FUSION,OUTOKUMPU STAINLESS,5100304300,11432.06,
United Kingdom Atomic energy Authority,United Kingdom Atomic energy Authority,02/06/2014,MATERIALS & SPARES,23161,FUSION,Oxford Air conditioning Ltd.,5100304301,2970.3,
United Kingdom Atomic energy Authority,United Kingdom Atomic energy Authority,28/05/2014,STATIONERY,21034,FUSION,COLOURCOM,5100304302,453,
United Kingdom Atomic energy Authority,United Kingdom Atomic energy Authority,28/05/2014,PLANT SPARES,25103,FUSION,A W CLARKE,5100304303,407,
United Kingdom Atomic energy Authority,United Kingdom Atomic energy Authority,28/05/2014,PLANT SPARES,25103,FUSION,A W CLARKE,5100304304,45,
United Kingdom Atomic energy Authority,United Kingdom Atomic energy Authority,28/05/2014,OPERATING LEASE,21034,FUSION,ANNODATA BUSINESS COMMUNICATIONS,5100304305,749.23,
United Kingdom Atomic energy Authority,United Kingdom Atomic energy Authority,28/05/2014,PLANT SPARES,21033,SUPPORT SERVICES,TORR SCIENTIFIC LTD,5100304306,13.2,
United Kingdom Atomic energy Authority,United Kingdom Atomic energy Authority,28/05/2014,PLANT SPARES,21033,SUPPORT SERVICES,TORR SCIENTIFIC LTD,5100304307,46.6,
United Kingdom Atomic energy Authority,United Kingdom Atomic energy Authority,28/05/2014,PLANT SPARES,21033,SUPPORT SERVICES,TORR SCIENTIFIC LTD,5100304308,59.28,
United Kingdom Atomic energy Authority,United Kingdom Atomic energy Authority,28/05/2014,STATIONERY,21034,FUSION,PREMIER PAPER GROUP LTD,5100304309,446.38,
United Kingdom Atomic energy Authority,United Kingdom Atomic energy Authority,28/05/2014,PLANT SPARES,21033,SUPPORT SERVICES,TORR SCIENTIFIC LTD,5100304310,82.83,
United Kingdom Atomic energy Authority,United Kingdom Atomic energy Authority,28/05/2014,STATIONERY,21034,FUSION,PREMIER PAPER GROUP LTD,5100304311,251.47,
United Kingdom Atomic energy Authority,United Kingdom Atomic energy Authority,28/05/2014,STATIONERY,21034,FUSION,PREMIER PAPER GROUP LTD,5100304312,133.65,
United Kingdom Atomic energy Authority,United Kingdom Atomic energy Authority,28/05/2014,MATERIALS & SPARES,23125,FUSION,Purolite Internal Ltd.,5100304313,1430,
United Kingdom Atomic energy Authority,United Kingdom Atomic energy Authority,28/05/2014,MATERIALS & SPARES,25702,FUSION,RS COMPONENTS LTD,5100304314,363.74,
United Kingdom Atomic energy Authority,United Kingdom Atomic energy Authority,28/05/2014,MATERIALS & SPARES,23152,FUSION,RS COMPONENTS LTD,5100304315,33.14,
United Kingdom Atomic energy Authority,United Kingdom Atomic energy Authority,28/05/2014,MATERIALS & SPARES,23131,FUSION,RS COMPONENTS LTD,5100304316,16.6,
United Kingdom Atomic energy Authority,United Kingdom Atomic energy Authority,11/06/2014,PLANT SPARES,21033,SUPPORT SERVICES,TORR SCIENTIFIC LTD,5100304317,115.17,
United Kingdom Atomic energy Authority,United Kingdom Atomic energy Authority,28/05/2014,PLANT SPARES,25103,FUSION,TORR SCIENTIFIC LTD,5100304318,217.5,
United Kingdom Atomic energy Authority,United Kingdom Atomic energy Authority,28/05/2014,PROFESSIONAL SERVICES,23165,FUSION,MATERIAL MEASUREMENTS LTD.,5100304319,1272.29,
United Kingdom Atomic energy Authority,United Kingdom Atomic energy Authority,28/05/2014,SECURITY & EMERGENCY,28020,PROPERTY,TRINITY PROTETION SYSTEMS,5100304320,375,
United Kingdom Atomic energy Authority,United Kingdom Atomic energy Authority,28/05/2014,PROFESSIONAL SERVICES,23165,FUSION,MATERIAL MEASUREMENTS LTD.,5100304321,117.41,
United Kingdom Atomic energy Authority,United Kingdom Atomic energy Authority,28/05/2014,CLEANING,25103,FUSION,HYDROBLAST,5100304322,1275,
United Kingdom Atomic energy Authority,United Kingdom Atomic energy Authority,28/05/2014,PROFESSIONAL SERVICES,23165,FUSION,MATERIAL MEASUREMENTS LTD.,5100304323,168,
United Kingdom Atomic energy Authority,United Kingdom Atomic energy Authority,28/05/2014,MATERIALS & SPARES,25103,FUSION,TR FASTENINGS LTD,5100304324,1039.3,
United Kingdom Atomic energy Authority,United Kingdom Atomic energy Authority,28/05/2014,MATERIALS & SPARES,25103,FUSION,TR FASTENINGS LTD,5100304325,478.05,
United Kingdom Atomic energy Authority,United Kingdom Atomic energy Authority,28/05/2014,PLANT & EQUIPMENT,23103,FUSION,HEWDEN,5100304326,750,
United Kingdom Atomic energy Authority,United Kingdom Atomic energy Authority,18/06/2014,MATERIALS & SPARES,25103,FUSION,CROSSMAN ENGINEERING,5100304327,24213,
United Kingdom Atomic energy Authority,United Kingdom Atomic energy Authority,28/05/2014,AUDIT FEES,25821,FUSION,RESEARCH COUCILS INTERNAL AUDIT SERVICE,5100304329,3715.52,
United Kingdom Atomic energy Authority,United Kingdom Atomic energy Authority,28/05/2014,PLANT & EQUIPMENT,25103,FUSION,AALCO LIMITED,5100304330,167.4,
United Kingdom Atomic energy Authority,United Kingdom Atomic energy Authority,28/05/2014,PLANT SPARES,23103,FUSION,Beacon Group International Ltd,5100304331,127.89,
United Kingdom Atomic energy Authority,United Kingdom Atomic energy Authority,29/05/2014,PLANT & EQUIPMENT,25103,FUSION,DIGIKEY CORPORATION,5100304332,149.53,
United Kingdom Atomic energy Authority,United Kingdom Atomic energy Authority,28/05/2014,PLANT & EQUIPMENT,25103,FUSION,TIVERTON FABRICATION LTD,5100304333,799.3,
United Kingdom Atomic energy Authority,United Kingdom Atomic energy Authority,28/05/2014,PLANT & EQUIPMENT,25103,FUSION,TIVERTON FABRICATION LTD,5100304334,1241.7,
United Kingdom Atomic energy Authority,United Kingdom Atomic energy Authority,28/05/2014,PLANT & EQUIPMENT,25103,FUSION,TIVERTON FABRICATION LTD,5100304335,476.64,
United Kingdom Atomic energy Authority,United Kingdom Atomic energy Authority,28/05/2014,MATERIALS & SPARES,23120,FUSION,RS COMPONENTS LTD,5100304336,11.06,
United Kingdom Atomic energy Authority,United Kingdom Atomic energy Authority,28/05/2014,MATERIALS & SPARES,23125,FUSION,RS COMPONENTS LTD,5100304337,492.18,
United Kingdom Atomic energy Authority,United Kingdom Atomic energy Authority,28/05/2014,MATERIALS & SPARES,25103,FUSION,RS COMPONENTS LTD,5100304338,1742.76,
United Kingdom Atomic energy Authority,United Kingdom Atomic energy Authority,28/05/2014,MATERIALS & SPARES,23152,FUSION,OERLIKON LEYBOLD VACUUM UK LTD,5100304339,2747.35,
United Kingdom Atomic energy Authority,United Kingdom Atomic energy Authority,28/05/2014,MATERIALS & SPARES,23128,FUSION,MOUSER ELECTRONICS,5100304341,56.48,
United Kingdom Atomic energy Authority,United Kingdom Atomic energy Authority,28/05/2014,UNIVERSITY PLACEMENT,25501,FUSION,UNIVERSITY OF YORK,5100304342,1623,
United Kingdom Atomic energy Authority,United Kingdom Atomic energy Authority,28/05/2014,UNIVERSITY PLACEMENT,25501,FUSION,UNIVERSITY OF YORK,5100304343,2147.14,
United Kingdom Atomic energy Authority,United Kingdom Atomic energy Authority,28/05/2014,PLANT & EQUIPMENT,25103,FUSION,TIVERTON FABRICATION LTD,5100304344,397.97,
United Kingdom Atomic energy Authority,United Kingdom Atomic energy Authority,28/05/2014,MATERIALS & SPARES,23131,FUSION,RS COMPONENTS LTD,5100304345,95.34,
United Kingdom Atomic energy Authority,United Kingdom Atomic energy Authority,28/05/2014,UNIVERSITY PLACEMENT,25501,FUSION,UNIVERSITY OF YORK,5100304346,2086.67,
United Kingdom Atomic energy Authority,United Kingdom Atomic energy Authority,28/05/2014,MATERIALS & SPARES,23134,FUSION,SOUTHERN CALIBRATION LABORATORY,5100304347,352.8,
United Kingdom Atomic energy Authority,United Kingdom Atomic energy Authority,29/05/2014,MATERIALS & SPARES,29030,FUSION,Industrial Technical Ltd,5100304348,3391.9,
United Kingdom Atomic energy Authority,United Kingdom Atomic energy Authority,28/05/2014,MATERIALS & SPARES,23134,FUSION,SOUTHERN CALIBRATION LABORATORY,5100304349,90,
United Kingdom Atomic energy Authority,United Kingdom Atomic energy Authority,28/05/2014,MATERIALS & SPARES,23104,FUSION,SCREWFIX DIRECT LTD,5100304350,59.98,
United Kingdom Atomic energy Authority,United Kingdom Atomic energy Authority,29/05/2014,MATERIALS & SPARES,23161,FUSION,Industrial Technical Ltd,5100304351,12,
United Kingdom Atomic energy Authority,United Kingdom Atomic energy Authority,29/05/2014,MATERIALS & SPARES,23106,FUSION,Industrial Technical Ltd,5100304352,158.56,
United Kingdom Atomic energy Authority,United Kingdom Atomic energy Authority,28/05/2014,PLANT & EQUIPMENT,25103,FUSION,OMEGA ENGINEERING LTD,5100304353,85.38,
United Kingdom Atomic energy Authority,United Kingdom Atomic energy Authority,28/05/2014,MATERIALS & SPARES,23125,FUSION,RS COMPONENTS LTD,5100304354,131.9,
United Kingdom Atomic energy Authority,United Kingdom Atomic energy Authority,28/05/2014,PLANT & EQUIPMENT,29030,FUSION,JOHNSON MATTHEY PLC,5100304355,456.05,
United Kingdom Atomic energy Authority,United Kingdom Atomic energy Authority,28/05/2014,MATERIALS & SPARES,23161,FUSION,SCREWFIX DIRECT LTD,5100304356,212.47,
United Kingdom Atomic energy Authority,United Kingdom Atomic energy Authority,28/05/2014,MATERIALS & SPARES,23131,FUSION,SCREWFIX DIRECT LTD,5100304357,41.35,
United Kingdom Atomic energy Authority,United Kingdom Atomic energy Authority,28/05/2014,MATERIALS & SPARES,23151,FUSION,RS COMPONENTS LTD,5100304358,201.04,
United Kingdom Atomic energy Authority,United Kingdom Atomic energy Authority,28/05/2014,MATERIALS & SPARES,23128,FUSION,CYCLOPS ELECTRONICS LIMITED,5100304359,434,
United Kingdom Atomic energy Authority,United Kingdom Atomic energy Authority,28/05/2014,MATERIALS & SPARES,23103,FUSION,CROMWELL LTD,5100304360,234.65,
United Kingdom Atomic energy Authority,United Kingdom Atomic energy Authority,28/05/2014,MATERIALS & SPARES,23161,FUSION,CROMWELL LTD,5100304361,45.36,
United Kingdom Atomic energy Authority,United Kingdom Atomic energy Authority,28/05/2014,MATERIALS & SPARES,23131,FUSION,RS COMPONENTS LTD,5100304362,67.98,
United Kingdom Atomic energy Authority,United Kingdom Atomic energy Authority,28/05/2014,MATERIALS & SPARES,23151,FUSION,CROMWELL LTD,5100304363,41.36,
United Kingdom Atomic energy Authority,United Kingdom Atomic energy Authority,28/05/2014,MATERIALS & SPARES,23103,FUSION,CROMWELL LTD,5100304364,66.64,
United Kingdom Atomic energy Authority,United Kingdom Atomic energy Authority,28/05/2014,MATERIALS & SPARES,25103,FUSION,JEWSON LTD,5100304365,78.1,
United Kingdom Atomic energy Authority,United Kingdom Atomic energy Authority,28/05/2014,MATERIALS & SPARES,23161,FUSION,CROMWELL LTD,5100304366,297.15,
United Kingdom Atomic energy Authority,United Kingdom Atomic energy Authority,28/05/2014,MATERIALS & SPARES,23131,FUSION,RS COMPONENTS LTD,5100304367,90.26,
United Kingdom Atomic energy Authority,United Kingdom Atomic energy Authority,28/05/2014,MATERIALS & SPARES,25103,FUSION,CROMWELL LTD,5100304368,127.01,
United Kingdom Atomic energy Authority,United Kingdom Atomic energy Authority,28/05/2014,PERSONAL PROTECTIVE EQUIPMENT,23161,FUSION,ARCO LTD,5100304369,387.8,
United Kingdom Atomic energy Authority,United Kingdom Atomic energy Authority,28/05/2014,MATERIALS & SPARES,23129,FUSION,RS COMPONENTS LTD,5100304370,111.25,
United Kingdom Atomic energy Authority,United Kingdom Atomic energy Authority,28/05/2014,PERSONAL PROTECTIVE EQUIPMENT,23161,FUSION,ARCO LTD,5100304371,89.47,
United Kingdom Atomic energy Authority,United Kingdom Atomic energy Authority,28/05/2014,MATERIALS & SPARES,23125,FUSION,RS COMPONENTS LTD,5100304372,214.2,
United Kingdom Atomic energy Authority,United Kingdom Atomic energy Authority,28/05/2014,PERSONAL PROTECTIVE EQUIPMENT,23126,FUSION,ARCO LTD,5100304373,39.2,
United Kingdom Atomic energy Authority,United Kingdom Atomic energy Authority,28/05/2014,PLANT & EQUIPMENT,23126,FUSION,EDMUNDSON ELECTRICALS LTD,5100304374,559.36,
United Kingdom Atomic energy Authority,United Kingdom Atomic energy Authority,28/05/2014,PLANT & EQUIPMENT,23161,FUSION,EDMUNDSON ELECTRICALS LTD,5100304375,48.09,
United Kingdom Atomic energy Authority,United Kingdom Atomic energy Authority,28/05/2014,PLANT & EQUIPMENT,23161,FUSION,EDMUNDSON ELECTRICALS LTD,5100304376,34.47,
United Kingdom Atomic energy Authority,United Kingdom Atomic energy Authority,28/05/2014,PLANT & EQUIPMENT,23161,FUSION,EDMUNDSON ELECTRICALS LTD,5100304377,674.7,
United Kingdom Atomic energy Authority,United Kingdom Atomic energy Authority,28/05/2014,PLANT & EQUIPMENT,23161,FUSION,EDMUNDSON ELECTRICALS LTD,5100304379,284.82,
United Kingdom Atomic energy Authority,United Kingdom Atomic energy Authority,28/05/2014,PLANT & EQUIPMENT,23161,FUSION,EDMUNDSON ELECTRICALS LTD,5100304381,37.44,
United Kingdom Atomic energy Authority,United Kingdom Atomic energy Authority,28/05/2014,MATERIALS & SPARES,23103,FUSION,RS COMPONENTS LTD,5100304382,93.46,
United Kingdom Atomic energy Authority,United Kingdom Atomic energy Authority,28/05/2014,MATERIALS & SPARES,23111,FUSION,RS COMPONENTS LTD,5100304383,100.59,
United Kingdom Atomic energy Authority,United Kingdom Atomic energy Authority,28/05/2014,MATERIALS & SPARES,23129,FUSION,RS COMPONENTS LTD,5100304384,168.41,
United Kingdom Atomic energy Authority,United Kingdom Atomic energy Authority,28/05/2014,MATERIALS & SPARES,21033,SUPPORT SERVICES,TRAVIS PERKINS TRADING CO LTD,5100304385,131.46,
United Kingdom Atomic energy Authority,United Kingdom Atomic energy Authority,28/05/2014,MATERIALS & SPARES,25103,FUSION,PMD (UK) LTD,5100304388,98,
United Kingdom Atomic energy Authority,United Kingdom Atomic energy Authority,28/05/2014,MATERIALS & SPARES,25103,FUSION,L G Kimber (Engineering) Ltd,5100304390,3616,
United Kingdom Atomic energy Authority,United Kingdom Atomic energy Authority,09/06/2014,HEALTH PHYSICS,23164,FUSION,NUVIA LIMITED,5100304392,22104.58,
United Kingdom Atomic energy Authority,United Kingdom Atomic energy Authority,04/06/2014,GASES,23103,FUSION,BOC LTD,5100304399,118.38,
United Kingdom Atomic energy Authority,United Kingdom Atomic energy Authority,28/05/2014,MATERIALS & SPARES,29030,FUSION,DURBIN METAL INDUSTRIES LTD,5100304400,98.25,
United Kingdom Atomic energy Authority,United Kingdom Atomic energy Authority,28/05/2014,MATERIALS & SPARES,29030,FUSION,DURBIN METAL INDUSTRIES LTD,5100304401,95.6,
United Kingdom Atomic energy Authority,United Kingdom Atomic energy Authority,28/05/2014,MATERIALS & SPARES,29030,FUSION,DURBIN METAL INDUSTRIES LTD,5100304402,98.25,
United Kingdom Atomic energy Authority,United Kingdom Atomic energy Authority,28/05/2014,MATERIALS & SPARES,29030,FUSION,DURBIN METAL INDUSTRIES LTD,5100304403,27.5,
United Kingdom Atomic energy Authority,United Kingdom Atomic energy Authority,28/05/2014,SOFTWARE,23108,FUSION,APPLIED CAE,5100304404,2001,
United Kingdom Atomic energy Authority,United Kingdom Atomic energy Authority,28/05/2014,F&F,21033,SUPPORT SERVICES,EFG MATTHEWS OFFICE FURNITURE LTD,5100304405,520,
United Kingdom Atomic energy Authority,United Kingdom Atomic energy Authority,28/05/2014,F&F,21033,SUPPORT SERVICES,EFG MATTHEWS OFFICE FURNITURE LTD,5100304406,70,
United Kingdom Atomic energy Authority,United Kingdom Atomic energy Authority,28/05/2014,F&F,21033,SUPPORT SERVICES,EFG MATTHEWS OFFICE FURNITURE LTD,5100304407,128.7,
United Kingdom Atomic energy Authority,United Kingdom Atomic energy Authority,28/05/2014,F&F,21033,SUPPORT SERVICES,EFG MATTHEWS OFFICE FURNITURE LTD,5100304408,386.1,
United Kingdom Atomic energy Authority,United Kingdom Atomic energy Authority,28/05/2014,F&F,23108,FUSION,EFG MATTHEWS OFFICE FURNITURE LTD,5100304409,122.3,
United Kingdom Atomic energy Authority,United Kingdom Atomic energy Authority,28/05/2014,MATERIALS & SPARES,23125,FUSION,WOLSELEY UK LIMITED,5100304410,341.14,
United Kingdom Atomic energy Authority,United Kingdom Atomic energy Authority,28/05/2014,HIRED STAFF,0,FUSION,RULLION ENGINEERING PERSONNEL LTD,5100304411,903253.54,
United Kingdom Atomic energy Authority,United Kingdom Atomic energy Authority,28/05/2014,IT EQUIPMENT NON CAPITAL,23134,FUSION,SCAN COMPUTERS INTERNATIONAL LTD,5100304412,2234.14,
United Kingdom Atomic energy Authority,United Kingdom Atomic energy Authority,28/05/2014,PLANT SPARES,23161,FUSION,AURIGA EUROPE PLC,5100304413,163.57,
United Kingdom Atomic energy Authority,United Kingdom Atomic energy Authority,28/05/2014,IT EQUIPMENT NON CAPITAL,23134,FUSION,SCAN COMPUTERS INTERNATIONAL LTD,5100304414,2261.54,
United Kingdom Atomic energy Authority,United Kingdom Atomic energy Authority,28/05/2014,SECURITY & EMERGENCY,23161,FUSION,TRINITY PROTETION SYSTEMS,5100304415,100.3,
United Kingdom Atomic energy Authority,United Kingdom Atomic energy Authority,28/05/2014,IT EQUIPMENT NON CAPITAL,23134,FUSION,ACME TECHNOLOGY,5100304416,1465,
United Kingdom Atomic energy Authority,United Kingdom Atomic energy Authority,28/05/2014,SECURITY & EMERGENCY,23161,FUSION,TRINITY PROTETION SYSTEMS,5100304417,50.15,
United Kingdom Atomic energy Authority,United Kingdom Atomic energy Authority,28/05/2014,SECURITY & EMERGENCY,23161,FUSION,TRINITY PROTETION SYSTEMS,5100304418,50.15,
United Kingdom Atomic energy Authority,United Kingdom Atomic energy Authority,28/05/2014,SECURITY & EMERGENCY,23161,FUSION,TRINITY PROTETION SYSTEMS,5100304419,112.03,
United Kingdom Atomic energy Authority,United Kingdom Atomic energy Authority,28/05/2014,PROFESSIONAL SERVICES,23165,FUSION,MATERIAL MEASUREMENTS LTD.,5100304420,106.61,
United Kingdom Atomic energy Authority,United Kingdom Atomic energy Authority,28/05/2014,PROFESSIONAL SERVICES,23165,FUSION,MATERIAL MEASUREMENTS LTD.,5100304421,102.08,
United Kingdom Atomic energy Authority,United Kingdom Atomic energy Authority,28/05/2014,PROFESSIONAL SERVICES,23165,FUSION,MATERIAL MEASUREMENTS LTD.,5100304422,102.08,
United Kingdom Atomic energy Authority,United Kingdom Atomic energy Authority,28/05/2014,MATERIALS & SPARES,23121,FUSION,METALFAST (A DIVISION OF,5100304423,111.5,
United Kingdom Atomic energy Authority,United Kingdom Atomic energy Authority,28/05/2014,MATERIALS & SPARES,23121,FUSION,FARNELL ELECTRONIC,5100304424,294.34,
United Kingdom Atomic energy Authority,United Kingdom Atomic energy Authority,28/05/2014,MATERIALS & SPARES,23131,FUSION,FARNELL ELECTRONIC,5100304425,79.86,
United Kingdom Atomic energy Authority,United Kingdom Atomic energy Authority,28/05/2014,MATERIALS & SPARES,23152,FUSION,FARNELL ELECTRONIC,5100304426,10.88,
United Kingdom Atomic energy Authority,United Kingdom Atomic energy Authority,28/05/2014,MATERIALS & SPARES,23103,FUSION,THIRD DIMENSION,5100304427,3307,
United Kingdom Atomic energy Authority,United Kingdom Atomic energy Authority,28/05/2014,MATERIALS & SPARES,25103,FUSION,FARNELL ELECTRONIC,5100304428,212.17,
United Kingdom Atomic energy Authority,United Kingdom Atomic energy Authority,28/05/2014,MATERIALS & SPARES,25702,FUSION,FARNELL ELECTRONIC,5100304429,142.39,
United Kingdom Atomic energy Authority,United Kingdom Atomic energy Authority,11/06/2014,PROFESSIONAL SERVICES,63517,SUPPORT SERVICES,CSC COMPUTER SERVICES,5100304430,13843.5,
United Kingdom Atomic energy Authority,United Kingdom Atomic energy Authority,28/05/2014,MATERIALS & SPARES,23161,FUSION,FARNELL ELECTRONIC,5100304431,148,
United Kingdom Atomic energy Authority,United Kingdom Atomic energy Authority,28/05/2014,MATERIALS & SPARES,23129,FUSION,FARNELL ELECTRONIC,5100304432,92.39,
United Kingdom Atomic energy Authority,United Kingdom Atomic energy Authority,28/05/2014,MATERIALS & SPARES,25103,FUSION,TR FASTENINGS LTD,5100304433,62.4,
United Kingdom Atomic energy Authority,United Kingdom Atomic energy Authority,28/05/2014,PROFESSIONAL SERVICES,23164,FUSION,SCIENTIFICS LTD,5100304434,900,
United Kingdom Atomic energy Authority,United Kingdom Atomic energy Authority,04/06/2014,MATERIALS & SPARES,25103,FUSION,Creotech Instruments SA,5100304435,707.1,
United Kingdom Atomic energy Authority,United Kingdom Atomic energy Authority,28/05/2014,SOFTWARE,23132,FUSION,Q ASSOCIATES LTD,5100304438,13207.44,
United Kingdom Atomic energy Authority,United Kingdom Atomic energy Authority,28/05/2014,IT MANAGED SERVICE,25500,FUSION,SAMUI DESIGN & MANAGEMENT,5100304439,3250,
United Kingdom Atomic energy Authority,United Kingdom Atomic energy Authority,28/05/2014,PLANT SPARES,25103,FUSION,TRENZ ELECTRONIC GMBH,5100304440,750.6,
United Kingdom Atomic energy Authority,United Kingdom Atomic energy Authority,28/05/2014,HIRED STAFF,0,FUSION,RULLION ENGINEERING PERSONNEL LTD,5100304442,3275.79,
United Kingdom Atomic energy Authority,United Kingdom Atomic energy Authority,28/05/2014,PLANT & EQUIPMENT,25103,FUSION,EDMUNDSON ELECTRICALS LTD,5100304443,22.19,
United Kingdom Atomic energy Authority,United Kingdom Atomic energy Authority,04/06/2014,PLANT & EQUIPMENT,25103,FUSION,EDMUNDSON ELECTRICALS LTD,5100304444,790.03,
United Kingdom Atomic energy Authority,United Kingdom Atomic energy Authority,28/05/2014,PERSONAL PROTECTIVE EQUIPMENT,23129,FUSION,ARCO LTD,5100304445,27.8,
United Kingdom Atomic energy Authority,United Kingdom Atomic energy Authority,09/06/2014,PROFESSIONAL SERVICES,23134,FUSION,HYTEC ELECTRONICS LTD,5100304446,916,
United Kingdom Atomic energy Authority,United Kingdom Atomic energy Authority,09/06/2014,PROFESSIONAL SERVICES,23134,FUSION,HYTEC ELECTRONICS LTD,5100304447,1626.46,
United Kingdom Atomic energy Authority,United Kingdom Atomic energy Authority,28/05/2014,MATERIALS & SPARES,23161,FUSION,OXFORD BOLTS & BEARINGS,5100304448,49.8,
United Kingdom Atomic energy Authority,United Kingdom Atomic energy Authority,02/06/2014,MATERIALS & SPARES,23151,FUSION,OXFORD BOLTS & BEARINGS,5100304449,384.5,
United Kingdom Atomic energy Authority,United Kingdom Atomic energy Authority,28/05/2014,MATERIALS & SPARES,23151,FUSION,BSS OXFORD,5100304450,72,
United Kingdom Atomic energy Authority,United Kingdom Atomic energy Authority,02/06/2014,CATERING,28040,PROPERTY,AVENANCE PLC,5100304451,-304.15,
United Kingdom Atomic energy Authority,United Kingdom Atomic energy Authority,28/05/2014,MATERIALS & SPARES,23151,FUSION,OXFORD BOLTS & BEARINGS,5100304452,59.93,
United Kingdom Atomic energy Authority,United Kingdom Atomic energy Authority,09/06/2014,TRAINING COURSE FEES,25501,FUSION,OXFORD UNIVERSITY,5100304454,2952.57,
United Kingdom Atomic energy Authority,United Kingdom Atomic energy Authority,28/05/2014,CLEANING,28025,PROPERTY,OCS CLEANING & SUPPORT SERVICES,5100304455,7114.86,
United Kingdom Atomic energy Authority,United Kingdom Atomic energy Authority,28/05/2014,CLEANING,28025,PROPERTY,OCS CLEANING & SUPPORT SERVICES,5100304456,1362.2,
United Kingdom Atomic energy Authority,United Kingdom Atomic energy Authority,09/06/2014,UNIVERSITY PLACEMENT,25501,FUSION,UNIVERSITY OF DURHAM,5100304457,1044.3,
United Kingdom Atomic energy Authority,United Kingdom Atomic energy Authority,28/05/2014,CLEANING,23103,FUSION,OCS CLEANING & SUPPORT SERVICES,5100304459,3648.75,
United Kingdom Atomic energy Authority,United Kingdom Atomic energy Authority,28/05/2014,MATERIALS & SPARES,23129,FUSION,FARNELL ELECTRONIC,5100304460,28.89,
United Kingdom Atomic energy Authority,United Kingdom Atomic energy Authority,28/05/2014,MATERIALS & SPARES,23121,FUSION,FARNELL ELECTRONIC,5100304461,51.86,
United Kingdom Atomic energy Authority,United Kingdom Atomic energy Authority,28/05/2014,MATERIALS & SPARES,23134,FUSION,FARNELL ELECTRONIC,5100304462,96.15,
United Kingdom Atomic energy Authority,United Kingdom Atomic energy Authority,28/05/2014,MATERIALS & SPARES,23129,FUSION,FARNELL ELECTRONIC,5100304463,103.73,
United Kingdom Atomic energy Authority,United Kingdom Atomic energy Authority,28/05/2014,STATIONERY,21034,FUSION,HOBS REPROGRAPHICS PLC,5100304464,2953.75,
United Kingdom Atomic energy Authority,United Kingdom Atomic energy Authority,28/05/2014,STATIONERY,21034,FUSION,HOBS REPROGRAPHICS PLC,5100304465,1.5,
United Kingdom Atomic energy Authority,United Kingdom Atomic energy Authority,28/05/2014,MATERIALS & SPARES,23129,FUSION,FARNELL ELECTRONIC,5100304470,427.95,
United Kingdom Atomic energy Authority,United Kingdom Atomic energy Authority,28/05/2014,MATERIALS & SPARES,23102,FUSION,FARNELL ELECTRONIC,5100304471,269.3,
United Kingdom Atomic energy Authority,United Kingdom Atomic energy Authority,28/05/2014,MATERIALS & SPARES,23129,FUSION,FARNELL ELECTRONIC,5100304472,205.96,
United Kingdom Atomic energy Authority,United Kingdom Atomic energy Authority,28/05/2014,STATIONERY,21034,FUSION,HOBS REPROGRAPHICS PLC,5100304473,81.59,
United Kingdom Atomic energy Authority,United Kingdom Atomic energy Authority,28/05/2014,STATIONERY,21034,FUSION,HOBS REPROGRAPHICS PLC,5100304474,59.5,
United Kingdom Atomic energy Authority,United Kingdom Atomic energy Authority,28/05/2014,MATERIALS & SPARES,23161,FUSION,FARNELL ELECTRONIC,5100304475,242.42,
United Kingdom Atomic energy Authority,United Kingdom Atomic energy Authority,28/05/2014,MATERIALS & SPARES,23129,FUSION,FARNELL ELECTRONIC,5100304476,3,
United Kingdom Atomic energy Authority,United Kingdom Atomic energy Authority,28/05/2014,MATERIALS & SPARES,25704,FUSION,FARNELL ELECTRONIC,5100304477,539.01,
United Kingdom Atomic energy Authority,United Kingdom Atomic energy Authority,28/05/2014,MATERIALS & SPARES,21033,SUPPORT SERVICES,FARNELL ELECTRONIC,5100304478,78.12,
United Kingdom Atomic energy Authority,United Kingdom Atomic energy Authority,28/05/2014,PLANT & EQUIPMENT,23106,FUSION,HT SERVO LTD,5100304480,794,
United Kingdom Atomic energy Authority,United Kingdom Atomic energy Authority,28/05/2014,MATERIALS & SPARES,23128,FUSION,UNDERWOODS ELECTRICAL DISTRIBUTORS,5100304481,7337.73,
United Kingdom Atomic energy Authority,United Kingdom Atomic energy Authority,28/05/2014,MATERIALS & SPARES,23129,FUSION,FARNELL ELECTRONIC,5100304482,67.58,
United Kingdom Atomic energy Authority,United Kingdom Atomic energy Authority,28/05/2014,UNIVERSITY PLACEMENT,25501,FUSION,UNIVERSITY OF LIVERPOOL,5100304483,570,
United Kingdom Atomic energy Authority,United Kingdom Atomic energy Authority,28/05/2014,MATERIALS & SPARES,23152,FUSION,FARNELL ELECTRONIC,5100304484,455.64,
United Kingdom Atomic energy Authority,United Kingdom Atomic energy Authority,28/05/2014,MATERIALS & SPARES,23121,FUSION,FARNELL ELECTRONIC,5100304485,582.12,
United Kingdom Atomic energy Authority,United Kingdom Atomic energy Authority,28/05/2014,MATERIALS & SPARES,25702,FUSION,FARNELL ELECTRONIC,5100304486,231.04,
United Kingdom Atomic energy Authority,United Kingdom Atomic energy Authority,28/05/2014,TRAINING COURSE FEES,25917,FUSION,PEARCEMAYFIELD ASSOCIATED LTD,5100304487,3160,
United Kingdom Atomic energy Authority,United Kingdom Atomic energy Authority,28/05/2014,MATERIALS & SPARES,23129,FUSION,FARNELL ELECTRONIC,5100304488,74.99,
United Kingdom Atomic energy Authority,United Kingdom Atomic energy Authority,28/05/2014,STATIONERY,23161,FUSION,LYRECO UK LIMITED,5100304489,221.94,
United Kingdom Atomic energy Authority,United Kingdom Atomic energy Authority,28/05/2014,STATIONERY,23161,FUSION,LYRECO UK LIMITED,5100304490,569.72,
United Kingdom Atomic energy Authority,United Kingdom Atomic energy Authority,28/05/2014,MATERIALS & SPARES,25103,FUSION,NEWEY & EYRE LTD,5100304491,222.5,
United Kingdom Atomic energy Authority,United Kingdom Atomic energy Authority,28/05/2014,PLANT & EQUIPMENT,25103,FUSION,OMEGA ENGINEERING LTD,5100304492,85.38,
United Kingdom Atomic energy Authority,United Kingdom Atomic energy Authority,28/05/2014,MATERIALS & SPARES,23121,FUSION,SCHROFF UK LTD,5100304493,167.82,
United Kingdom Atomic energy Authority,United Kingdom Atomic energy Authority,09/06/2014,PROFESSIONAL SERVICES,23103,FUSION,BNS NUCLEAR SERVICES,5100304495,20292.98,
United Kingdom Atomic energy Authority,United Kingdom Atomic energy Authority,09/06/2014,PROFESSIONAL SERVICES,23103,FUSION,BNS NUCLEAR SERVICES,5100304496,89875.82,
United Kingdom Atomic energy Authority,United Kingdom Atomic energy Authority,28/05/2014,PLANT & EQUIPMENT,28900,PROPERTY,Towle Spurring Hardy Ltd,5100304497,12250,
United Kingdom Atomic energy Authority,United Kingdom Atomic energy Authority,28/05/2014,PLANT SPARES,25103,FUSION,A W CLARKE,5100304498,440,
United Kingdom Atomic energy Authority,United Kingdom Atomic energy Authority,28/05/2014,PLANT SPARES,25103,FUSION,A W CLARKE,5100304499,385,
United Kingdom Atomic energy Authority,United Kingdom Atomic energy Authority,28/05/2014,PLANT SPARES,25103,FUSION,A W CLARKE,5100304500,267.25,
United Kingdom Atomic energy Authority,United Kingdom Atomic energy Authority,28/05/2014,PLANT SPARES,24501,FUSION,A W CLARKE,5100304501,147.25,
United Kingdom Atomic energy Authority,United Kingdom Atomic energy Authority,02/06/2014,PROFESSIONAL SERVICES,24000,FUSION,SWAGELOK LONDON,5100304502,1762.43,
United Kingdom Atomic energy Authority,United Kingdom Atomic energy Authority,28/05/2014,MATERIALS & SPARES,29030,FUSION,DURBIN METAL INDUSTRIES LTD,5100304503,36.5,
United Kingdom Atomic energy Authority,United Kingdom Atomic energy Authority,02/06/2014,MATERIALS & SPARES,23151,FUSION,ABRACLEAN LIMITED,5100304504,443.72,
United Kingdom Atomic energy Authority,United Kingdom Atomic energy Authority,11/06/2014,PROFESSIONAL SERVICES,63517,SUPPORT SERVICES,CSC COMPUTER SERVICES,5100304505,291.75,
United Kingdom Atomic energy Authority,United Kingdom Atomic energy Authority,04/06/2014,MATERIALS & SPARES,25403,FUSION,W.E Marson & Company Ltd,5100304506,6035,
United Kingdom Atomic energy Authority,United Kingdom Atomic energy Authority,11/06/2014,PROFESSIONAL SERVICES,29200,FUSION,Ashdown site Investigation Ltd,5100304507,1936,
United Kingdom Atomic energy Authority,United Kingdom Atomic energy Authority,02/06/2014,IT EQUIPMENT NON CAPITAL,23121,FUSION,WORKSTATION SPECIALISTS,5100304508,3730,
United Kingdom Atomic energy Authority,United Kingdom Atomic energy Authority,28/05/2014,UNIVERSITY PLACEMENT,23150,FUSION,WARWICK UNIVERSITY,5100304509,1272.5,
United Kingdom Atomic energy Authority,United Kingdom Atomic energy Authority,02/06/2014,PERSONAL PROTECTIVE EQUIPMENT,23151,FUSION,ARCO LTD,5100304510,20.4,
United Kingdom Atomic energy Authority,United Kingdom Atomic energy Authority,02/06/2014,PERSONAL PROTECTIVE EQUIPMENT,23151,FUSION,ARCO LTD,5100304511,10.2,
United Kingdom Atomic energy Authority,United Kingdom Atomic energy Authority,28/05/2014,MATERIALS & SPARES,23106,FUSION,RS COMPONENTS LTD,5100304512,47.74,
United Kingdom Atomic energy Authority,United Kingdom Atomic energy Authority,28/05/2014,MATERIALS & SPARES,23161,FUSION,RS COMPONENTS LTD,5100304513,205.62,
United Kingdom Atomic energy Authority,United Kingdom Atomic energy Authority,02/06/2014,PLANT & EQUIPMENT,29030,FUSION,SPANOPTIC LTD,5100304514,1445,
United Kingdom Atomic energy Authority,United Kingdom Atomic energy Authority,02/06/2014,PLANT & EQUIPMENT,29030,FUSION,SPANOPTIC LTD,5100304515,791.33,
United Kingdom Atomic energy Authority,United Kingdom Atomic energy Authority,28/05/2014,MATERIALS & SPARES,25103,FUSION,RS COMPONENTS LTD,5100304516,25.93,
United Kingdom Atomic energy Authority,United Kingdom Atomic energy Authority,28/05/2014,PLANT & EQUIPMENT,25501,FUSION,AIR SEA CONTAINERS LTD,5100304517,70.86,
United Kingdom Atomic energy Authority,United Kingdom Atomic energy Authority,04/06/2014,PROFESSIONAL SERVICES,23165,FUSION,MATERIAL MEASUREMENTS LTD.,5100304518,102.08,
United Kingdom Atomic energy Authority,United Kingdom Atomic energy Authority,28/05/2014,MATERIALS & SPARES,23152,FUSION,RS COMPONENTS LTD,5100304519,46.58,
United Kingdom Atomic energy Authority,United Kingdom Atomic energy Authority,28/05/2014,MATERIALS & SPARES,23131,FUSION,RS COMPONENTS LTD,5100304520,138.07,
United Kingdom Atomic energy Authority,United Kingdom Atomic energy Authority,28/05/2014,MATERIALS & SPARES,23129,FUSION,RS COMPONENTS LTD,5100304521,135.92,
United Kingdom Atomic energy Authority,United Kingdom Atomic energy Authority,02/06/2014,SECURITY & EMERGENCY,23161,FUSION,TRINITY PROTETION SYSTEMS,5100304522,187.5,
United Kingdom Atomic energy Authority,United Kingdom Atomic energy Authority,28/05/2014,MATERIALS & SPARES,23128,FUSION,RS COMPONENTS LTD,5100304523,201.67,
United Kingdom Atomic energy Authority,United Kingdom Atomic energy Authority,28/05/2014,MATERIALS & SPARES,23152,FUSION,RS COMPONENTS LTD,5100304524,47.6,
United Kingdom Atomic energy Authority,United Kingdom Atomic energy Authority,04/06/2014,PROFESSIONAL SERVICES,23164,FUSION,SHAWCITY,5100304525,397,
United Kingdom Atomic energy Authority,United Kingdom Atomic energy Authority,28/05/2014,MATERIALS & SPARES,25704,FUSION,MOUSER ELECTRONICS,5100304526,69.5,
United Kingdom Atomic energy Authority,United Kingdom Atomic energy Authority,11/06/2014,SOFTWARE,23103,FUSION,GEODETIC SERVICES INC,5100304527,1486.94,
United Kingdom Atomic energy Authority,United Kingdom Atomic energy Authority,28/05/2014,MEDICAL EXPENSES,23162,FUSION,IMASS LTD,5100304528,4985.41,
United Kingdom Atomic energy Authority,United Kingdom Atomic energy Authority,09/06/2014,MATERIALS & SPARES,23151,FUSION,DIDCOT PLANT LTD,5100304529,342,
United Kingdom Atomic energy Authority,United Kingdom Atomic energy Authority,09/06/2014,MATERIALS & SPARES,23151,FUSION,DIDCOT PLANT LTD,5100304530,1.9,
United Kingdom Atomic energy Authority,United Kingdom Atomic energy Authority,28/05/2014,CONSUMABLES,23125,FUSION,BRITISH SALT LTD,5100304531,2796.43,
United Kingdom Atomic energy Authority,United Kingdom Atomic energy Authority,28/05/2014,MATERIALS & SPARES,23128,FUSION,MAPLIN ELECTRONICS LTD,5100304532,23.3,
United Kingdom Atomic energy Authority,United Kingdom Atomic energy Authority,25/06/2014,PLANT & EQUIPMENT,23151,FUSION,Modulek,5100304533,149597.26,
United Kingdom Atomic energy Authority,United Kingdom Atomic energy Authority,04/06/2014,AUDIT FEES,21033,SUPPORT SERVICES,AFAQ-EAQA LTD,5100304534,790,
United Kingdom Atomic energy Authority,United Kingdom Atomic energy Authority,02/06/2014,PROFESSIONAL SERVICES,21033,SUPPORT SERVICES,CSC COMPUTER SERVICES,5100304535,4589.86,
United Kingdom Atomic energy Authority,United Kingdom Atomic energy Authority,28/05/2014,MATERIALS & SPARES,23150,FUSION,RS COMPONENTS LTD,5100304536,48.19,
United Kingdom Atomic energy Authority,United Kingdom Atomic energy Authority,28/05/2014,MATERIALS & SPARES,23121,FUSION,RS COMPONENTS LTD,5100304537,8.64,
United Kingdom Atomic energy Authority,United Kingdom Atomic energy Authority,28/05/2014,MATERIALS & SPARES,23128,FUSION,RS COMPONENTS LTD,5100304538,503.95,
United Kingdom Atomic energy Authority,United Kingdom Atomic energy Authority,28/05/2014,MATERIALS & SPARES,23161,FUSION,RS COMPONENTS LTD,5100304539,51.41,
United Kingdom Atomic energy Authority,United Kingdom Atomic energy Authority,28/05/2014,MATERIALS & SPARES,23129,FUSION,RS COMPONENTS LTD,5100304540,135.32,
United Kingdom Atomic energy Authority,United Kingdom Atomic energy Authority,28/05/2014,MATERIALS & SPARES,23120,FUSION,RS COMPONENTS LTD,5100304541,630,
United Kingdom Atomic energy Authority,United Kingdom Atomic energy Authority,28/05/2014,MATERIALS & SPARES,23125,FUSION,RS COMPONENTS LTD,5100304542,183.75,
United Kingdom Atomic energy Authority,United Kingdom Atomic energy Authority,28/05/2014,MATERIALS & SPARES,23131,FUSION,RS COMPONENTS LTD,5100304543,63.37,
United Kingdom Atomic energy Authority,United Kingdom Atomic energy Authority,02/06/2014,MATERIALS & SPARES,25103,FUSION,RS COMPONENTS LTD,5100304544,261.71,
United Kingdom Atomic energy Authority,United Kingdom Atomic energy Authority,28/05/2014,MATERIALS & SPARES,21033,SUPPORT SERVICES,RS COMPONENTS LTD,5100304545,80.72,
United Kingdom Atomic energy Authority,United Kingdom Atomic energy Authority,09/06/2014,CLEANING,28025,PROPERTY,OCS CLEANING & SUPPORT SERVICES,5100304546,1870,
United Kingdom Atomic energy Authority,United Kingdom Atomic energy Authority,29/05/2014,CONSUMABLES,23109,FUSION,VenusWorks Ltd,5100304547,1250,
United Kingdom Atomic energy Authority,United Kingdom Atomic energy Authority,02/06/2014,PROFESSIONAL SERVICES,21033,SUPPORT SERVICES,ALLEN ASSOCIATES,5100304548,4500,
United Kingdom Atomic energy Authority,United Kingdom Atomic energy Authority,29/05/2014,CONSUMABLES,23109,FUSION,VenusWorks Ltd,5100304549,1250,
United Kingdom Atomic energy Authority,United Kingdom Atomic energy Authority,28/05/2014,PROFESSIONAL SERVICES,25103,FUSION,HUTTON ENGINEERING (PRECISION) LTD,5100304550,214.5,
United Kingdom Atomic energy Authority,United Kingdom Atomic energy Authority,28/05/2014,PROFESSIONAL SERVICES,25103,FUSION,HUTTON ENGINEERING (PRECISION) LTD,5100304551,1354.08,
United Kingdom Atomic energy Authority,United Kingdom Atomic energy Authority,28/05/2014,BUILDING REPAIRS,25403,FUSION,KNOWLES & SONS (OXFORD) LTD,5100304552,5854.32,
United Kingdom Atomic energy Authority,United Kingdom Atomic energy Authority,02/06/2014,PLANT & EQUIPMENT,25103,FUSION,AEROSPACE TOOLING,5100304553,3394.68,
United Kingdom Atomic energy Authority,United Kingdom Atomic energy Authority,28/05/2014,BUILDING REPAIRS,25701,FUSION,KNOWLES & SONS (OXFORD) LTD,5100304554,25,
United Kingdom Atomic energy Authority,United Kingdom Atomic energy Authority,04/06/2014,MATERIALS & SPARES,23103,FUSION,SETON,5100304555,233.9,
United Kingdom Atomic energy Authority,United Kingdom Atomic energy Authority,28/05/2014,BUILDING REPAIRS,25701,FUSION,KNOWLES & SONS (OXFORD) LTD,5100304556,25,
United Kingdom Atomic energy Authority,United Kingdom Atomic energy Authority,28/05/2014,PLANT & EQUIPMENT,25103,FUSION,TIVERTON FABRICATION LTD,5100304557,476.64,
United Kingdom Atomic energy Authority,United Kingdom Atomic energy Authority,28/05/2014,BUILDING REPAIRS,23151,FUSION,KNOWLES & SONS (OXFORD) LTD,5100304558,303.79,
United Kingdom Atomic energy Authority,United Kingdom Atomic energy Authority,28/05/2014,BUILDING REPAIRS,21033,SUPPORT SERVICES,KNOWLES & SONS (OXFORD) LTD,5100304559,229.13,
United Kingdom Atomic energy Authority,United Kingdom Atomic energy Authority,28/05/2014,TRAINING COURSE FEES,25500,FUSION,MEDIA FIRST,5100304560,3495,
United Kingdom Atomic energy Authority,United Kingdom Atomic energy Authority,28/05/2014,MATERIALS & SPARES,23131,FUSION,THORLABS LTD,5100304561,400.67,
United Kingdom Atomic energy Authority,United Kingdom Atomic energy Authority,28/05/2014,PLANT SPARES,23161,FUSION,AURIGA EUROPE PLC,5100304562,65.11,
United Kingdom Atomic energy Authority,United Kingdom Atomic energy Authority,28/05/2014,BUILDING REPAIRS,23151,FUSION,KNOWLES & SONS (OXFORD) LTD,5100304563,46.37,
United Kingdom Atomic energy Authority,United Kingdom Atomic energy Authority,28/05/2014,BUILDING REPAIRS,28020,PROPERTY,KNOWLES & SONS (OXFORD) LTD,5100304564,224.77,
United Kingdom Atomic energy Authority,United Kingdom Atomic energy Authority,28/05/2014,BUILDING REPAIRS,28020,PROPERTY,KNOWLES & SONS (OXFORD) LTD,5100304565,26.19,
United Kingdom Atomic energy Authority,United Kingdom Atomic energy Authority,28/05/2014,HIRED STAFF,0,FUSION,PELICAN SOFTWARE LTD,5100304566,5038.58,
United Kingdom Atomic energy Authority,United Kingdom Atomic energy Authority,28/05/2014,MATERIALS & SPARES,23129,FUSION,WOLSELEY UK LIMITED,5100304567,246.67,
United Kingdom Atomic energy Authority,United Kingdom Atomic energy Authority,28/05/2014,MATERIALS & SPARES,29030,FUSION,DURBIN METAL INDUSTRIES LTD,5100304568,-98.25,
United Kingdom Atomic energy Authority,United Kingdom Atomic energy Authority,18/06/2014,HIRED STAFF,0,FUSION,PELICAN SOFTWARE LTD,5100304569,5567.98,
United Kingdom Atomic energy Authority,United Kingdom Atomic energy Authority,18/06/2014,HIRED STAFF,0,FUSION,PELICAN SOFTWARE LTD,5100304570,6108.86,
United Kingdom Atomic energy Authority,United Kingdom Atomic energy Authority,02/06/2014,MATERIALS & SPARES,29030,FUSION,KEMET INTERNATIONAL LTD,5100304571,39.4,
United Kingdom Atomic energy Authority,United Kingdom Atomic energy Authority,02/06/2014,PLANT & EQUIPMENT,23151,FUSION,FISHER SCIENTIFIC UK LTD,5100304572,21,
United Kingdom Atomic energy Authority,United Kingdom Atomic energy Authority,28/05/2014,CAR HIRE,24501,FUSION,LEASEDRIVE VELO,5100304573,126.26,
United Kingdom Atomic energy Authority,United Kingdom Atomic energy Authority,28/05/2014,CAR HIRE,24501,FUSION,LEASEDRIVE VELO,5100304574,36.44,
United Kingdom Atomic energy Authority,United Kingdom Atomic energy Authority,28/05/2014,CAR HIRE,29001,FUSION,LEASEDRIVE VELO,5100304575,181.35,
United Kingdom Atomic energy Authority,United Kingdom Atomic energy Authority,28/05/2014,CAR HIRE,25103,FUSION,LEASEDRIVE VELO,5100304576,99.28,
United Kingdom Atomic energy Authority,United Kingdom Atomic energy Authority,28/05/2014,CAR HIRE,25103,FUSION,LEASEDRIVE VELO,5100304577,410.48,
United Kingdom Atomic energy Authority,United Kingdom Atomic energy Authority,28/05/2014,CAR HIRE,25103,FUSION,LEASEDRIVE VELO,5100304578,72.88,
United Kingdom Atomic energy Authority,United Kingdom Atomic energy Authority,28/05/2014,INSURANCE,63605,SUPPORT SERVICES,MARSH UK LIMITED,5100304579,20000,
United Kingdom Atomic energy Authority,United Kingdom Atomic energy Authority,09/06/2014,CLEANING,23103,FUSION,HYDROBLAST,5100304580,1640,
United Kingdom Atomic energy Authority,United Kingdom Atomic energy Authority,09/06/2014,CLEANING,25103,FUSION,HYDROBLAST,5100304581,2260,
United Kingdom Atomic energy Authority,United Kingdom Atomic energy Authority,02/06/2014,ELECTRICITY,23101,FUSION,NATIONAL GRID TRANSCO,5100304582,3786.94,
United Kingdom Atomic energy Authority,United Kingdom Atomic energy Authority,02/06/2014,MATERIALS & SPARES,23126,FUSION,SP SERVICES UK LTD,5100304583,64.73,
United Kingdom Atomic energy Authority,United Kingdom Atomic energy Authority,28/05/2014,MATERIALS & SPARES,25103,FUSION,FARNELL ELECTRONIC,5100304584,78.3,
United Kingdom Atomic energy Authority,United Kingdom Atomic energy Authority,28/05/2014,MATERIALS & SPARES,25701,FUSION,FARNELL ELECTRONIC,5100304585,219.22,
United Kingdom Atomic energy Authority,United Kingdom Atomic energy Authority,28/05/2014,MATERIALS & SPARES,23128,FUSION,RS COMPONENTS LTD,5100304586,31.77,
United Kingdom Atomic energy Authority,United Kingdom Atomic energy Authority,28/05/2014,MATERIALS & SPARES,23152,FUSION,RS COMPONENTS LTD,5100304587,116.75,
United Kingdom Atomic energy Authority,United Kingdom Atomic energy Authority,28/05/2014,MATERIALS & SPARES,23134,FUSION,RS COMPONENTS LTD,5100304588,1072.25,
United Kingdom Atomic energy Authority,United Kingdom Atomic energy Authority,28/05/2014,MATERIALS & SPARES,23129,FUSION,RS COMPONENTS LTD,5100304589,104.06,
United Kingdom Atomic energy Authority,United Kingdom Atomic energy Authority,28/05/2014,MATERIALS & SPARES,23106,FUSION,RS COMPONENTS LTD,5100304590,7.06,
United Kingdom Atomic energy Authority,United Kingdom Atomic energy Authority,28/05/2014,MATERIALS & SPARES,23152,FUSION,RS COMPONENTS LTD,5100304591,70.55,
United Kingdom Atomic energy Authority,United Kingdom Atomic energy Authority,02/06/2014,MATERIALS & SPARES,23150,FUSION,RS COMPONENTS LTD,5100304592,27.05,
United Kingdom Atomic energy Authority,United Kingdom Atomic energy Authority,28/05/2014,MATERIALS & SPARES,23129,FUSION,RS COMPONENTS LTD,5100304593,29.11,
United Kingdom Atomic energy Authority,United Kingdom Atomic energy Authority,28/05/2014,CAR HIRE,25103,FUSION,LEASEDRIVE VELO,5100304594,36.44,
United Kingdom Atomic energy Authority,United Kingdom Atomic energy Authority,28/05/2014,PROFESSIONAL SERVICES,25103,FUSION,MACHINING TECHNOLOGY (MACH-TECH),5100304595,4124.88,
United Kingdom Atomic energy Authority,United Kingdom Atomic energy Authority,18/06/2014,PLANT SPARES,25103,FUSION,A W CLARKE,5100304596,1800,
United Kingdom Atomic energy Authority,United Kingdom Atomic energy Authority,18/06/2014,PLANT SPARES,25103,FUSION,A W CLARKE,5100304597,321.16,
United Kingdom Atomic energy Authority,United Kingdom Atomic energy Authority,02/06/2014,MATERIALS & SPARES,23122,FUSION,ETPS LTD,5100304598,7270,
United Kingdom Atomic energy Authority,United Kingdom Atomic energy Authority,04/06/2014,PLANT & EQUIPMENT,28040,PROPERTY,TOTAL AUDIO VISUAL SOLUTIONS LTD,5100304600,320,
United Kingdom Atomic energy Authority,United Kingdom Atomic energy Authority,04/06/2014,GASES,23164,FUSION,BOC LTD,5100304601,571.44,
United Kingdom Atomic energy Authority,United Kingdom Atomic energy Authority,04/06/2014,GASES,23151,FUSION,BOC LTD,5100304602,51.04,
United Kingdom Atomic energy Authority,United Kingdom Atomic energy Authority,11/06/2014,GASES,23128,FUSION,BOC LTD,5100304603,5438.94,
United Kingdom Atomic energy Authority,United Kingdom Atomic energy Authority,25/06/2014,PLANT & EQUIPMENT,23106,FUSION,HT SERVO LTD,5100304604,23220,
United Kingdom Atomic energy Authority,United Kingdom Atomic energy Authority,28/05/2014,PLANT & EQUIPMENT,23152,FUSION,FESTO LTD,5100304605,420.22,
United Kingdom Atomic energy Authority,United Kingdom Atomic energy Authority,02/06/2014,PLANT & EQUIPMENT,29001,FUSION,INSIGHT DIRECT LTD,5100304606,792.99,
United Kingdom Atomic energy Authority,United Kingdom Atomic energy Authority,28/05/2014,SOFTWARE,23134,FUSION,PUGH COMPUTERS LTD,5100304611,75,
United Kingdom Atomic energy Authority,United Kingdom Atomic energy Authority,28/05/2014,BUILDING REPAIRS,28000,PROPERTY,KNOWLES & SONS (OXFORD) LTD,5100304612,-289.42,
United Kingdom Atomic energy Authority,United Kingdom Atomic energy Authority,28/05/2014,MATERIALS & SPARES,23161,FUSION,ALPHA PACKAGING,5100304613,142,
United Kingdom Atomic energy Authority,United Kingdom Atomic energy Authority,02/06/2014,MATERIALS & SPARES,29030,FUSION,WESSEX CHEMICAL FACTORS,5100304614,140,
United Kingdom Atomic energy Authority,United Kingdom Atomic energy Authority,23/06/2014,PLANT & EQUIPMENT,25103,FUSION,TESLA ENGINEERING LTD,5100304615,26875,
United Kingdom Atomic energy Authority,United Kingdom Atomic energy Authority,28/05/2014,REPAIRS & MAINTENANCE,25103,FUSION,BEAVER 84 LIMITED,5100304616,164,
United Kingdom Atomic energy Authority,United Kingdom Atomic energy Authority,09/06/2014,PROFESSIONAL SERVICES,21033,SUPPORT SERVICES,ASSYSTEM UK LTD,5100304617,19366.45,
United Kingdom Atomic energy Authority,United Kingdom Atomic energy Authority,02/06/2014,MATERIALS & SPARES,23106,FUSION,TVH,5100304618,708.65,
United Kingdom Atomic energy Authority,United Kingdom Atomic energy Authority,02/06/2014,PLANT & EQUIPMENT,23617,FUSION,ABB Ltd,5100304619,4504,
United Kingdom Atomic energy Authority,United Kingdom Atomic energy Authority,18/06/2014,PROFESSIONAL SERVICES,21033,SUPPORT SERVICES,ALLEN ASSOCIATES,5100304620,818.07,
United Kingdom Atomic energy Authority,United Kingdom Atomic energy Authority,23/06/2014,MATERIALS & SPARES,25103,FUSION,Metal Improvement Company LLC,5100304621,2215,
United Kingdom Atomic energy Authority,United Kingdom Atomic energy Authority,04/06/2014,PROFESSIONAL SERVICES,23165,FUSION,MATERIAL MEASUREMENTS LTD.,5100304622,106.61,
United Kingdom Atomic energy Authority,United Kingdom Atomic energy Authority,04/06/2014,PROFESSIONAL SERVICES,23165,FUSION,MATERIAL MEASUREMENTS LTD.,5100304623,1252.64,
United Kingdom Atomic energy Authority,United Kingdom Atomic energy Authority,02/06/2014,MATERIALS & SPARES,23121,FUSION,FORGEWELD LTD,5100304624,140,
United Kingdom Atomic energy Authority,United Kingdom Atomic energy Authority,02/06/2014,MATERIALS & SPARES,21033,SUPPORT SERVICES,GOODMAND STEEL SERVICES LTD,5100304625,20.56,
United Kingdom Atomic energy Authority,United Kingdom Atomic energy Authority,02/06/2014,PROFESSIONAL SERVICES,0,FUSION,QUEENS UNIVERSITY BELFAST,5100304626,21672.14,
United Kingdom Atomic energy Authority,United Kingdom Atomic energy Authority,02/06/2014,MATERIALS & SPARES,23124,FUSION,GOODMAND STEEL SERVICES LTD,5100304627,132,
United Kingdom Atomic energy Authority,United Kingdom Atomic energy Authority,02/06/2014,IT EQUIPMENT NON CAPITAL,23134,FUSION,PRODEC NETWORKS LTD,5100304628,236.87,
United Kingdom Atomic energy Authority,United Kingdom Atomic energy Authority,02/06/2014,MATERIALS & SPARES,23152,FUSION,FTI LTD,5100304629,60.85,
United Kingdom Atomic energy Authority,United Kingdom Atomic energy Authority,28/05/2014,COMPENSATION AND LEGAL FEES,63511,SUPPORT SERVICES,KEOGHS,5100304631,592,
United Kingdom Atomic energy Authority,United Kingdom Atomic energy Authority,02/06/2014,MATERIALS & SPARES,25103,FUSION,SCREWFIX DIRECT LTD,5100304632,174.79,
United Kingdom Atomic energy Authority,United Kingdom Atomic energy Authority,28/05/2014,MATERIALS & SPARES,23129,FUSION,CPC PLC,5100304633,-87.24,
United Kingdom Atomic energy Authority,United Kingdom Atomic energy Authority,02/06/2014,PROFESSIONAL SERVICES,25103,FUSION,SWAGELOK LONDON,5100304634,83.69,
United Kingdom Atomic energy Authority,United Kingdom Atomic energy Authority,02/06/2014,MATERIALS & SPARES,25701,FUSION,COMPLETE PCB SERVICES LTD,5100304635,1440.32,
United Kingdom Atomic energy Authority,United Kingdom Atomic energy Authority,02/06/2014,REPAIRS & MAINTENANCE,23108,FUSION,AD YOUNG TECHNICAL SERVICES LIMITED,5100304636,299.49,
United Kingdom Atomic energy Authority,United Kingdom Atomic energy Authority,02/06/2014,EXTRA MURAL RESEARCH,28030,PROPERTY,Windrush Ecology Ltd,5100304637,180,
United Kingdom Atomic energy Authority,United Kingdom Atomic energy Authority,02/06/2014,MATERIALS & SPARES,23129,FUSION,CPC PLC,5100304638,58.19,
United Kingdom Atomic energy Authority,United Kingdom Atomic energy Authority,02/06/2014,CONSUMABLES,29030,FUSION,CARILLON INDUSTRIAL SERVICES LTD,5100304639,12.28,
United Kingdom Atomic energy Authority,United Kingdom Atomic energy Authority,02/06/2014,CONSUMABLES,29030,FUSION,CARILLON INDUSTRIAL SERVICES LTD,5100304640,12.28,
United Kingdom Atomic energy Authority,United Kingdom Atomic energy Authority,02/06/2014,CONSUMABLES,29030,FUSION,CARILLON INDUSTRIAL SERVICES LTD,5100304641,21.36,
United Kingdom Atomic energy Authority,United Kingdom Atomic energy Authority,02/06/2014,CONSUMABLES,29030,FUSION,CARILLON INDUSTRIAL SERVICES LTD,5100304642,30.53,
United Kingdom Atomic energy Authority,United Kingdom Atomic energy Authority,09/06/2014,GASES,23120,FUSION,BOC LTD,5100304643,906.49,
United Kingdom Atomic energy Authority,United Kingdom Atomic energy Authority,09/06/2014,GASES,23120,FUSION,BOC LTD,5100304644,6194.2,
United Kingdom Atomic energy Authority,United Kingdom Atomic energy Authority,02/06/2014,COMPENSATION AND LEGAL FEES,28010,PROPERTY,MORGAN COLE,5100304645,2340,
United Kingdom Atomic energy Authority,United Kingdom Atomic energy Authority,02/06/2014,PLANT SPARES,25103,FUSION,BRITE PRECISION,5100304646,2755.32,
United Kingdom Atomic energy Authority,United Kingdom Atomic energy Authority,18/06/2014,PLANT SPARES,25103,FUSION,A W CLARKE,5100304647,122,
United Kingdom Atomic energy Authority,United Kingdom Atomic energy Authority,02/06/2014,MATERIALS & SPARES,23128,FUSION,NEWBURY ELECTRONICS,5100304648,84.97,
United Kingdom Atomic energy Authority,United Kingdom Atomic energy Authority,02/06/2014,BUILDING REPAIRS,28200,PROPERTY,KNOWLES & SONS (OXFORD) LTD,5100304649,50044.28,
United Kingdom Atomic energy Authority,United Kingdom Atomic energy Authority,02/06/2014,BUILDING REPAIRS,28200,PROPERTY,KNOWLES & SONS (OXFORD) LTD,5100304650,-61523.52,
United Kingdom Atomic energy Authority,United Kingdom Atomic energy Authority,11/06/2014,TELECOMMUNICATIONS,28040,PROPERTY,THUS PLC,5100304651,480,
United Kingdom Atomic energy Authority,United Kingdom Atomic energy Authority,02/06/2014,MATERIALS & SPARES,23125,FUSION,INDUSTRIAL CHEMICALS,5100304652,375.4,
United Kingdom Atomic energy Authority,United Kingdom Atomic energy Authority,02/06/2014,PLANT & EQUIPMENT,23152,FUSION,PFEIFFER VACUUM UK,5100304653,741.5,
United Kingdom Atomic energy Authority,United Kingdom Atomic energy Authority,02/06/2014,MATERIALS & SPARES,29030,FUSION,JAC TOOLS LTD,5100304655,149.9,
United Kingdom Atomic energy Authority,United Kingdom Atomic energy Authority,02/06/2014,HIRED STAFF,0,,GENTLE ASSOCIATES LTD,5100304656,4240.39,
United Kingdom Atomic energy Authority,United Kingdom Atomic energy Authority,04/06/2014,PLANT & EQUIPMENT,25501,FUSION,GOODFELLOW CAMBRIDGE LTD,5100304657,1084.8,
United Kingdom Atomic energy Authority,United Kingdom Atomic energy Authority,02/06/2014,PLANT & EQUIPMENT,23106,FUSION,NATIONAL INSTRUMENTS LTD,5100304658,110.16,
United Kingdom Atomic energy Authority,United Kingdom Atomic energy Authority,02/06/2014,PLANT & EQUIPMENT,23151,FUSION,FISHER SCIENTIFIC UK LTD,5100304659,31.58,
United Kingdom Atomic energy Authority,United Kingdom Atomic energy Authority,02/06/2014,MATERIALS & SPARES,23151,FUSION,RADDEC LTD,5100304660,21500,
United Kingdom Atomic energy Authority,United Kingdom Atomic energy Authority,02/06/2014,MATERIALS & SPARES,23161,FUSION,Lennox Uk Ltd,5100304661,42,
United Kingdom Atomic energy Authority,United Kingdom Atomic energy Authority,09/06/2014,MATERIALS & SPARES,23151,FUSION,UNDERWOODS ELECTRICAL DISTRIBUTORS,5100304662,139.15,
United Kingdom Atomic energy Authority,United Kingdom Atomic energy Authority,02/06/2014,PLANT & EQUIPMENT,23106,FUSION,REECE SAFETY PRODUCTS LTD,5100304664,528,
United Kingdom Atomic energy Authority,United Kingdom Atomic energy Authority,02/06/2014,PLANT & EQUIPMENT,23106,FUSION,REECE SAFETY PRODUCTS LTD,5100304665,9.1,
United Kingdom Atomic energy Authority,United Kingdom Atomic energy Authority,02/06/2014,PLANT & EQUIPMENT,23123,FUSION,IPM FITTINGS,5100304666,-15.92,
United Kingdom Atomic energy Authority,United Kingdom Atomic energy Authority,02/06/2014,PLANT & EQUIPMENT,23123,FUSION,IPM FITTINGS,5100304667,55.44,
United Kingdom Atomic energy Authority,United Kingdom Atomic energy Authority,02/06/2014,STATIONERY,23108,FUSION,HOBS REPROGRAPHICS PLC,5100304668,46.2,
United Kingdom Atomic energy Authority,United Kingdom Atomic energy Authority,02/06/2014,STATIONERY,23108,FUSION,HOBS REPROGRAPHICS PLC,5100304669,4.2,
United Kingdom Atomic energy Authority,United Kingdom Atomic energy Authority,02/06/2014,STATIONERY,23108,FUSION,HOBS REPROGRAPHICS PLC,5100304670,39.6,
United Kingdom Atomic energy Authority,United Kingdom Atomic energy Authority,02/06/2014,STATIONERY,23108,FUSION,HOBS REPROGRAPHICS PLC,5100304671,2.95,
United Kingdom Atomic energy Authority,United Kingdom Atomic energy Authority,02/06/2014,STATIONERY,23108,FUSION,HOBS REPROGRAPHICS PLC,5100304672,3,
United Kingdom Atomic energy Authority,United Kingdom Atomic energy Authority,02/06/2014,STATIONERY,23108,FUSION,HOBS REPROGRAPHICS PLC,5100304673,155.7,
United Kingdom Atomic energy Authority,United Kingdom Atomic energy Authority,02/06/2014,STATIONERY,23108,FUSION,HOBS REPROGRAPHICS PLC,5100304674,1.4,
United Kingdom Atomic energy Authority,United Kingdom Atomic energy Authority,02/06/2014,STATIONERY,23108,FUSION,HOBS REPROGRAPHICS PLC,5100304675,4.86,
United Kingdom Atomic energy Authority,United Kingdom Atomic energy Authority,02/06/2014,PLANT & EQUIPMENT,23126,FUSION,IPM FITTINGS,5100304676,717.7,
United Kingdom Atomic energy Authority,United Kingdom Atomic energy Authority,02/06/2014,PERSONAL PROTECTIVE EQUIPMENT,23161,FUSION,ARCO LTD,5100304677,184,
United Kingdom Atomic energy Authority,United Kingdom Atomic energy Authority,02/06/2014,PERSONAL PROTECTIVE EQUIPMENT,23161,FUSION,ARCO LTD,5100304679,1945,
United Kingdom Atomic energy Authority,United Kingdom Atomic energy Authority,02/06/2014,PERSONAL PROTECTIVE EQUIPMENT,21033,SUPPORT SERVICES,ARCO LTD,5100304680,351.78,
United Kingdom Atomic energy Authority,United Kingdom Atomic energy Authority,02/06/2014,MATERIALS & SPARES,25702,FUSION,ANIXTER (UK) LTD,5100304681,2625,
United Kingdom Atomic energy Authority,United Kingdom Atomic energy Authority,02/06/2014,PERSONAL PROTECTIVE EQUIPMENT,23134,FUSION,ARCO LTD,5100304682,88.74,
United Kingdom Atomic energy Authority,United Kingdom Atomic energy Authority,02/06/2014,PERSONAL PROTECTIVE EQUIPMENT,29030,FUSION,ARCO LTD,5100304683,64.24,
United Kingdom Atomic energy Authority,United Kingdom Atomic energy Authority,02/06/2014,PERSONAL PROTECTIVE EQUIPMENT,23161,FUSION,ARCO LTD,5100304684,372.24,
United Kingdom Atomic energy Authority,United Kingdom Atomic energy Authority,18/06/2014,PLANT & EQUIPMENT,25103,FUSION,HUBBS MACHINE & MFG INC,5100304686,1071.79,
United Kingdom Atomic energy Authority,United Kingdom Atomic energy Authority,11/06/2014,SOFTWARE,23103,FUSION,GEODETIC SERVICES INC,5100304687,720.85,
United Kingdom Atomic energy Authority,United Kingdom Atomic energy Authority,02/06/2014,TRAINING COURSE FEES,21033,SUPPORT SERVICES,PEARCEMAYFIELD ASSOCIATED LTD,5100304688,4367.6,
United Kingdom Atomic energy Authority,United Kingdom Atomic energy Authority,11/06/2014,MATERIALS & SPARES,25702,FUSION,OERLIKON LEYBOLD VACUUM UK LTD,5100304689,646.05,
United Kingdom Atomic energy Authority,United Kingdom Atomic energy Authority,04/06/2014,UNIVERSITY PLACEMENT,25501,FUSION,UNIVERSITY OF LIVERPOOL,5100304690,2468.55,
United Kingdom Atomic energy Authority,United Kingdom Atomic energy Authority,02/06/2014,MATERIALS & SPARES,25103,FUSION,MOSS PLASTIC PARTS LTD,5100304691,316.38,
United Kingdom Atomic energy Authority,United Kingdom Atomic energy Authority,04/06/2014,UNIVERSITY PLACEMENT,25501,FUSION,UNIVERSITY OF YORK,5100304692,2147.14,
United Kingdom Atomic energy Authority,United Kingdom Atomic energy Authority,04/06/2014,UNIVERSITY PLACEMENT,25501,FUSION,UNIVERSITY OF YORK,5100304693,1806.9,
United Kingdom Atomic energy Authority,United Kingdom Atomic energy Authority,18/06/2014,MATERIALS & SPARES,23161,FUSION,Trend Control System Ltd,5100304694,19042.2,
United Kingdom Atomic energy Authority,United Kingdom Atomic energy Authority,09/06/2014,MATERIALS & SPARES,23151,FUSION,BUDGET FORKTRUCKS LTD,5100304695,342.33,
United Kingdom Atomic energy Authority,United Kingdom Atomic energy Authority,18/06/2014,PLANT & EQUIPMENT,23621,FUSION,ATMOSTAT,5100304696,37084.35,
United Kingdom Atomic energy Authority,United Kingdom Atomic energy Authority,02/06/2014,MATERIALS & SPARES,25103,FUSION,BUDGET FORKTRUCKS LTD,5100304697,342.33,
United Kingdom Atomic energy Authority,United Kingdom Atomic energy Authority,02/06/2014,PLANT & EQUIPMENT,23617,FUSION,ABB Ltd,5100304698,4995,
United Kingdom Atomic energy Authority,United Kingdom Atomic energy Authority,02/06/2014,MATERIALS & SPARES,23151,FUSION,BUDGET FORKTRUCKS LTD,5100304699,312,
United Kingdom Atomic energy Authority,United Kingdom Atomic energy Authority,02/06/2014,MATERIALS & SPARES,25103,FUSION,BUDGET FORKTRUCKS LTD,5100304700,268.67,
United Kingdom Atomic energy Authority,United Kingdom Atomic energy Authority,02/06/2014,PLANT & EQUIPMENT,23150,FUSION,PROCESS ANALYSER SYSTEMS LTD,5100304701,5562,
United Kingdom Atomic energy Authority,United Kingdom Atomic energy Authority,02/06/2014,MATERIALS & SPARES,23103,FUSION,BUDGET FORKTRUCKS LTD,5100304702,390,
United Kingdom Atomic energy Authority,United Kingdom Atomic energy Authority,04/06/2014,MATERIALS & SPARES,25103,FUSION,3D METAL-FORMING,5100304703,11922.14,
United Kingdom Atomic energy Authority,United Kingdom Atomic energy Authority,04/06/2014,MATERIALS & SPARES,25702,FUSION,CPC PLC,5100304704,225.77,
United Kingdom Atomic energy Authority,United Kingdom Atomic energy Authority,04/06/2014,PLANT & EQUIPMENT,23106,FUSION,AALCO LIMITED,5100304705,124.85,
United Kingdom Atomic energy Authority,United Kingdom Atomic energy Authority,04/06/2014,PLANT & EQUIPMENT,23106,FUSION,AALCO LIMITED,5100304706,54.6,
United Kingdom Atomic energy Authority,United Kingdom Atomic energy Authority,11/06/2014,MATERIALS & SPARES,23128,FUSION,THALES ELECTRON DEVICES SA,5100304707,69639.9,
United Kingdom Atomic energy Authority,United Kingdom Atomic energy Authority,04/06/2014,PLANT & EQUIPMENT,23106,FUSION,AALCO LIMITED,5100304708,74.2,
United Kingdom Atomic energy Authority,United Kingdom Atomic energy Authority,02/06/2014,MATERIALS & SPARES,23161,FUSION,OXFORD BOLTS & BEARINGS,5100304709,135.69,
United Kingdom Atomic energy Authority,United Kingdom Atomic energy Authority,02/06/2014,MATERIALS & SPARES,25103,FUSION,TR FASTENINGS LTD,5100304710,192.77,
United Kingdom Atomic energy Authority,United Kingdom Atomic energy Authority,02/06/2014,STATIONERY,23161,FUSION,LYRECO UK LIMITED,5100304711,134.83,
United Kingdom Atomic energy Authority,United Kingdom Atomic energy Authority,02/06/2014,MATERIALS & SPARES,25103,FUSION,TR FASTENINGS LTD,5100304712,1703.31,
United Kingdom Atomic energy Authority,United Kingdom Atomic energy Authority,18/06/2014,PLANT & EQUIPMENT,29030,FUSION,PHS GROUP PLC,5100304713,37.5,
United Kingdom Atomic energy Authority,United Kingdom Atomic energy Authority,02/06/2014,MATERIALS & SPARES,25103,FUSION,TR FASTENINGS LTD,5100304714,164.81,
United Kingdom Atomic energy Authority,United Kingdom Atomic energy Authority,18/06/2014,PLANT & EQUIPMENT,29030,FUSION,FISHER SCIENTIFIC UK LTD,5100304715,207.21,
United Kingdom Atomic energy Authority,United Kingdom Atomic energy Authority,02/06/2014,CATERING,28040,PROPERTY,AVENANCE PLC,5100304716,787.44,
United Kingdom Atomic energy Authority,United Kingdom Atomic energy Authority,02/06/2014,PLANT & EQUIPMENT,23151,FUSION,FISHER SCIENTIFIC UK LTD,5100304717,32.96,
United Kingdom Atomic energy Authority,United Kingdom Atomic energy Authority,02/06/2014,PROFESSIONAL SERVICES,25103,FUSION,SWAGELOK LONDON,5100304718,1740.2,
United Kingdom Atomic energy Authority,United Kingdom Atomic energy Authority,04/06/2014,PLANT & EQUIPMENT,23164,FUSION,FISHER SCIENTIFIC UK LTD,5100304719,723.36,
United Kingdom Atomic energy Authority,United Kingdom Atomic energy Authority,02/06/2014,IT EQUIPMENT NON CAPITAL,23134,FUSION,MAAINTECH,5100304720,2416,
United Kingdom Atomic energy Authority,United Kingdom Atomic energy Authority,09/06/2014,MATERIALS & SPARES,23161,FUSION,CHANNEL SAFETY SERVICES LTD,5100304721,450,
United Kingdom Atomic energy Authority,United Kingdom Atomic energy Authority,02/06/2014,UTILITIES/GAS,28050,PROPERTY,COFELY LTD,5100304722,20044.73,
United Kingdom Atomic energy Authority,United Kingdom Atomic energy Authority,02/06/2014,UTILITIES/GAS,28050,PROPERTY,COFELY LTD,5100304723,26582.5,
United Kingdom Atomic energy Authority,United Kingdom Atomic energy Authority,02/06/2014,UTILITIES/GAS,28050,PROPERTY,COFELY LTD,5100304724,59254.48,
United Kingdom Atomic energy Authority,United Kingdom Atomic energy Authority,02/06/2014,UTILITIES/GAS,28050,PROPERTY,COFELY LTD,5100304725,3743.6,
United Kingdom Atomic energy Authority,United Kingdom Atomic energy Authority,02/06/2014,CONSUMABLES,29030,FUSION,EUROTHERM LTD,5100304726,3028,
United Kingdom Atomic energy Authority,United Kingdom Atomic energy Authority,02/06/2014,PLANT SPARES,23120,FUSION,CONDEC INDUSTRIAL MAINTENANCE,5100304728,185,
United Kingdom Atomic energy Authority,United Kingdom Atomic energy Authority,02/06/2014,MATERIALS & SPARES,25103,FUSION,BELMOUNT FABRICATIONS,5100304729,384,
United Kingdom Atomic energy Authority,United Kingdom Atomic energy Authority,02/06/2014,CATERING,28040,PROPERTY,CLEANSING SERVICE GROUP LTD,5100304730,74.3,
United Kingdom Atomic energy Authority,United Kingdom Atomic energy Authority,02/06/2014,CATERING,28040,PROPERTY,CLEANSING SERVICE GROUP LTD,5100304731,54.6,
United Kingdom Atomic energy Authority,United Kingdom Atomic energy Authority,02/06/2014,MATERIALS & SPARES,21033,SUPPORT SERVICES,TRAVIS PERKINS TRADING CO LTD,5100304732,103.22,
United Kingdom Atomic energy Authority,United Kingdom Atomic energy Authority,18/06/2014,PLANT & EQUIPMENT,25103,FUSION,EDMUNDSON ELECTRICALS LTD,5100304733,1239.52,
United Kingdom Atomic energy Authority,United Kingdom Atomic energy Authority,02/06/2014,PLANT & EQUIPMENT,23128,FUSION,EDMUNDSON ELECTRICALS LTD,5100304734,52.74,
United Kingdom Atomic energy Authority,United Kingdom Atomic energy Authority,09/06/2014,PLANT & EQUIPMENT,23161,FUSION,EDMUNDSON ELECTRICALS LTD,5100304735,81.48,
United Kingdom Atomic energy Authority,United Kingdom Atomic energy Authority,02/06/2014,MATERIALS & SPARES,23106,FUSION,Mirion technology Ltd,5100304736,1575,
United Kingdom Atomic energy Authority,United Kingdom Atomic energy Authority,09/06/2014,PROFESSIONAL SERVICES,23151,FUSION,SCIENTIFICS LTD,5100304737,507.5,
United Kingdom Atomic energy Authority,United Kingdom Atomic energy Authority,04/06/2014,PROFESSIONAL SERVICES,23164,FUSION,SCIENTIFICS LTD,5100304738,540,
United Kingdom Atomic energy Authority,United Kingdom Atomic energy Authority,02/06/2014,PROFESSIONAL SERVICES,29030,FUSION,SIGMA - ALDRICH CO LTD,5100304739,173,
United Kingdom Atomic energy Authority,United Kingdom Atomic energy Authority,02/06/2014,MATERIALS & SPARES,25103,FUSION,CROMWELL LTD,5100304740,199.2,
United Kingdom Atomic energy Authority,United Kingdom Atomic energy Authority,04/06/2014,MATERIALS & SPARES,23164,FUSION,VWR INTERNATIONAL LTD,5100304741,143.5,
United Kingdom Atomic energy Authority,United Kingdom Atomic energy Authority,02/06/2014,PLANT SPARES,25103,FUSION,BRITE PRECISION,5100304742,1167,
United Kingdom Atomic energy Authority,United Kingdom Atomic energy Authority,11/06/2014,MATERIALS & SPARES,25103,FUSION,Hoverdale (UK) Ltd,5100304743,2850,
United Kingdom Atomic energy Authority,United Kingdom Atomic energy Authority,09/06/2014,PROFESSIONAL SERVICES,23103,FUSION,BNS NUCLEAR SERVICES,5100304744,26575.58,
United Kingdom Atomic energy Authority,United Kingdom Atomic energy Authority,09/06/2014,F&F,23161,FUSION,EFG MATTHEWS OFFICE FURNITURE LTD,5100304745,504.6,
United Kingdom Atomic energy Authority,United Kingdom Atomic energy Authority,02/06/2014,F&F,21033,SUPPORT SERVICES,EFG MATTHEWS OFFICE FURNITURE LTD,5100304746,329.08,
United Kingdom Atomic energy Authority,United Kingdom Atomic energy Authority,02/06/2014,F&F,21033,SUPPORT SERVICES,EFG MATTHEWS OFFICE FURNITURE LTD,5100304747,520,
United Kingdom Atomic energy Authority,United Kingdom Atomic energy Authority,02/06/2014,F&F,21033,SUPPORT SERVICES,EFG MATTHEWS OFFICE FURNITURE LTD,5100304748,95.2,
United Kingdom Atomic energy Authority,United Kingdom Atomic energy Authority,02/06/2014,TREATED WATER,23125,FUSION,B & V WATER TREATMENT,5100304749,3869,
United Kingdom Atomic energy Authority,United Kingdom Atomic energy Authority,18/06/2014,HEALTH PHYSICS,63608,SUPPORT SERVICES,NUVIA LIMITED,5100304750,1876.5,
United Kingdom Atomic energy Authority,United Kingdom Atomic energy Authority,02/06/2014,COMPENSATION AND LEGAL FEES,28010,PROPERTY,MORGAN COLE,5100304752,674,
United Kingdom Atomic energy Authority,United Kingdom Atomic energy Authority,02/06/2014,COMPENSATION AND LEGAL FEES,28010,PROPERTY,MORGAN COLE,5100304753,720,
United Kingdom Atomic energy Authority,United Kingdom Atomic energy Authority,02/06/2014,COMPENSATION AND LEGAL FEES,28010,PROPERTY,MORGAN COLE,5100304754,6,
United Kingdom Atomic energy Authority,United Kingdom Atomic energy Authority,18/06/2014,HIRED STAFF,0,FUSION,TRASYS,5100304755,4398.63,
United Kingdom Atomic energy Authority,United Kingdom Atomic energy Authority,18/06/2014,HIRED STAFF,0,FUSION,TRASYS,5100304756,5962.3,
United Kingdom Atomic energy Authority,United Kingdom Atomic energy Authority,02/06/2014,HIRED STAFF,0,FUSION,TRASYS,5100304757,10544.63,
United Kingdom Atomic energy Authority,United Kingdom Atomic energy Authority,02/06/2014,HIRED STAFF,0,FUSION,TRASYS,5100304758,6370.68,
United Kingdom Atomic energy Authority,United Kingdom Atomic energy Authority,02/06/2014,MATERIALS & SPARES,23125,FUSION,SANDVIK MATERIALS TECHNOLOGY EMEA A,5100304759,285.42,
United Kingdom Atomic energy Authority,United Kingdom Atomic energy Authority,03/06/2014,PLANT SPARES,25701,FUSION,ACAL-TECHNOLOGY LTD,5100304760,2417.08,
United Kingdom Atomic energy Authority,United Kingdom Atomic energy Authority,02/06/2014,MATERIALS & SPARES,25103,FUSION,TR ENGINEERING PROJECTS LTD,5100304761,455,
United Kingdom Atomic energy Authority,United Kingdom Atomic energy Authority,02/06/2014,MATERIALS & SPARES,23128,FUSION,WAGO LTD,5100304762,588.58,
United Kingdom Atomic energy Authority,United Kingdom Atomic energy Authority,04/06/2014,PROFESSIONAL SERVICES,23164,FUSION,SCIENTIFICS LTD,5100304763,72.5,
United Kingdom Atomic energy Authority,United Kingdom Atomic energy Authority,09/06/2014,PROFESSIONAL SERVICES,23151,FUSION,SCIENTIFICS LTD,5100304764,2295,
United Kingdom Atomic energy Authority,United Kingdom Atomic energy Authority,04/06/2014,PLANT & EQUIPMENT,25103,FUSION,EDMUNDSON ELECTRICALS LTD,5100304765,31.39,
United Kingdom Atomic energy Authority,United Kingdom Atomic energy Authority,02/06/2014,PLANT & EQUIPMENT,25103,FUSION,EDMUNDSON ELECTRICALS LTD,5100304766,315.23,
United Kingdom Atomic energy Authority,United Kingdom Atomic energy Authority,02/06/2014,PLANT & EQUIPMENT,25103,FUSION,EDMUNDSON ELECTRICALS LTD,5100304767,31.08,
United Kingdom Atomic energy Authority,United Kingdom Atomic energy Authority,02/06/2014,PLANT & EQUIPMENT,25103,FUSION,EDMUNDSON ELECTRICALS LTD,5100304768,498.67,
United Kingdom Atomic energy Authority,United Kingdom Atomic energy Authority,02/06/2014,PLANT & EQUIPMENT,23161,FUSION,EDMUNDSON ELECTRICALS LTD,5100304769,613.66,
United Kingdom Atomic energy Authority,United Kingdom Atomic energy Authority,02/06/2014,PLANT & EQUIPMENT,25103,FUSION,EDMUNDSON ELECTRICALS LTD,5100304770,56.94,
United Kingdom Atomic energy Authority,United Kingdom Atomic energy Authority,04/06/2014,UNIVERSITY PLACEMENT,25501,FUSION,UNIVERSITY OF YORK,5100304772,1670,
United Kingdom Atomic energy Authority,United Kingdom Atomic energy Authority,04/06/2014,UNIVERSITY PLACEMENT,25501,FUSION,UNIVERSITY OF YORK,5100304773,1670,
United Kingdom Atomic energy Authority,United Kingdom Atomic energy Authority,02/06/2014,PERSONAL PROTECTIVE EQUIPMENT,23151,FUSION,ARCO LTD,5100304774,35.52,
United Kingdom Atomic energy Authority,United Kingdom Atomic energy Authority,02/06/2014,PLANT & EQUIPMENT,25103,FUSION,EDMUNDSON ELECTRICALS LTD,5100304775,111.73,
United Kingdom Atomic energy Authority,United Kingdom Atomic energy Authority,02/06/2014,PLANT & EQUIPMENT,25103,FUSION,EDMUNDSON ELECTRICALS LTD,5100304776,333.91,
United Kingdom Atomic energy Authority,United Kingdom Atomic energy Authority,02/06/2014,PLANT & EQUIPMENT,25103,FUSION,EDMUNDSON ELECTRICALS LTD,5100304777,64.38,
United Kingdom Atomic energy Authority,United Kingdom Atomic energy Authority,04/06/2014,PROFESSIONAL SERVICES,23150,FUSION,MCBAINS COOPER,5100304778,598.08,
United Kingdom Atomic energy Authority,United Kingdom Atomic energy Authority,02/06/2014,MATERIALS & SPARES,25103,FUSION,DURBIN METAL INDUSTRIES LTD,5100304779,29.8,
United Kingdom Atomic energy Authority,United Kingdom Atomic energy Authority,02/06/2014,MATERIALS & SPARES,25103,FUSION,DURBIN METAL INDUSTRIES LTD,5100304780,19.8,
United Kingdom Atomic energy Authority,United Kingdom Atomic energy Authority,02/06/2014,MATERIALS & SPARES,29030,FUSION,DURBIN METAL INDUSTRIES LTD,5100304781,326.9,
United Kingdom Atomic energy Authority,United Kingdom Atomic energy Authority,02/06/2014,PROFESSIONAL SERVICES,28200,PROPERTY,CONNAUGHT COMPLIANCE SERVICES LTD,5100304782,3800,
United Kingdom Atomic energy Authority,United Kingdom Atomic energy Authority,18/06/2014,PROFESSIONAL SERVICES,25103,FUSION,MACHINING TECHNOLOGY (MACH-TECH),5100304783,5752.04,
United Kingdom Atomic energy Authority,United Kingdom Atomic energy Authority,18/06/2014,PROFESSIONAL SERVICES,25103,FUSION,MACHINING TECHNOLOGY (MACH-TECH),5100304784,4108.6,
United Kingdom Atomic energy Authority,United Kingdom Atomic energy Authority,02/06/2014,CATERING,28040,PROPERTY,AVENANCE PLC,5100304785,831.84,
United Kingdom Atomic energy Authority,United Kingdom Atomic energy Authority,23/06/2014,PLANT SPARES,25103,FUSION,A W CLARKE,5100304786,58.8,
United Kingdom Atomic energy Authority,United Kingdom Atomic energy Authority,23/06/2014,PLANT SPARES,25103,FUSION,A W CLARKE,5100304787,275.1,
United Kingdom Atomic energy Authority,United Kingdom Atomic energy Authority,04/06/2014,MATERIALS & SPARES,23621,FUSION,A and J Non Ferrous LLP,5100304788,672.5,
United Kingdom Atomic energy Authority,United Kingdom Atomic energy Authority,02/06/2014,MATERIALS & SPARES,23152,FUSION,RS COMPONENTS LTD,5100304790,117.77,
United Kingdom Atomic energy Authority,United Kingdom Atomic energy Authority,02/06/2014,MATERIALS & SPARES,23128,FUSION,RS COMPONENTS LTD,5100304791,38.39,
United Kingdom Atomic energy Authority,United Kingdom Atomic energy Authority,02/06/2014,MATERIALS & SPARES,23120,FUSION,RS COMPONENTS LTD,5100304792,17.85,
United Kingdom Atomic energy Authority,United Kingdom Atomic energy Authority,02/06/2014,MATERIALS & SPARES,21033,SUPPORT SERVICES,RS COMPONENTS LTD,5100304793,35.58,
United Kingdom Atomic energy Authority,United Kingdom Atomic energy Authority,02/06/2014,MATERIALS & SPARES,25702,FUSION,RS COMPONENTS LTD,5100304794,43.77,
United Kingdom Atomic energy Authority,United Kingdom Atomic energy Authority,02/06/2014,MATERIALS & SPARES,23125,FUSION,RS COMPONENTS LTD,5100304795,330.19,
United Kingdom Atomic energy Authority,United Kingdom Atomic energy Authority,02/06/2014,MATERIALS & SPARES,23120,FUSION,RS COMPONENTS LTD,5100304796,-33.1,
United Kingdom Atomic energy Authority,United Kingdom Atomic energy Authority,09/06/2014,PROFESSIONAL SERVICES,25836,FUSION,FAITHFUL & GOULD,5100304797,2587,
United Kingdom Atomic energy Authority,United Kingdom Atomic energy Authority,02/06/2014,MATERIALS & SPARES,23152,FUSION,RS COMPONENTS LTD,5100304798,1294.94,
United Kingdom Atomic energy Authority,United Kingdom Atomic energy Authority,11/06/2014,MATERIALS & SPARES,25103,FUSION,AC PRECISION ENGINEERING LTD,5100304799,3190,
United Kingdom Atomic energy Authority,United Kingdom Atomic energy Authority,02/06/2014,CAR HIRE,25103,FUSION,LEASEDRIVE VELO,5100304800,98.04,
United Kingdom Atomic energy Authority,United Kingdom Atomic energy Authority,02/06/2014,CAR HIRE,23150,FUSION,LEASEDRIVE VELO,5100304801,109.52,
United Kingdom Atomic energy Authority,United Kingdom Atomic energy Authority,02/06/2014,CAR HIRE,25103,FUSION,LEASEDRIVE VELO,5100304802,36.44,
United Kingdom Atomic energy Authority,United Kingdom Atomic energy Authority,11/06/2014,PLANT & EQUIPMENT,25103,FUSION,PULSE POWER AND MEASUREMENT LTD,5100304803,1891,
United Kingdom Atomic energy Authority,United Kingdom Atomic energy Authority,11/06/2014,PROFESSIONAL SERVICES,25103,FUSION,HUTTON ENGINEERING (PRECISION) LTD,5100304804,2122.68,
United Kingdom Atomic energy Authority,United Kingdom Atomic energy Authority,23/06/2014,CONSUMABLES,23621,FUSION,AGATE PRODUCTS LTD,5100304806,235,
United Kingdom Atomic energy Authority,United Kingdom Atomic energy Authority,02/06/2014,MATERIALS & SPARES,23151,FUSION,ABRACLEAN LIMITED,5100304807,129.73,
United Kingdom Atomic energy Authority,United Kingdom Atomic energy Authority,04/06/2014,PLANT & EQUIPMENT,23164,FUSION,FISHER SCIENTIFIC UK LTD,5100304808,57.14,
United Kingdom Atomic energy Authority,United Kingdom Atomic energy Authority,02/06/2014,MATERIALS & SPARES,25103,FUSION,Solid Structures UK Ltd,5100304809,505.61,
United Kingdom Atomic energy Authority,United Kingdom Atomic energy Authority,09/06/2014,PROFESSIONAL SERVICES,25500,FUSION,ONE FIX RECRUITMENT,5100304810,275,
United Kingdom Atomic energy Authority,United Kingdom Atomic energy Authority,09/06/2014,PROFESSIONAL SERVICES,21037,FUSION,ONE FIX RECRUITMENT,5100304811,275,
United Kingdom Atomic energy Authority,United Kingdom Atomic energy Authority,09/06/2014,PROFESSIONAL SERVICES,23104,FUSION,ONE FIX RECRUITMENT,5100304812,275,
United Kingdom Atomic energy Authority,United Kingdom Atomic energy Authority,09/06/2014,PROFESSIONAL SERVICES,23136,FUSION,ONE FIX RECRUITMENT,5100304813,299,
United Kingdom Atomic energy Authority,United Kingdom Atomic energy Authority,09/06/2014,PROFESSIONAL SERVICES,23151,FUSION,ONE FIX RECRUITMENT,5100304814,299,
United Kingdom Atomic energy Authority,United Kingdom Atomic energy Authority,09/06/2014,MATERIALS & SPARES,23122,FUSION,FTI LTD,5100304815,1254.2,
United Kingdom Atomic energy Authority,United Kingdom Atomic energy Authority,09/06/2014,STATIONERY,23108,FUSION,HOBS REPROGRAPHICS PLC,5100304816,80.63,
United Kingdom Atomic energy Authority,United Kingdom Atomic energy Authority,02/06/2014,UTILITIES/ELECTRICITY,28050,PROPERTY,SCOTTISH & SOUTHERN METERING SERVIC,5100304817,385,
United Kingdom Atomic energy Authority,United Kingdom Atomic energy Authority,09/06/2014,PLANT & EQUIPMENT,23150,FUSION,ABB Ltd,5100304818,1536,
United Kingdom Atomic energy Authority,United Kingdom Atomic energy Authority,09/06/2014,PLANT SPARES,25103,FUSION,Beacon Group International Ltd,5100304819,75,
United Kingdom Atomic energy Authority,United Kingdom Atomic energy Authority,04/06/2014,UTILITIES/ELECTRICITY,28050,PROPERTY,BRITISH GAS BUSINESS,5100304820,-486.32,
United Kingdom Atomic energy Authority,United Kingdom Atomic energy Authority,04/06/2014,UTILITIES/ELECTRICITY,28050,PROPERTY,BRITISH GAS BUSINESS,5100304822,-483.49,
United Kingdom Atomic energy Authority,United Kingdom Atomic energy Authority,04/06/2014,UTILITIES/ELECTRICITY,28050,PROPERTY,BRITISH GAS BUSINESS,5100304823,-456.28,
United Kingdom Atomic energy Authority,United Kingdom Atomic energy Authority,04/06/2014,UTILITIES/ELECTRICITY,28050,PROPERTY,BRITISH GAS BUSINESS,5100304824,2214.97,
United Kingdom Atomic energy Authority,United Kingdom Atomic energy Authority,09/06/2014,PERSONAL PROTECTIVE EQUIPMENT,23161,FUSION,ARCO LTD,5100304825,184,
United Kingdom Atomic energy Authority,United Kingdom Atomic energy Authority,09/06/2014,PERSONAL PROTECTIVE EQUIPMENT,23161,FUSION,ARCO LTD,5100304826,34.19,
United Kingdom Atomic energy Authority,United Kingdom Atomic energy Authority,09/06/2014,PERSONAL PROTECTIVE EQUIPMENT,23151,FUSION,ARCO LTD,5100304827,95.14,
United Kingdom Atomic energy Authority,United Kingdom Atomic energy Authority,09/06/2014,PERSONAL PROTECTIVE EQUIPMENT,23151,FUSION,ARCO LTD,5100304828,24.5,
United Kingdom Atomic energy Authority,United Kingdom Atomic energy Authority,09/06/2014,PERSONAL PROTECTIVE EQUIPMENT,25702,FUSION,ARCO LTD,5100304829,71.16,
United Kingdom Atomic energy Authority,United Kingdom Atomic energy Authority,04/06/2014,PLANT & EQUIPMENT,25704,FUSION,TESLA ENGINEERING LTD,5100304830,61308,
United Kingdom Atomic energy Authority,United Kingdom Atomic energy Authority,09/06/2014,PROFESSIONAL SERVICES,23131,FUSION,SWAGELOK LONDON,5100304831,59.78,
United Kingdom Atomic energy Authority,United Kingdom Atomic energy Authority,18/06/2014,SECURITY & EMERGENCY,28030,PROPERTY,SONIC SECURITY SERVICES LTD,5100304832,470,
United Kingdom Atomic energy Authority,United Kingdom Atomic energy Authority,09/06/2014,PROFESSIONAL SERVICES,21032,SUPPORT SERVICES,LOGICA CMG UK LTD,5100304833,2346.99,
United Kingdom Atomic energy Authority,United Kingdom Atomic energy Authority,09/06/2014,CATERING,23126,FUSION,AVENANCE PLC,5100304834,672.26,
United Kingdom Atomic energy Authority,United Kingdom Atomic energy Authority,11/06/2014,TREATED WATER,23125,FUSION,B & V WATER TREATMENT,5100304835,1185.81,
United Kingdom Atomic energy Authority,United Kingdom Atomic energy Authority,09/06/2014,PROFESSIONAL SERVICES,23108,FUSION,DESIGNRULE LTD,5100304836,250,
United Kingdom Atomic energy Authority,United Kingdom Atomic energy Authority,09/06/2014,REPAIRS & MAINTENANCE,29030,FUSION,COMPRESSOR ENGINEERING LTD,5100304837,934.65,
United Kingdom Atomic energy Authority,United Kingdom Atomic energy Authority,09/06/2014,REPAIRS & MAINTENANCE,29030,FUSION,TRESCAL LIMITED,5100304838,64,
United Kingdom Atomic energy Authority,United Kingdom Atomic energy Authority,09/06/2014,MATERIALS & SPARES,23128,FUSION,FARNELL ELECTRONIC,5100304839,32.77,
United Kingdom Atomic energy Authority,United Kingdom Atomic energy Authority,09/06/2014,MATERIALS & SPARES,23121,FUSION,FARNELL ELECTRONIC,5100304840,275.47,
United Kingdom Atomic energy Authority,United Kingdom Atomic energy Authority,09/06/2014,MATERIALS & SPARES,25838,FUSION,METELEC LTD,5100304841,306,
United Kingdom Atomic energy Authority,United Kingdom Atomic energy Authority,09/06/2014,MATERIALS & SPARES,23129,FUSION,FARNELL ELECTRONIC,5100304842,57.82,
United Kingdom Atomic energy Authority,United Kingdom Atomic energy Authority,09/06/2014,CONSUMABLES,23128,FUSION,PH CONTROL COMPANY LTD,5100304843,595,
United Kingdom Atomic energy Authority,United Kingdom Atomic energy Authority,09/06/2014,MATERIALS & SPARES,23128,FUSION,FARNELL ELECTRONIC,5100304844,583.95,
United Kingdom Atomic energy Authority,United Kingdom Atomic energy Authority,09/06/2014,LAUNDRY,29030,FUSION,CLEAN LINEN SERVICES LTD,5100304845,65.96,
United Kingdom Atomic energy Authority,United Kingdom Atomic energy Authority,09/06/2014,MATERIALS & SPARES,23152,FUSION,FARNELL ELECTRONIC,5100304846,578.63,
United Kingdom Atomic energy Authority,United Kingdom Atomic energy Authority,09/06/2014,PROFESSIONAL SERVICES,25103,FUSION,SCHNEIDER ELECTRIC,5100304847,766.08,
United Kingdom Atomic energy Authority,United Kingdom Atomic energy Authority,09/06/2014,MATERIALS & SPARES,23106,FUSION,FARNELL ELECTRONIC,5100304848,240.56,
United Kingdom Atomic energy Authority,United Kingdom Atomic energy Authority,09/06/2014,PLANT & EQUIPMENT,23161,FUSION,EDMUNDSON ELECTRICALS LTD,5100304849,163.65,
United Kingdom Atomic energy Authority,United Kingdom Atomic energy Authority,09/06/2014,MATERIALS & SPARES,23134,FUSION,FARNELL ELECTRONIC,5100304850,12.26,
United Kingdom Atomic energy Authority,United Kingdom Atomic energy Authority,09/06/2014,PLANT & EQUIPMENT,23161,FUSION,EDMUNDSON ELECTRICALS LTD,5100304851,20.61,
United Kingdom Atomic energy Authority,United Kingdom Atomic energy Authority,09/06/2014,MATERIALS & SPARES,23152,FUSION,FARNELL ELECTRONIC,5100304852,211.36,
United Kingdom Atomic energy Authority,United Kingdom Atomic energy Authority,09/06/2014,MATERIALS & SPARES,23151,FUSION,FASTFIX,5100304853,958.18,
United Kingdom Atomic energy Authority,United Kingdom Atomic energy Authority,09/06/2014,MATERIALS & SPARES,23151,FUSION,FASTFIX,5100304854,809.9,
United Kingdom Atomic energy Authority,United Kingdom Atomic energy Authority,09/06/2014,MATERIALS & SPARES,23106,FUSION,FARNELL ELECTRONIC,5100304856,78.45,
United Kingdom Atomic energy Authority,United Kingdom Atomic energy Authority,09/06/2014,MATERIALS & SPARES,23152,FUSION,FARNELL ELECTRONIC,5100304858,57.35,
United Kingdom Atomic energy Authority,United Kingdom Atomic energy Authority,09/06/2014,MATERIALS & SPARES,23120,FUSION,FARNELL ELECTRONIC,5100304859,7.35,
United Kingdom Atomic energy Authority,United Kingdom Atomic energy Authority,09/06/2014,MATERIALS & SPARES,23132,FUSION,FARNELL ELECTRONIC,5100304860,108.41,
United Kingdom Atomic energy Authority,United Kingdom Atomic energy Authority,09/06/2014,PLANT & EQUIPMENT,23129,FUSION,QUARTZELEC LTD,5100304861,58358,
United Kingdom Atomic energy Authority,United Kingdom Atomic energy Authority,09/06/2014,MATERIALS & SPARES,23129,FUSION,FARNELL ELECTRONIC,5100304862,147.31,
United Kingdom Atomic energy Authority,United Kingdom Atomic energy Authority,18/06/2014,MATERIALS & SPARES,23121,FUSION,FARNELL ELECTRONIC,5100304863,163.1,
United Kingdom Atomic energy Authority,United Kingdom Atomic energy Authority,09/06/2014,MATERIALS & SPARES,23120,FUSION,FARNELL ELECTRONIC,5100304865,37.51,
United Kingdom Atomic energy Authority,United Kingdom Atomic energy Authority,09/06/2014,PLANT & EQUIPMENT,23161,FUSION,EDMUNDSON ELECTRICALS LTD,5100304866,258,
United Kingdom Atomic energy Authority,United Kingdom Atomic energy Authority,09/06/2014,MATERIALS & SPARES,23129,FUSION,FARNELL ELECTRONIC,5100304867,6.24,
United Kingdom Atomic energy Authority,United Kingdom Atomic energy Authority,09/06/2014,MATERIALS & SPARES,25103,FUSION,FARNELL ELECTRONIC,5100304868,9.77,
United Kingdom Atomic energy Authority,United Kingdom Atomic energy Authority,09/06/2014,MATERIALS & SPARES,23129,FUSION,FARNELL ELECTRONIC,5100304869,228.81,
United Kingdom Atomic energy Authority,United Kingdom Atomic energy Authority,09/06/2014,PROFESSIONAL SERVICES,63523,SUPPORT SERVICES,ERNST and YOUNG LLP,5100304870,6480,
United Kingdom Atomic energy Authority,United Kingdom Atomic energy Authority,09/06/2014,MATERIALS & SPARES,23120,FUSION,FARNELL ELECTRONIC,5100304871,25.34,
United Kingdom Atomic energy Authority,United Kingdom Atomic energy Authority,09/06/2014,MATERIALS & SPARES,23150,FUSION,FARNELL ELECTRONIC,5100304872,28.96,
United Kingdom Atomic energy Authority,United Kingdom Atomic energy Authority,09/06/2014,MATERIALS & SPARES,23129,FUSION,FARNELL ELECTRONIC,5100304873,135.35,
United Kingdom Atomic energy Authority,United Kingdom Atomic energy Authority,09/06/2014,PROFESSIONAL SERVICES,63523,SUPPORT SERVICES,ERNST and YOUNG LLP,5100304874,5490,
United Kingdom Atomic energy Authority,United Kingdom Atomic energy Authority,09/06/2014,TRAINING COURSE FEES,21033,SUPPORT SERVICES,CANON FIRE PROTECTION,5100304875,540,
United Kingdom Atomic energy Authority,United Kingdom Atomic energy Authority,09/06/2014,MATERIALS & SPARES,23161,FUSION,SCREWFIX DIRECT LTD,5100304876,201.3,
United Kingdom Atomic energy Authority,United Kingdom Atomic energy Authority,09/06/2014,PLANT & EQUIPMENT,23151,FUSION,MR BOX LTD,5100304877,4716,
United Kingdom Atomic energy Authority,United Kingdom Atomic energy Authority,09/06/2014,MATERIALS & SPARES,25704,FUSION,THE TRANSFORMER AND ELECTRICAL CO,5100304878,3622.4,
United Kingdom Atomic energy Authority,United Kingdom Atomic energy Authority,09/06/2014,CONSUMABLES,29030,FUSION,CARILLON INDUSTRIAL SERVICES LTD,5100304879,38.63,
United Kingdom Atomic energy Authority,United Kingdom Atomic energy Authority,09/06/2014,PROFESSIONAL SERVICES,23153,FUSION,ESR TECHNOLOGY LTD,5100304880,1380,
United Kingdom Atomic energy Authority,United Kingdom Atomic energy Authority,09/06/2014,MATERIALS & SPARES,23151,FUSION,KRAUS & NAIMER LTD,5100304881,43.02,
United Kingdom Atomic energy Authority,United Kingdom Atomic energy Authority,09/06/2014,MATERIALS & SPARES,23120,FUSION,CASTELL SAFETY INTERNATIONAL,5100304882,177.4,
United Kingdom Atomic energy Authority,United Kingdom Atomic energy Authority,09/06/2014,MATERIALS & SPARES,23621,FUSION,PDS (CNC) Engineering  LTD,5100304883,1175,
United Kingdom Atomic energy Authority,United Kingdom Atomic energy Authority,09/06/2014,PLANT & EQUIPMENT,29030,FUSION,DAVIS INDUSTRIAL PLASTICS,5100304884,61.91,
United Kingdom Atomic energy Authority,United Kingdom Atomic energy Authority,09/06/2014,MATERIALS & SPARES,23621,FUSION,PDS (CNC) Engineering  LTD,5100304885,739.17,
United Kingdom Atomic energy Authority,United Kingdom Atomic energy Authority,09/06/2014,MATERIALS & SPARES,23621,FUSION,PDS (CNC) Engineering  LTD,5100304886,837.5,
United Kingdom Atomic energy Authority,United Kingdom Atomic energy Authority,09/06/2014,MATERIALS & SPARES,25103,FUSION,Safetykleen UK Limited,5100304887,343.42,
United Kingdom Atomic energy Authority,United Kingdom Atomic energy Authority,09/06/2014,MATERIALS & SPARES,23621,FUSION,PDS (CNC) Engineering  LTD,5100304888,747.25,
United Kingdom Atomic energy Authority,United Kingdom Atomic energy Authority,09/06/2014,MATERIALS & SPARES,23121,FUSION,TVH,5100304889,11,
United Kingdom Atomic energy Authority,United Kingdom Atomic energy Authority,09/06/2014,MATERIALS & SPARES,23621,FUSION,PDS (CNC) Engineering  LTD,5100304890,1120.83,
United Kingdom Atomic energy Authority,United Kingdom Atomic energy Authority,09/06/2014,MATERIALS & SPARES,23621,FUSION,PDS (CNC) Engineering  LTD,5100304891,266.67,
United Kingdom Atomic energy Authority,United Kingdom Atomic energy Authority,04/06/2014,MATERIALS & SPARES,23121,FUSION,TVH,5100304892,-11,
United Kingdom Atomic energy Authority,United Kingdom Atomic energy Authority,09/06/2014,DESIGN & CONSTRUCTION,25704,FUSION,COBHAM TECHNICAL SERVICES,5100304893,2950,
United Kingdom Atomic energy Authority,United Kingdom Atomic energy Authority,09/06/2014,PLANT & EQUIPMENT,29030,FUSION,SPANOPTIC LTD,5100304894,261,
United Kingdom Atomic energy Authority,United Kingdom Atomic energy Authority,09/06/2014,MATERIALS & SPARES,23621,FUSION,PDS (CNC) Engineering  LTD,5100304895,1426.35,
United Kingdom Atomic energy Authority,United Kingdom Atomic energy Authority,18/06/2014,PLANT SPARES,25103,FUSION,MERSEN UK PORTSLADE LTD,5100304896,119.9,
United Kingdom Atomic energy Authority,United Kingdom Atomic energy Authority,09/06/2014,PLANT SPARES,23122,FUSION,DRAWTREND LTD,5100304897,260,
United Kingdom Atomic energy Authority,United Kingdom Atomic energy Authority,09/06/2014,MATERIALS & SPARES,23129,FUSION,Pragmatics Maintenance and Reliability ltd,5100304898,893.75,
United Kingdom Atomic energy Authority,United Kingdom Atomic energy Authority,09/06/2014,BUILDING REPAIRS,21032,SUPPORT SERVICES,KNOWLES & SONS (OXFORD) LTD,5100304899,58.75,
United Kingdom Atomic energy Authority,United Kingdom Atomic energy Authority,09/06/2014,BUILDING REPAIRS,25701,FUSION,KNOWLES & SONS (OXFORD) LTD,5100304900,25,
United Kingdom Atomic energy Authority,United Kingdom Atomic energy Authority,09/06/2014,PROFESSIONAL SERVICES,29030,FUSION,SPECIALIST WELDING SERVICES,5100304901,152,
United Kingdom Atomic energy Authority,United Kingdom Atomic energy Authority,09/06/2014,PLANT SPARES,23152,FUSION,CSE INDUSTRIAL ELECTRICAL DISTRIBUT,5100304902,255.83,
United Kingdom Atomic energy Authority,United Kingdom Atomic energy Authority,03/06/2014,PLANT SPARES,25701,FUSION,ACAL-TECHNOLOGY LTD,5100304903,-2417.08,
United Kingdom Atomic energy Authority,United Kingdom Atomic energy Authority,09/06/2014,BUILDING REPAIRS,28000,PROPERTY,KNOWLES & SONS (OXFORD) LTD,5100304904,205.67,
United Kingdom Atomic energy Authority,United Kingdom Atomic energy Authority,09/06/2014,MATERIALS & SPARES,29030,FUSION,DURBIN METAL INDUSTRIES LTD,5100304906,105.75,
United Kingdom Atomic energy Authority,United Kingdom Atomic energy Authority,09/06/2014,INSPECTION SERVICES,23165,FUSION,ROYAL & SUN ALLIANCE ENGINEERING LT,5100304909,2039.33,
United Kingdom Atomic energy Authority,United Kingdom Atomic energy Authority,09/06/2014,PLANT SPARES,23106,FUSION,MOTION CONTROL PRODUCTS,5100304910,970.5,
United Kingdom Atomic energy Authority,United Kingdom Atomic energy Authority,09/06/2014,MATERIALS & SPARES,23161,FUSION,MINATOL LIMITED,5100304911,128.8,
United Kingdom Atomic energy Authority,United Kingdom Atomic energy Authority,09/06/2014,PLANT & EQUIPMENT,23151,FUSION,THAMES VALLEY SAW SERVICE LTD,5100304912,418.25,
United Kingdom Atomic energy Authority,United Kingdom Atomic energy Authority,04/06/2014,CLEANING,28025,PROPERTY,OCS CLEANING & SUPPORT SERVICES,5100304913,1289.61,
United Kingdom Atomic energy Authority,United Kingdom Atomic energy Authority,09/06/2014,HIRED STAFF,23103,FUSION,MORSON INTERNATIONAL,5100304914,330143.75,
United Kingdom Atomic energy Authority,United Kingdom Atomic energy Authority,09/06/2014,MATERIALS & SPARES,25103,FUSION,PMD (UK) LTD,5100304915,725,
United Kingdom Atomic energy Authority,United Kingdom Atomic energy Authority,09/06/2014,MATERIALS & SPARES,23151,FUSION,ALPHA ENGINEERING SUPPLIES,5100304916,299.5,
United Kingdom Atomic energy Authority,United Kingdom Atomic energy Authority,04/06/2014,COMPENSATION AND CLAIMANT,63511,SUPPORT SERVICES,KEOGHS,5100304917,192,
United Kingdom Atomic energy Authority,United Kingdom Atomic energy Authority,04/06/2014,COMPENSATION AND CLAIMANT,63605,SUPPORT SERVICES,KEOGHS,5100304918,304,
United Kingdom Atomic energy Authority,United Kingdom Atomic energy Authority,04/06/2014,COMPENSATION AND CLAIMANT,63605,SUPPORT SERVICES,KEOGHS,5100304919,80,
United Kingdom Atomic energy Authority,United Kingdom Atomic energy Authority,04/06/2014,COMPENSATION AND CLAIMANT,63605,SUPPORT SERVICES,KEOGHS,5100304920,240,
United Kingdom Atomic energy Authority,United Kingdom Atomic energy Authority,04/06/2014,COMPENSATION AND CLAIMANT,63605,SUPPORT SERVICES,KEOGHS,5100304921,288,
United Kingdom Atomic energy Authority,United Kingdom Atomic energy Authority,04/06/2014,COMPENSATION AND CLAIMANT,63605,SUPPORT SERVICES,KEOGHS,5100304922,192,
United Kingdom Atomic energy Authority,United Kingdom Atomic energy Authority,04/06/2014,COMPENSATION AND CLAIMANT,63605,SUPPORT SERVICES,KEOGHS,5100304923,352,
United Kingdom Atomic energy Authority,United Kingdom Atomic energy Authority,04/06/2014,COMPENSATION AND CLAIMANT,63605,SUPPORT SERVICES,KEOGHS,5100304924,432,
United Kingdom Atomic energy Authority,United Kingdom Atomic energy Authority,09/06/2014,UTILITIES/WATER,28050,PROPERTY,THAMES WATER UTILITIES,5100304925,9533.81,
United Kingdom Atomic energy Authority,United Kingdom Atomic energy Authority,09/06/2014,PROFESSIONAL SERVICES,25103,FUSION,RBH OPTICS,5100304926,4455,
United Kingdom Atomic energy Authority,United Kingdom Atomic energy Authority,04/06/2014,COMPENSATION AND CLAIMANT,63605,SUPPORT SERVICES,KEOGHS,5100304927,1632,
United Kingdom Atomic energy Authority,United Kingdom Atomic energy Authority,09/06/2014,PLANT & EQUIPMENT,25103,FUSION,GOODFELLOW CAMBRIDGE LTD,5100304928,112,
United Kingdom Atomic energy Authority,United Kingdom Atomic energy Authority,11/06/2014,PERSONAL PROTECTIVE EQUIPMENT,23161,FUSION,ARCO LTD,5100304929,53.94,
United Kingdom Atomic energy Authority,United Kingdom Atomic energy Authority,09/06/2014,PERSONAL PROTECTIVE EQUIPMENT,23151,FUSION,ARCO LTD,5100304932,30.6,
United Kingdom Atomic energy Authority,United Kingdom Atomic energy Authority,09/06/2014,PROFESSIONAL SERVICES,23162,FUSION,NUCLEAR MANAGEMENT CONSULTANCE LTD,5100304933,800,
United Kingdom Atomic energy Authority,United Kingdom Atomic energy Authority,09/06/2014,PLANT & EQUIPMENT,23131,FUSION,INNOLAS UK LTD,5100304934,1655,
United Kingdom Atomic energy Authority,United Kingdom Atomic energy Authority,09/06/2014,PLANT & EQUIPMENT,23131,FUSION,INNOLAS UK LTD,5100304935,1755,
United Kingdom Atomic energy Authority,United Kingdom Atomic energy Authority,04/06/2014,MATERIALS & SPARES,25103,FUSION,Enclustra GmbH,5100304936,376.71,
United Kingdom Atomic energy Authority,United Kingdom Atomic energy Authority,11/06/2014,MATERIALS & SPARES,25103,FUSION,3D METAL-FORMING,5100304937,11934.72,
United Kingdom Atomic energy Authority,United Kingdom Atomic energy Authority,09/06/2014,SECURITY & EMERGENCY,28000,PROPERTY,RELIANCE SECURITY GROUP PLC,5100304938,94002.69,
United Kingdom Atomic energy Authority,United Kingdom Atomic energy Authority,09/06/2014,MATERIALS & SPARES,23150,FUSION,RS COMPONENTS LTD,5100304939,189.92,
United Kingdom Atomic energy Authority,United Kingdom Atomic energy Authority,11/06/2014,STATIONERY,21034,FUSION,BISHOPS PRINTERS,5100304940,580,
United Kingdom Atomic energy Authority,United Kingdom Atomic energy Authority,09/06/2014,MATERIALS & SPARES,23134,FUSION,SAE-TECH LTD,5100304941,9500,
United Kingdom Atomic energy Authority,United Kingdom Atomic energy Authority,09/06/2014,MATERIALS & SPARES,23120,FUSION,RS COMPONENTS LTD,5100304942,267.2,
United Kingdom Atomic energy Authority,United Kingdom Atomic energy Authority,09/06/2014,MATERIALS & SPARES,25103,FUSION,TW METALS LTD,5100304943,168.5,
United Kingdom Atomic energy Authority,United Kingdom Atomic energy Authority,09/06/2014,MATERIALS & SPARES,23152,FUSION,RS COMPONENTS LTD,5100304944,659.15,
United Kingdom Atomic energy Authority,United Kingdom Atomic energy Authority,18/06/2014,PROFESSIONAL SERVICES,23128,FUSION,TRITEC SYSTEMS ,5100304945,1380,
United Kingdom Atomic energy Authority,United Kingdom Atomic energy Authority,23/06/2014,PLANT SPARES,25103,FUSION,A W CLARKE,5100304946,3075,
United Kingdom Atomic energy Authority,United Kingdom Atomic energy Authority,09/06/2014,PROFESSIONAL SERVICES,23164,FUSION,VT NUCLEAR SERVICES LTD,5100304947,861.4,
United Kingdom Atomic energy Authority,United Kingdom Atomic energy Authority,09/06/2014,MATERIALS & SPARES,23152,FUSION,RS COMPONENTS LTD,5100304948,363.07,
United Kingdom Atomic energy Authority,United Kingdom Atomic energy Authority,09/06/2014,MATERIALS & SPARES,25103,FUSION,MOSS PLASTIC PARTS LTD,5100304949,316.32,
United Kingdom Atomic energy Authority,United Kingdom Atomic energy Authority,09/06/2014,MATERIALS & SPARES,23152,FUSION,RS COMPONENTS LTD,5100304950,23.79,
United Kingdom Atomic energy Authority,United Kingdom Atomic energy Authority,09/06/2014,MATERIALS & SPARES,23131,FUSION,RS COMPONENTS LTD,5100304951,113.24,
United Kingdom Atomic energy Authority,United Kingdom Atomic energy Authority,09/06/2014,MATERIALS & SPARES,25702,FUSION,RS COMPONENTS LTD,5100304952,3.16,
United Kingdom Atomic energy Authority,United Kingdom Atomic energy Authority,18/06/2014,MATERIALS & SPARES,23128,FUSION,RS COMPONENTS LTD,5100304953,163.78,
United Kingdom Atomic energy Authority,United Kingdom Atomic energy Authority,09/06/2014,MATERIALS & SPARES,25103,FUSION,RS COMPONENTS LTD,5100304954,85.95,
United Kingdom Atomic energy Authority,United Kingdom Atomic energy Authority,09/06/2014,REPAIRS & MAINTENANCE,25103,FUSION,CRANE CARE LTD,5100304955,170,
United Kingdom Atomic energy Authority,United Kingdom Atomic energy Authority,09/06/2014,PROFESSIONAL SERVICES,25103,FUSION,SCIENTIFICS LTD,5100304958,1800,
United Kingdom Atomic energy Authority,United Kingdom Atomic energy Authority,09/06/2014,PROFESSIONAL SERVICES,23164,FUSION,SCIENTIFICS LTD,5100304959,7087.79,
United Kingdom Atomic energy Authority,United Kingdom Atomic energy Authority,09/06/2014,PROFESSIONAL SERVICES,23151,FUSION,SCIENTIFICS LTD,5100304960,3780,
United Kingdom Atomic energy Authority,United Kingdom Atomic energy Authority,09/06/2014,CONSUMABLES,23151,FUSION,PROTECTIVE PACKAGING LTD,5100304961,706.53,
United Kingdom Atomic energy Authority,United Kingdom Atomic energy Authority,09/06/2014,SECURITY & EMERGENCY,28000,PROPERTY,RELIANCE SECURITY GROUP PLC,5100304962,-1500,
United Kingdom Atomic energy Authority,United Kingdom Atomic energy Authority,09/06/2014,RENT OF VEHICLE & EQUIPMENT,25103,FUSION,KONSTRUCTA SITE ACCOMMODATION HIRE,5100304963,402,
United Kingdom Atomic energy Authority,United Kingdom Atomic energy Authority,09/06/2014,SECURITY & EMERGENCY,28000,PROPERTY,RELIANCE SECURITY GROUP PLC,5100304964,-1500,
United Kingdom Atomic energy Authority,United Kingdom Atomic energy Authority,09/06/2014,MATERIALS & SPARES,23161,FUSION,RS COMPONENTS LTD,5100304965,48.8,
United Kingdom Atomic energy Authority,United Kingdom Atomic energy Authority,09/06/2014,MATERIALS & SPARES,25103,FUSION,RS COMPONENTS LTD,5100304966,56.55,
United Kingdom Atomic energy Authority,United Kingdom Atomic energy Authority,09/06/2014,MATERIALS & SPARES,23161,FUSION,RS COMPONENTS LTD,5100304967,30.58,
United Kingdom Atomic energy Authority,United Kingdom Atomic energy Authority,09/06/2014,MATERIALS & SPARES,23161,FUSION,RS COMPONENTS LTD,5100304968,38.05,
United Kingdom Atomic energy Authority,United Kingdom Atomic energy Authority,09/06/2014,MATERIALS & SPARES,23152,FUSION,RS COMPONENTS LTD,5100304969,-23.8,
United Kingdom Atomic energy Authority,United Kingdom Atomic energy Authority,09/06/2014,STATIONERY,21034,FUSION,HOBS REPROGRAPHICS PLC,5100304970,4.8,
United Kingdom Atomic energy Authority,United Kingdom Atomic energy Authority,09/06/2014,STATIONERY,21034,FUSION,HOBS REPROGRAPHICS PLC,5100304971,18.75,
United Kingdom Atomic energy Authority,United Kingdom Atomic energy Authority,09/06/2014,MATERIALS & SPARES,23152,FUSION,RITTAL,5100304972,141.36,
United Kingdom Atomic energy Authority,United Kingdom Atomic energy Authority,09/06/2014,PROFESSIONAL SERVICES,23150,FUSION,INSTITUTE OF CHEMICAL ENGINEERS,5100304978,12,
United Kingdom Atomic energy Authority,United Kingdom Atomic energy Authority,09/06/2014,MATERIALS & SPARES,23121,FUSION,RS COMPONENTS LTD,5100304979,8.47,
United Kingdom Atomic energy Authority,United Kingdom Atomic energy Authority,09/06/2014,MATERIALS & SPARES,23131,FUSION,RS COMPONENTS LTD,5100304980,120.4,
United Kingdom Atomic energy Authority,United Kingdom Atomic energy Authority,18/06/2014,MATERIALS & SPARES,23128,FUSION,RS COMPONENTS LTD,5100304981,38.25,
United Kingdom Atomic energy Authority,United Kingdom Atomic energy Authority,09/06/2014,MATERIALS & SPARES,23125,FUSION,RS COMPONENTS LTD,5100304982,219.78,
United Kingdom Atomic energy Authority,United Kingdom Atomic energy Authority,09/06/2014,MATERIALS & SPARES,25103,FUSION,RS COMPONENTS LTD,5100304983,233.2,
United Kingdom Atomic energy Authority,United Kingdom Atomic energy Authority,09/06/2014,MATERIALS & SPARES,23104,FUSION,RS COMPONENTS LTD,5100304984,60.91,
